Body Name,Vendor Number,Vendor Name,Cost Centre,Service Label,BV Code,Amount,Period
Slough Borough Council,804709,247 Careservices Ltd,M44D,Adult Social Care Operations,Supplies and Services,"10,800.00",Aug-23
Slough Borough Council,804709,247 Careservices Ltd,M44D,Adult Social Care Operations,Supplies and Services,"10,800.00",Aug-23
Slough Borough Council,804709,247 Careservices Ltd,M44D,Adult Social Care Operations,Supplies and Services,"11,160.00",Aug-23
Slough Borough Council,804709,247 Careservices Ltd,M44D,Adult Social Care Operations,Supplies and Services,"12,960.00",Aug-23
Slough Borough Council,1055,A J Chapman,F123,Education & Inclusion,External Receipts,"6,295.10",Aug-23
Slough Borough Council,536,Ability Housing Association,M42E,Adult Social Care Operations,Supplies and Services,"2,861.24",Aug-23
Slough Borough Council,536,Ability Housing Association,M42E,Adult Social Care Operations,Supplies and Services,"3,023.04",Aug-23
Slough Borough Council,536,Ability Housing Association,M42E,Adult Social Care Operations,Supplies and Services,"2,895.29",Aug-23
Slough Borough Council,536,Ability Housing Association,M42E,Adult Social Care Operations,Supplies and Services,"2,852.71",Aug-23
Slough Borough Council,536,Ability Housing Association,M42E,Adult Social Care Operations,Supplies and Services,"2,682.39",Aug-23
Slough Borough Council,536,Ability Housing Association,M42E,Adult Social Care Operations,Supplies and Services,"2,924.06",Aug-23
Slough Borough Council,536,Ability Housing Association,M42E,Adult Social Care Operations,Supplies and Services,"3,490.51",Aug-23
Slough Borough Council,536,Ability Housing Association,M42E,Adult Social Care Operations,Supplies and Services,"2,788.84",Aug-23
Slough Borough Council,536,Ability Housing Association,M42E,Adult Social Care Operations,Supplies and Services,"3,222.12",Aug-23
Slough Borough Council,536,Ability Housing Association,M42E,Adult Social Care Operations,Supplies and Services,"2,860.19",Aug-23
Slough Borough Council,536,Ability Housing Association,M42E,Adult Social Care Operations,Supplies and Services,"1,532.71",Aug-23
Slough Borough Council,536,Ability Housing Association,M42E,Adult Social Care Operations,Supplies and Services,"2,008.57",Aug-23
Slough Borough Council,536,Ability Housing Association,M42E,Adult Social Care Operations,Supplies and Services,"2,583.41",Aug-23
Slough Borough Council,536,Ability Housing Association,M42E,Adult Social Care Operations,Supplies and Services,"2,668.57",Aug-23
Slough Borough Council,536,Ability Housing Association,M42E,Adult Social Care Operations,Supplies and Services,"1,348.56",Aug-23
Slough Borough Council,536,Ability Housing Association,M42E,Adult Social Care Operations,Supplies and Services,"3,261.53",Aug-23
Slough Borough Council,536,Ability Housing Association,M42E,Adult Social Care Operations,Supplies and Services,"2,835.72",Aug-23
Slough Borough Council,536,Ability Housing Association,M42E,Adult Social Care Operations,Supplies and Services,"1,967.08",Aug-23
Slough Borough Council,536,Ability Housing Association,M42E,Adult Social Care Operations,Supplies and Services,"1,153.80",Aug-23
Slough Borough Council,536,Ability Housing Association,M44E,Adult Social Care Operations,Supplies and Services,"1,924.65",Aug-23
Slough Borough Council,536,Ability Housing Association,M44E,Adult Social Care Operations,Supplies and Services,"2,439.88",Aug-23
Slough Borough Council,536,Ability Housing Association,M44E,Adult Social Care Operations,Supplies and Services,"2,354.72",Aug-23
Slough Borough Council,536,Ability Housing Association,M44E,Adult Social Care Operations,Supplies and Services,"1,997.04",Aug-23
Slough Borough Council,2898,Achieve Together t/a The Regard Partnership Ltd,M26E,Adult Social Care Operations,Supplies and Services,"7,521.04",Aug-23
Slough Borough Council,2898,Achieve Together t/a The Regard Partnership Ltd,M26E,Adult Social Care Operations,Supplies and Services,"6,352.08",Aug-23
Slough Borough Council,2898,Achieve Together t/a The Regard Partnership Ltd,M42E,Adult Social Care Operations,Supplies and Services,"5,334.52",Aug-23
Slough Borough Council,2898,Achieve Together t/a The Regard Partnership Ltd,M42E,Adult Social Care Operations,Supplies and Services,"6,781.47",Aug-23
Slough Borough Council,2898,Achieve Together t/a The Regard Partnership Ltd,M42E,Adult Social Care Operations,Supplies and Services,"7,013.22",Aug-23
Slough Borough Council,2898,Achieve Together t/a The Regard Partnership Ltd,M42E,Adult Social Care Operations,Supplies and Services,"5,208.04",Aug-23
Slough Borough Council,2898,Achieve Together t/a The Regard Partnership Ltd,M42E,Adult Social Care Operations,Supplies and Services,"6,559.16",Aug-23
Slough Borough Council,2898,Achieve Together t/a The Regard Partnership Ltd,M44D,Adult Social Care Operations,Supplies and Services,"4,840.87",Aug-23
Slough Borough Council,2898,Achieve Together t/a The Regard Partnership Ltd,M44E,Adult Social Care Operations,Supplies and Services,"5,818.48",Aug-23
Slough Borough Council,3292,Achieving For Children,F416,Education & Inclusion,Supplies and Services,"79,360.00",Aug-23
Slough Borough Council,807554,Acorn Care & Education Ltd,F462,Children & Families,Supplies and Services,"72,744.35",Aug-23
Slough Borough Council,805529,Action First Recrutiment Ltd,A02A,People,Supplies and Services,825.00,Aug-23
Slough Borough Council,805529,Action First Recrutiment Ltd,A02A,People,Supplies and Services,"1,520.00",Aug-23
Slough Borough Council,805529,Action First Recrutiment Ltd,A02A,People,Supplies and Services,760.00,Aug-23
Slough Borough Council,805529,Action First Recrutiment Ltd,A02A,People,Supplies and Services,"1,375.00",Aug-23
Slough Borough Council,2855,Advance Housing & Support Ltd,M27F,Adult Social Care Operations,Supplies and Services,"1,272.32",Aug-23
Slough Borough Council,2855,Advance Housing & Support Ltd,M27F,Adult Social Care Operations,Supplies and Services,"-1,045.46",Aug-23
Slough Borough Council,2855,Advance Housing & Support Ltd,M27F,Adult Social Care Operations,Supplies and Services,"1,192.80",Aug-23
Slough Borough Council,2855,Advance Housing & Support Ltd,M27F,Adult Social Care Operations,Supplies and Services,-969.40,Aug-23
Slough Borough Council,2855,Advance Housing & Support Ltd,M27F,Adult Social Care Operations,Supplies and Services,"1,970.86",Aug-23
Slough Borough Council,2855,Advance Housing & Support Ltd,M27F,Adult Social Care Operations,Supplies and Services,"-1,806.33",Aug-23
Slough Borough Council,2855,Advance Housing & Support Ltd,M42F,Adult Social Care Operations,Supplies and Services,760.86,Aug-23
Slough Borough Council,2855,Advance Housing & Support Ltd,M42F,Adult Social Care Operations,Supplies and Services,"1,217.38",Aug-23
Slough Borough Council,2855,Advance Housing & Support Ltd,M42F,Adult Social Care Operations,Supplies and Services,"1,673.90",Aug-23
Slough Borough Council,2855,Advance Housing & Support Ltd,M42F,Adult Social Care Operations,Supplies and Services,"1,978.25",Aug-23
Slough Borough Council,2855,Advance Housing & Support Ltd,M42F,Adult Social Care Operations,Supplies and Services,"1,141.32",Aug-23
Slough Borough Council,2855,Advance Housing & Support Ltd,M42F,Adult Social Care Operations,Supplies and Services,760.86,Aug-23
Slough Borough Council,2855,Advance Housing & Support Ltd,M42F,Adult Social Care Operations,Supplies and Services,"1,978.25",Aug-23
Slough Borough Council,2855,Advance Housing & Support Ltd,M42F,Adult Social Care Operations,Supplies and Services,"1,673.90",Aug-23
Slough Borough Council,2855,Advance Housing & Support Ltd,M42F,Adult Social Care Operations,Supplies and Services,"1,217.38",Aug-23
Slough Borough Council,2855,Advance Housing & Support Ltd,M42F,Adult Social Care Operations,Supplies and Services,"1,673.90",Aug-23
Slough Borough Council,2855,Advance Housing & Support Ltd,M42F,Adult Social Care Operations,Supplies and Services,"1,141.32",Aug-23
Slough Borough Council,2855,Advance Housing & Support Ltd,M42F,Adult Social Care Operations,Supplies and Services,760.86,Aug-23
Slough Borough Council,2855,Advance Housing & Support Ltd,M42F,Adult Social Care Operations,Supplies and Services,"1,978.25",Aug-23
Slough Borough Council,2855,Advance Housing & Support Ltd,M42F,Adult Social Care Operations,Supplies and Services,"1,141.32",Aug-23
Slough Borough Council,2855,Advance Housing & Support Ltd,M42F,Adult Social Care Operations,Supplies and Services,"1,217.38",Aug-23
Slough Borough Council,2135,Adventure Learning Childcare Limited,F909,Children & Families,Supplies and Services,"11,657.00",Aug-23
Slough Borough Council,805178,AFM Transport Limited,P243,Capital,Supplies and Services,"2,500.00",Aug-23
Slough Borough Council,805178,AFM Transport Limited,D880,Place Operations,Supplies and Services,862.50,Aug-23
Slough Borough Council,805178,AFM Transport Limited,P243,Capital,Supplies and Services,949.93,Aug-23
Slough Borough Council,806268,Allied Publicity Services (Manchester) Limited,A120,Customer,Supplies and Services,607.22,Aug-23
Slough Borough Council,806268,Allied Publicity Services (Manchester) Limited,A120,Customer,Supplies and Services,547.08,Aug-23
Slough Borough Council,2197,Altwood Housing Ltd,H205,Housing (People) Services,Supplies and Services,"1,240.00",Aug-23
Slough Borough Council,86,Altwood Properties Ltd,H205,Housing (People) Services,Premises,"49,392.66",Aug-23
Slough Borough Council,807515,Always Growing Together Community Interest Company Limited,F909,Children & Families,Supplies and Services,"9,263.27",Aug-23
Slough Borough Council,808191,Ambrose Adrian Healthcare Ltd,M44E,Adult Social Care Operations,Supplies and Services,"4,071.43",Aug-23
Slough Borough Council,808191,Ambrose Adrian Healthcare Ltd,M44E,Adult Social Care Operations,Supplies and Services,678.57,Aug-23
Slough Borough Council,808191,Ambrose Adrian Healthcare Ltd,M48C,Adult Social Care Operations,Supplies and Services,"2,577.94",Aug-23
Slough Borough Council,808191,Ambrose Adrian Healthcare Ltd,M48C,Adult Social Care Operations,Supplies and Services,"2,589.88",Aug-23
Slough Borough Council,808191,Ambrose Adrian Healthcare Ltd,M48C,Adult Social Care Operations,Supplies and Services,"2,589.88",Aug-23
Slough Borough Council,808191,Ambrose Adrian Healthcare Ltd,M48C,Adult Social Care Operations,Supplies and Services,"2,589.88",Aug-23
Slough Borough Council,808191,Ambrose Adrian Healthcare Ltd,M48C,Adult Social Care Operations,Supplies and Services,"2,581.50",Aug-23
Slough Borough Council,808191,Ambrose Adrian Healthcare Ltd,M48C,Adult Social Care Operations,Supplies and Services,"2,581.50",Aug-23
Slough Borough Council,808191,Ambrose Adrian Healthcare Ltd,M48C,Adult Social Care Operations,Supplies and Services,"2,581.50",Aug-23
Slough Borough Council,808191,Ambrose Adrian Healthcare Ltd,M48C,Adult Social Care Operations,Supplies and Services,"2,616.45",Aug-23
Slough Borough Council,808191,Ambrose Adrian Healthcare Ltd,M48C,Adult Social Care Operations,Supplies and Services,"2,565.58",Aug-23
Slough Borough Council,808191,Ambrose Adrian Healthcare Ltd,M48C,Adult Social Care Operations,Supplies and Services,"2,557.63",Aug-23
Slough Borough Council,808191,Ambrose Adrian Healthcare Ltd,M48C,Adult Social Care Operations,Supplies and Services,"2,612.25",Aug-23
Slough Borough Council,808191,Ambrose Adrian Healthcare Ltd,M48C,Adult Social Care Operations,Supplies and Services,"2,563.06",Aug-23
Slough Borough Council,808191,Ambrose Adrian Healthcare Ltd,M48C,Adult Social Care Operations,Supplies and Services,"2,488.75",Aug-23
Slough Borough Council,808191,Ambrose Adrian Healthcare Ltd,M48C,Adult Social Care Operations,Supplies and Services,"2,581.50",Aug-23
Slough Borough Council,808368,Anthony Toby Homes Trust,M26E,Adult Social Care Operations,Supplies and Services,"5,630.35",Aug-23
Slough Borough Council,808368,Anthony Toby Homes Trust,M26E,Adult Social Care Operations,Supplies and Services,"5,630.35",Aug-23
Slough Borough Council,808368,Anthony Toby Homes Trust,M26E,Adult Social Care Operations,Supplies and Services,"5,448.73",Aug-23
Slough Borough Council,808681,Anthroposophical Association,C322,Community,Supplies and Services,"5,200.00",Aug-23
Slough Borough Council,3137,Applegarth Care Home Ltd,M25C,Adult Social Care Operations,Supplies and Services,"3,600.00",Aug-23
Slough Borough Council,3137,Applegarth Care Home Ltd,M25C,Adult Social Care Operations,Supplies and Services,"3,200.00",Aug-23
Slough Borough Council,3137,Applegarth Care Home Ltd,M28C,Adult Social Care Operations,Supplies and Services,"3,342.82",Aug-23
Slough Borough Council,3137,Applegarth Care Home Ltd,M28C,Adult Social Care Operations,Supplies and Services,"1,942.88",Aug-23
Slough Borough Council,3137,Applegarth Care Home Ltd,M29C,Adult Social Care Operations,Supplies and Services,971.44,Aug-23
Slough Borough Council,3137,Applegarth Care Home Ltd,M29C,Adult Social Care Operations,Supplies and Services,"1,214.30",Aug-23
Slough Borough Council,3137,Applegarth Care Home Ltd,M29C,Adult Social Care Operations,Supplies and Services,"2,185.70",Aug-23
Slough Borough Council,808415,APTUS EA LTD,H205,Housing (People) Services,Supplies and Services,"202,583.00",Aug-23
Slough Borough Council,808415,APTUS EA LTD,H205,Housing (People) Services,Supplies and Services,"4,245.00",Aug-23
Slough Borough Council,3350,Arbour Vale School,E610,Children & Families,Supplies and Services,"436,136.03",Aug-23
Slough Borough Council,2073,Arc Preschool,F909,Children & Families,Supplies and Services,"7,695.19",Aug-23
Slough Borough Council,831,Argos Business Solutions Ltd,H055,Finance & Commercial,Supplies and Services,"2,188.98",Aug-23
Slough Borough Council,831,Argos Business Solutions Ltd,H055,Finance & Commercial,Supplies and Services,"5,513.30",Aug-23
Slough Borough Council,831,Argos Business Solutions Ltd,H055,Finance & Commercial,Supplies and Services,"15,368.58",Aug-23
Slough Borough Council,831,Argos Business Solutions Ltd,H055,Finance & Commercial,Supplies and Services,"5,831.25",Aug-23
Slough Borough Council,1166,Art Beyond Belief,F210,Community,TP-Other Bodies,"2,160.00",Aug-23
Slough Borough Council,420,Ashburn Estate Agents,H205,Housing (People) Services,Premises,"107,204.00",Aug-23
Slough Borough Council,3666,Assisted Living South West,M26E,Adult Social Care Operations,Supplies and Services,"6,778.96",Aug-23
Slough Borough Council,3666,Assisted Living South West,M26E,Adult Social Care Operations,Supplies and Services,"5,105.00",Aug-23
Slough Borough Council,804324,Astoria Healthcare,M27F,Adult Social Care Operations,Supplies and Services,"4,417.50",Aug-23
Slough Borough Council,808330,Avison Young,P242,Capital,Capital Charges,"7,100.00",Aug-23
Slough Borough Council,3370,Baylis Court School,E610,Children & Families,Supplies and Services,"4,166.67",Aug-23
Slough Borough Council,3370,Baylis Court School,B297,Finance & Commercial,Government Grants,"3,615.00",Aug-23
Slough Borough Council,3370,Baylis Court School,B297,Finance & Commercial,Government Grants,"19,890.00",Aug-23
Slough Borough Council,1681,Bcq,D610,Place Operations,Supplies and Services,880.00,Aug-23
Slough Borough Council,3208,Be Happy Pre School,F909,Children & Families,Supplies and Services,"12,214.36",Aug-23
Slough Borough Council,3208,Be Happy Pre School,F909,Children & Families,Supplies and Services,"6,747.25",Aug-23
Slough Borough Council,804471,Beech Lodge School Ltd,F462,Children & Families,Supplies and Services,"20,751.00",Aug-23
Slough Borough Council,804471,Beech Lodge School Ltd,F462,Children & Families,Supplies and Services,"12,920.00",Aug-23
Slough Borough Council,609,Beechwood Secondary School,E610,Children & Families,Supplies and Services,"5,500.00",Aug-23
Slough Borough Council,612,Berkshire Healthcare Nhs Foundation Trust,A04C,Adult Social Care Operations,Supplies and Services,"56,718.00",Aug-23
Slough Borough Council,2308,Bespoke Supportive Tenancies Ltd,A04L,Adult Social Care Operations,Supplies and Services,"2,041.27",Aug-23
Slough Borough Council,808148,BEST CHOICE CARE LTD,A07R,Adult Social Care Operations,Supplies and Services,"1,575.00",Aug-23
Slough Borough Council,808148,BEST CHOICE CARE LTD,A07R,Adult Social Care Operations,Supplies and Services,"1,242.78",Aug-23
Slough Borough Council,808148,BEST CHOICE CARE LTD,A07R,Adult Social Care Operations,Supplies and Services,796.29,Aug-23
Slough Borough Council,808148,BEST CHOICE CARE LTD,A07R,Adult Social Care Operations,Supplies and Services,"1,050.00",Aug-23
Slough Borough Council,808148,BEST CHOICE CARE LTD,M41D,Adult Social Care Operations,Supplies and Services,621.25,Aug-23
Slough Borough Council,808148,BEST CHOICE CARE LTD,M44C,Adult Social Care Operations,Supplies and Services,"1,277.64",Aug-23
Slough Borough Council,808148,BEST CHOICE CARE LTD,M44C,Adult Social Care Operations,Supplies and Services,848.89,Aug-23
Slough Borough Council,808148,BEST CHOICE CARE LTD,M44C,Adult Social Care Operations,Supplies and Services,"1,837.78",Aug-23
Slough Borough Council,808148,BEST CHOICE CARE LTD,M44C,Adult Social Care Operations,Supplies and Services,"1,461.53",Aug-23
Slough Borough Council,808148,BEST CHOICE CARE LTD,M44C,Adult Social Care Operations,Supplies and Services,717.68,Aug-23
Slough Borough Council,808148,BEST CHOICE CARE LTD,M44C,Adult Social Care Operations,Supplies and Services,603.89,Aug-23
Slough Borough Council,808148,BEST CHOICE CARE LTD,M44C,Adult Social Care Operations,Supplies and Services,857.64,Aug-23
Slough Borough Council,808148,BEST CHOICE CARE LTD,M44C,Adult Social Care Operations,Supplies and Services,"2,205.28",Aug-23
Slough Borough Council,808148,BEST CHOICE CARE LTD,M44C,Adult Social Care Operations,Supplies and Services,507.64,Aug-23
Slough Borough Council,808148,BEST CHOICE CARE LTD,M44C,Adult Social Care Operations,Supplies and Services,"2,205.28",Aug-23
Slough Borough Council,808148,BEST CHOICE CARE LTD,M44C,Adult Social Care Operations,Supplies and Services,901.36,Aug-23
Slough Borough Council,808148,BEST CHOICE CARE LTD,M44C,Adult Social Care Operations,Supplies and Services,857.64,Aug-23
Slough Borough Council,808148,BEST CHOICE CARE LTD,M44C,Adult Social Care Operations,Supplies and Services,612.64,Aug-23
Slough Borough Council,808148,BEST CHOICE CARE LTD,M44C,Adult Social Care Operations,Supplies and Services,"1,715.00",Aug-23
Slough Borough Council,808148,BEST CHOICE CARE LTD,M44C,Adult Social Care Operations,Supplies and Services,980.00,Aug-23
Slough Borough Council,808148,BEST CHOICE CARE LTD,M44C,Adult Social Care Operations,Supplies and Services,765.74,Aug-23
Slough Borough Council,808148,BEST CHOICE CARE LTD,M44C,Adult Social Care Operations,Supplies and Services,"1,093.89",Aug-23
Slough Borough Council,808148,BEST CHOICE CARE LTD,M44C,Adult Social Care Operations,Supplies and Services,"2,327.78",Aug-23
Slough Borough Council,808148,BEST CHOICE CARE LTD,M44C,Adult Social Care Operations,Supplies and Services,"1,715.28",Aug-23
Slough Borough Council,808148,BEST CHOICE CARE LTD,M44C,Adult Social Care Operations,Supplies and Services,857.64,Aug-23
Slough Borough Council,808148,BEST CHOICE CARE LTD,M44C,Adult Social Care Operations,Supplies and Services,612.64,Aug-23
Slough Borough Council,808148,BEST CHOICE CARE LTD,M44D,Adult Social Care Operations,Supplies and Services,"2,485.00",Aug-23
Slough Borough Council,808148,BEST CHOICE CARE LTD,M44D,Adult Social Care Operations,Supplies and Services,"2,205.28",Aug-23
Slough Borough Council,808148,BEST CHOICE CARE LTD,M44D,Adult Social Care Operations,Supplies and Services,595.00,Aug-23
Slough Borough Council,808148,BEST CHOICE CARE LTD,M44D,Adult Social Care Operations,Supplies and Services,"1,167.50",Aug-23
Slough Borough Council,808148,BEST CHOICE CARE LTD,M44D,Adult Social Care Operations,Supplies and Services,665.28,Aug-23
Slough Borough Council,808148,BEST CHOICE CARE LTD,M44D,Adult Social Care Operations,Supplies and Services,"2,205.28",Aug-23
Slough Borough Council,808148,BEST CHOICE CARE LTD,M45C,Adult Social Care Operations,Supplies and Services,879.51,Aug-23
Slough Borough Council,808148,BEST CHOICE CARE LTD,M45C,Adult Social Care Operations,Supplies and Services,590.63,Aug-23
Slough Borough Council,808148,BEST CHOICE CARE LTD,M45C,Adult Social Care Operations,Supplies and Services,897.01,Aug-23
Slough Borough Council,808148,BEST CHOICE CARE LTD,M45C,Adult Social Care Operations,Supplies and Services,896.76,Aug-23
Slough Borough Council,808148,BEST CHOICE CARE LTD,M45C,Adult Social Care Operations,Supplies and Services,612.64,Aug-23
Slough Borough Council,808148,BEST CHOICE CARE LTD,M45C,Adult Social Care Operations,Supplies and Services,"-1,102.50",Aug-23
Slough Borough Council,808148,BEST CHOICE CARE LTD,M45C,Adult Social Care Operations,Supplies and Services,"1,299.38",Aug-23
Slough Borough Council,808148,BEST CHOICE CARE LTD,M45C,Adult Social Care Operations,Supplies and Services,531.39,Aug-23
Slough Borough Council,808148,BEST CHOICE CARE LTD,M45C,Adult Social Care Operations,Supplies and Services,682.50,Aug-23
Slough Borough Council,808148,BEST CHOICE CARE LTD,M45C,Adult Social Care Operations,Supplies and Services,774.51,Aug-23
Slough Borough Council,808148,BEST CHOICE CARE LTD,M48C,Adult Social Care Operations,Supplies and Services,542.50,Aug-23
Slough Borough Council,808148,BEST CHOICE CARE LTD,M48C,Adult Social Care Operations,Supplies and Services,"1,706.60",Aug-23
Slough Borough Council,808148,BEST CHOICE CARE LTD,M48C,Adult Social Care Operations,Supplies and Services,630.00,Aug-23
Slough Borough Council,808148,BEST CHOICE CARE LTD,M48C,Adult Social Care Operations,Supplies and Services,"2,660.56",Aug-23
Slough Borough Council,806987,Better Life Care Ltd,M44E,Adult Social Care Operations,Supplies and Services,"5,185.71",Aug-23
Slough Borough Council,808755,BHANDAL INVESTMENTS LTD,H205,Housing (People) Services,Supplies and Services,"1,650.00",Aug-23
Slough Borough Council,808755,BHANDAL INVESTMENTS LTD,H205,Housing (People) Services,Supplies and Services,"1,705.00",Aug-23
Slough Borough Council,3611,Birch Assist Ltd T/A Bluebird Care (South Bucks & Slough),M44D,Adult Social Care Operations,Supplies and Services,"2,982.00",Aug-23
Slough Borough Council,3611,Birch Assist Ltd T/A Bluebird Care (South Bucks & Slough),M44D,Adult Social Care Operations,Supplies and Services,"2,966.25",Aug-23
Slough Borough Council,803828,Blue Willow Day Nursery Ltd,F909,Children & Families,Supplies and Services,"27,353.32",Aug-23
Slough Borough Council,805280,BME imaging LTD,H201,Community,Supplies and Services,"1,474.74",Aug-23
Slough Borough Council,803601,Bolinda UK Ltd,C104,Community,Supplies and Services,"3,000.00",Aug-23
Slough Borough Council,805160,Bouygues E&S FM UK Limited,K521,Business Services,Premises,"12,965.26",Aug-23
Slough Borough Council,805817,Bright World Nurseries,F909,Children & Families,Supplies and Services,"10,772.90",Aug-23
Slough Borough Council,617,British Telecommunications,P243,Capital,Supplies and Services,534.56,Aug-23
Slough Borough Council,504,Britwell Baptist Pre School,F909,Children & Families,Supplies and Services,"5,319.74",Aug-23
Slough Borough Council,741,Bunnies Pre-School,F909,Children & Families,Supplies and Services,"6,510.92",Aug-23
Slough Borough Council,803553,BUPA CARE HOME (CFH CARE),M25D,Adult Social Care Operations,Supplies and Services,"3,476.19",Aug-23
Slough Borough Council,804448,Bupa Care Homes (ANS) Ltd,M15D,Adult Social Care Operations,Supplies and Services,"6,428.57",Aug-23
Slough Borough Council,804448,Bupa Care Homes (ANS) Ltd,M15D,Adult Social Care Operations,Supplies and Services,"6,428.57",Aug-23
Slough Borough Council,2675,Burnham Lodge Ltd,A02E,Adult Social Care Operations,Supplies and Services,"5,314.33",Aug-23
Slough Borough Council,2675,Burnham Lodge Ltd,A02E,Adult Social Care Operations,Supplies and Services,"5,142.90",Aug-23
Slough Borough Council,2675,Burnham Lodge Ltd,A02E,Adult Social Care Operations,Supplies and Services,"5,314.33",Aug-23
Slough Borough Council,2675,Burnham Lodge Ltd,A02E,Adult Social Care Operations,Supplies and Services,"5,314.33",Aug-23
Slough Borough Council,2675,Burnham Lodge Ltd,A02E,Adult Social Care Operations,Supplies and Services,"-4,799.96",Aug-23
Slough Borough Council,2675,Burnham Lodge Ltd,M15D,Adult Social Care Operations,Supplies and Services,"5,314.29",Aug-23
Slough Borough Council,2675,Burnham Lodge Ltd,M28C,Adult Social Care Operations,Supplies and Services,"4,800.00",Aug-23
Slough Borough Council,2675,Burnham Lodge Ltd,M29C,Adult Social Care Operations,Supplies and Services,"5,400.00",Aug-23
Slough Borough Council,2675,Burnham Lodge Ltd,M29C,Adult Social Care Operations,Supplies and Services,"2,700.00",Aug-23
Slough Borough Council,2177,C F Roberts (Electrical Contractors)Plc,P242,Capital,Capital Charges,"2,729.64",Aug-23
Slough Borough Council,629,C.H.O.I.C.E Limited,M26E,Adult Social Care Operations,Supplies and Services,"9,816.24",Aug-23
Slough Borough Council,629,C.H.O.I.C.E Limited,M26E,Adult Social Care Operations,Supplies and Services,"12,918.98",Aug-23
Slough Borough Council,629,C.H.O.I.C.E Limited,M26E,Adult Social Care Operations,Supplies and Services,"11,646.00",Aug-23
Slough Borough Council,629,C.H.O.I.C.E Limited,M26E,Adult Social Care Operations,Supplies and Services,"11,082.82",Aug-23
Slough Borough Council,629,C.H.O.I.C.E Limited,M26E,Adult Social Care Operations,Supplies and Services,"11,367.02",Aug-23
Slough Borough Council,629,C.H.O.I.C.E Limited,M26E,Adult Social Care Operations,Supplies and Services,"12,128.84",Aug-23
Slough Borough Council,629,C.H.O.I.C.E Limited,M26E,Adult Social Care Operations,Supplies and Services,"6,320.95",Aug-23
Slough Borough Council,629,C.H.O.I.C.E Limited,M26E,Adult Social Care Operations,Supplies and Services,"9,262.81",Aug-23
Slough Borough Council,629,C.H.O.I.C.E Limited,M26E,Adult Social Care Operations,Supplies and Services,"11,724.95",Aug-23
Slough Borough Council,629,C.H.O.I.C.E Limited,M42E,Adult Social Care Operations,Supplies and Services,"6,475.32",Aug-23
Slough Borough Council,629,C.H.O.I.C.E Limited,M42E,Adult Social Care Operations,Supplies and Services,"1,173.57",Aug-23
Slough Borough Council,629,C.H.O.I.C.E Limited,M42E,Adult Social Care Operations,Supplies and Services,"6,609.11",Aug-23
Slough Borough Council,629,C.H.O.I.C.E Limited,M42E,Adult Social Care Operations,Supplies and Services,"6,017.63",Aug-23
Slough Borough Council,629,C.H.O.I.C.E Limited,M44F,Adult Social Care Operations,Supplies and Services,"2,736.81",Aug-23
Slough Borough Council,629,C.H.O.I.C.E Limited,M26E,Adult Social Care Operations,External Receipts,-515.75,Aug-23
Slough Borough Council,629,C.H.O.I.C.E Limited,M26E,Adult Social Care Operations,External Receipts,-523.01,Aug-23
Slough Borough Council,807129,Calcot Services for Children Ltd (Eton Dorney Therapeutic School),F462,Children & Families,Supplies and Services,"17,062.50",Aug-23
Slough Borough Council,623,Canon (Uk) Ltd,K059,Business Services,Supplies and Services,647.79,Aug-23
Slough Borough Council,623,Canon (Uk) Ltd,K059,Business Services,Supplies and Services,"4,115.70",Aug-23
Slough Borough Council,623,Canon (Uk) Ltd,K059,Business Services,Supplies and Services,"8,482.28",Aug-23
Slough Borough Council,623,Canon (Uk) Ltd,K059,Business Services,Supplies and Services,"2,603.25",Aug-23
Slough Borough Council,737,Capita Business Services Ltd,F158,Education & Inclusion,Supplies and Services,"336,614.45",Aug-23
Slough Borough Council,808972,Cardea Healthcare,M44E,Adult Social Care Operations,Supplies and Services,"1,123.11",Aug-23
Slough Borough Council,808972,Cardea Healthcare,M44E,Adult Social Care Operations,Supplies and Services,668.24,Aug-23
Slough Borough Council,808972,Cardea Healthcare,M44E,Adult Social Care Operations,Supplies and Services,668.24,Aug-23
Slough Borough Council,805621,Care Staff Services,A07R,Adult Social Care Operations,Supplies and Services,"1,076.25",Aug-23
Slough Borough Council,805621,Care Staff Services,A07R,Adult Social Care Operations,Supplies and Services,"1,863.75",Aug-23
Slough Borough Council,805621,Care Staff Services,A07R,Adult Social Care Operations,Supplies and Services,503.13,Aug-23
Slough Borough Council,805621,Care Staff Services,A07R,Adult Social Care Operations,Supplies and Services,"1,225.25",Aug-23
Slough Borough Council,805621,Care Staff Services,A07R,Adult Social Care Operations,Supplies and Services,"2,205.00",Aug-23
Slough Borough Council,805621,Care Staff Services,M44C,Adult Social Care Operations,Supplies and Services,857.50,Aug-23
Slough Borough Council,805621,Care Staff Services,M44C,Adult Social Care Operations,Supplies and Services,"1,452.50",Aug-23
Slough Borough Council,805621,Care Staff Services,M44C,Adult Social Care Operations,Supplies and Services,"2,331.00",Aug-23
Slough Borough Council,805621,Care Staff Services,M44C,Adult Social Care Operations,Supplies and Services,686.88,Aug-23
Slough Borough Council,805621,Care Staff Services,M44C,Adult Social Care Operations,Supplies and Services,"1,102.50",Aug-23
Slough Borough Council,805621,Care Staff Services,M44C,Adult Social Care Operations,Supplies and Services,"2,205.00",Aug-23
Slough Borough Council,805621,Care Staff Services,M44C,Adult Social Care Operations,Supplies and Services,678.13,Aug-23
Slough Borough Council,805621,Care Staff Services,M44C,Adult Social Care Operations,Supplies and Services,980.00,Aug-23
Slough Borough Council,805621,Care Staff Services,M44C,Adult Social Care Operations,Supplies and Services,568.75,Aug-23
Slough Borough Council,805621,Care Staff Services,M44C,Adult Social Care Operations,Supplies and Services,"2,625.00",Aug-23
Slough Borough Council,805621,Care Staff Services,M44C,Adult Social Care Operations,Supplies and Services,704.38,Aug-23
Slough Borough Council,805621,Care Staff Services,M44C,Adult Social Care Operations,Supplies and Services,"2,205.00",Aug-23
Slough Borough Council,805621,Care Staff Services,M44C,Adult Social Care Operations,Supplies and Services,"2,450.00",Aug-23
Slough Borough Council,805621,Care Staff Services,M44C,Adult Social Care Operations,Supplies and Services,818.13,Aug-23
Slough Borough Council,805621,Care Staff Services,M44C,Adult Social Care Operations,Supplies and Services,"1,715.00",Aug-23
Slough Borough Council,805621,Care Staff Services,M44C,Adult Social Care Operations,Supplies and Services,504.13,Aug-23
Slough Borough Council,805621,Care Staff Services,M44C,Adult Social Care Operations,Supplies and Services,844.38,Aug-23
Slough Borough Council,805621,Care Staff Services,M44C,Adult Social Care Operations,Supplies and Services,"2,205.00",Aug-23
Slough Borough Council,805621,Care Staff Services,M44C,Adult Social Care Operations,Supplies and Services,560.00,Aug-23
Slough Borough Council,805621,Care Staff Services,M44C,Adult Social Care Operations,Supplies and Services,857.50,Aug-23
Slough Borough Council,805621,Care Staff Services,M44C,Adult Social Care Operations,Supplies and Services,"1,216.25",Aug-23
Slough Borough Council,805621,Care Staff Services,M44C,Adult Social Care Operations,Supplies and Services,"1,102.50",Aug-23
Slough Borough Council,805621,Care Staff Services,M44C,Adult Social Care Operations,Supplies and Services,721.88,Aug-23
Slough Borough Council,805621,Care Staff Services,M44C,Adult Social Care Operations,Supplies and Services,"1,102.50",Aug-23
Slough Borough Council,805621,Care Staff Services,M44C,Adult Social Care Operations,Supplies and Services,844.38,Aug-23
Slough Borough Council,805621,Care Staff Services,M44C,Adult Social Care Operations,Supplies and Services,"2,205.00",Aug-23
Slough Borough Council,805621,Care Staff Services,M44C,Adult Social Care Operations,Supplies and Services,"1,443.75",Aug-23
Slough Borough Council,805621,Care Staff Services,M44C,Adult Social Care Operations,Supplies and Services,507.50,Aug-23
Slough Borough Council,805621,Care Staff Services,M44C,Adult Social Care Operations,Supplies and Services,612.50,Aug-23
Slough Borough Council,805621,Care Staff Services,M44C,Adult Social Care Operations,Supplies and Services,597.27,Aug-23
Slough Borough Council,805621,Care Staff Services,M44C,Adult Social Care Operations,Supplies and Services,752.50,Aug-23
Slough Borough Council,805621,Care Staff Services,M44C,Adult Social Care Operations,Supplies and Services,"2,030.00",Aug-23
Slough Borough Council,805621,Care Staff Services,M44C,Adult Social Care Operations,Supplies and Services,"2,205.00",Aug-23
Slough Borough Council,805621,Care Staff Services,M44C,Adult Social Care Operations,Supplies and Services,508.75,Aug-23
Slough Borough Council,805621,Care Staff Services,M44C,Adult Social Care Operations,Supplies and Services,857.50,Aug-23
Slough Borough Council,805621,Care Staff Services,M44C,Adult Social Care Operations,Supplies and Services,857.50,Aug-23
Slough Borough Council,805621,Care Staff Services,M44C,Adult Social Care Operations,Supplies and Services,783.13,Aug-23
Slough Borough Council,805621,Care Staff Services,M44C,Adult Social Care Operations,Supplies and Services,612.50,Aug-23
Slough Borough Council,805621,Care Staff Services,M44C,Adult Social Care Operations,Supplies and Services,"2,467.50",Aug-23
Slough Borough Council,805621,Care Staff Services,M44C,Adult Social Care Operations,Supplies and Services,551.25,Aug-23
Slough Borough Council,805621,Care Staff Services,M44C,Adult Social Care Operations,Supplies and Services,"2,450.00",Aug-23
Slough Borough Council,805621,Care Staff Services,M44C,Adult Social Care Operations,Supplies and Services,"1,813.00",Aug-23
Slough Borough Council,805621,Care Staff Services,M44C,Adult Social Care Operations,Supplies and Services,612.50,Aug-23
Slough Borough Council,805621,Care Staff Services,M44C,Adult Social Care Operations,Supplies and Services,857.50,Aug-23
Slough Borough Council,805621,Care Staff Services,M44C,Adult Social Care Operations,Supplies and Services,630.00,Aug-23
Slough Borough Council,805621,Care Staff Services,M44C,Adult Social Care Operations,Supplies and Services,533.75,Aug-23
Slough Borough Council,805621,Care Staff Services,M44D,Adult Social Care Operations,Supplies and Services,857.50,Aug-23
Slough Borough Council,805621,Care Staff Services,M44D,Adult Social Care Operations,Supplies and Services,726.13,Aug-23
Slough Borough Council,805621,Care Staff Services,M44D,Adult Social Care Operations,Supplies and Services,832.50,Aug-23
Slough Borough Council,805621,Care Staff Services,M44D,Adult Social Care Operations,Supplies and Services,"1,382.50",Aug-23
Slough Borough Council,805621,Care Staff Services,M44D,Adult Social Care Operations,Supplies and Services,"2,205.00",Aug-23
Slough Borough Council,805621,Care Staff Services,M44D,Adult Social Care Operations,Supplies and Services,"1,470.00",Aug-23
Slough Borough Council,805621,Care Staff Services,M44D,Adult Social Care Operations,Supplies and Services,857.50,Aug-23
Slough Borough Council,805621,Care Staff Services,M44D,Adult Social Care Operations,Supplies and Services,980.00,Aug-23
Slough Borough Council,805621,Care Staff Services,M44D,Adult Social Care Operations,Supplies and Services,840.00,Aug-23
Slough Borough Council,805621,Care Staff Services,M44D,Adult Social Care Operations,Supplies and Services,"1,225.00",Aug-23
Slough Borough Council,805621,Care Staff Services,M44D,Adult Social Care Operations,Supplies and Services,"1,732.50",Aug-23
Slough Borough Council,805621,Care Staff Services,M44D,Adult Social Care Operations,Supplies and Services,"1,365.00",Aug-23
Slough Borough Council,805621,Care Staff Services,M44E,Adult Social Care Operations,Supplies and Services,682.50,Aug-23
Slough Borough Council,805621,Care Staff Services,M44E,Adult Social Care Operations,Supplies and Services,682.50,Aug-23
Slough Borough Council,805621,Care Staff Services,M44F,Adult Social Care Operations,Supplies and Services,"2,553.00",Aug-23
Slough Borough Council,805621,Care Staff Services,M44F,Adult Social Care Operations,Supplies and Services,560.00,Aug-23
Slough Borough Council,805621,Care Staff Services,M44F,Adult Social Care Operations,Supplies and Services,999.00,Aug-23
Slough Borough Council,805621,Care Staff Services,M44F,Adult Social Care Operations,Supplies and Services,666.00,Aug-23
Slough Borough Council,805621,Care Staff Services,M44F,Adult Social Care Operations,Supplies and Services,"1,015.00",Aug-23
Slough Borough Council,805621,Care Staff Services,M44F,Adult Social Care Operations,Supplies and Services,503.13,Aug-23
Slough Borough Council,805621,Care Staff Services,M44F,Adult Social Care Operations,Supplies and Services,"1,382.50",Aug-23
Slough Borough Council,805621,Care Staff Services,M44F,Adult Social Care Operations,Supplies and Services,625.63,Aug-23
Slough Borough Council,805621,Care Staff Services,M44F,Adult Social Care Operations,Supplies and Services,"1,480.00",Aug-23
Slough Borough Council,805621,Care Staff Services,M44F,Adult Social Care Operations,Supplies and Services,740.00,Aug-23
Slough Borough Council,805621,Care Staff Services,M45C,Adult Social Care Operations,Supplies and Services,"2,331.00",Aug-23
Slough Borough Council,805621,Care Staff Services,M45C,Adult Social Care Operations,Supplies and Services,"2,331.00",Aug-23
Slough Borough Council,805621,Care Staff Services,M45C,Adult Social Care Operations,Supplies and Services,866.25,Aug-23
Slough Borough Council,805621,Care Staff Services,M45C,Adult Social Care Operations,Supplies and Services,963.13,Aug-23
Slough Borough Council,805621,Care Staff Services,M45C,Adult Social Care Operations,Supplies and Services,595.00,Aug-23
Slough Borough Council,805621,Care Staff Services,M45C,Adult Social Care Operations,Supplies and Services,894.38,Aug-23
Slough Borough Council,805621,Care Staff Services,M45C,Adult Social Care Operations,Supplies and Services,511.88,Aug-23
Slough Borough Council,805621,Care Staff Services,M45C,Adult Social Care Operations,Supplies and Services,962.50,Aug-23
Slough Borough Council,805621,Care Staff Services,M45C,Adult Social Care Operations,Supplies and Services,"1,872.50",Aug-23
Slough Borough Council,805621,Care Staff Services,M45C,Adult Social Care Operations,Supplies and Services,"1,102.50",Aug-23
Slough Borough Council,805621,Care Staff Services,M45C,Adult Social Care Operations,Supplies and Services,756.87,Aug-23
Slough Borough Council,805621,Care Staff Services,M45C,Adult Social Care Operations,Supplies and Services,564.38,Aug-23
Slough Borough Council,805621,Care Staff Services,M45C,Adult Social Care Operations,Supplies and Services,"1,260.00",Aug-23
Slough Borough Council,805621,Care Staff Services,M45C,Adult Social Care Operations,Supplies and Services,"1,098.13",Aug-23
Slough Borough Council,805621,Care Staff Services,M45C,Adult Social Care Operations,Supplies and Services,914.38,Aug-23
Slough Borough Council,805621,Care Staff Services,M45C,Adult Social Care Operations,Supplies and Services,"1,098.13",Aug-23
Slough Borough Council,805621,Care Staff Services,M45C,Adult Social Care Operations,Supplies and Services,748.13,Aug-23
Slough Borough Council,805621,Care Staff Services,M48C,Adult Social Care Operations,Supplies and Services,"1,627.50",Aug-23
Slough Borough Council,805621,Care Staff Services,M48C,Adult Social Care Operations,Supplies and Services,"1,715.00",Aug-23
Slough Borough Council,808149,Care Staff Services Support,M44F,Adult Social Care Operations,Supplies and Services,"4,675.31",Aug-23
Slough Borough Council,808149,Care Staff Services Support,M44F,Adult Social Care Operations,Supplies and Services,"1,808.48",Aug-23
Slough Borough Council,808149,Care Staff Services Support,M44F,Adult Social Care Operations,Supplies and Services,"4,891.12",Aug-23
Slough Borough Council,808149,Care Staff Services Support,M44F,Adult Social Care Operations,Supplies and Services,524.05,Aug-23
Slough Borough Council,1162,Care Uk Community Partnership Ltd,A03E,Adult Social Care Operations,Supplies and Services,"4,218.60",Aug-23
Slough Borough Council,1162,Care Uk Community Partnership Ltd,A03E,Adult Social Care Operations,Supplies and Services,"3,948.50",Aug-23
Slough Borough Council,1162,Care Uk Community Partnership Ltd,A03E,Adult Social Care Operations,Supplies and Services,"2,066.97",Aug-23
Slough Borough Council,1162,Care Uk Community Partnership Ltd,A03E,Adult Social Care Operations,Supplies and Services,557.14,Aug-23
Slough Borough Council,1162,Care Uk Community Partnership Ltd,A03E,Adult Social Care Operations,Supplies and Services,"4,218.60",Aug-23
Slough Borough Council,1162,Care Uk Community Partnership Ltd,M15D,Adult Social Care Operations,Supplies and Services,"4,218.60",Aug-23
Slough Borough Council,1162,Care Uk Community Partnership Ltd,M17C,Adult Social Care Operations,Supplies and Services,"1,352.83",Aug-23
Slough Borough Council,1162,Care Uk Community Partnership Ltd,M17C,Adult Social Care Operations,Supplies and Services,"1,808.64",Aug-23
Slough Borough Council,1162,Care Uk Community Partnership Ltd,M17C,Adult Social Care Operations,Supplies and Services,"5,571.43",Aug-23
Slough Borough Council,1162,Care Uk Community Partnership Ltd,M17C,Adult Social Care Operations,Supplies and Services,"3,686.17",Aug-23
Slough Borough Council,1162,Care Uk Community Partnership Ltd,M17C,Adult Social Care Operations,Supplies and Services,"4,218.60",Aug-23
Slough Borough Council,1162,Care Uk Community Partnership Ltd,M17C,Adult Social Care Operations,Supplies and Services,"4,218.60",Aug-23
Slough Borough Council,1162,Care Uk Community Partnership Ltd,M17C,Adult Social Care Operations,Supplies and Services,"4,218.60",Aug-23
Slough Borough Council,1162,Care Uk Community Partnership Ltd,M17C,Adult Social Care Operations,Supplies and Services,"3,969.72",Aug-23
Slough Borough Council,1162,Care Uk Community Partnership Ltd,M18C,Adult Social Care Operations,Supplies and Services,"4,218.60",Aug-23
Slough Borough Council,1162,Care Uk Community Partnership Ltd,M18C,Adult Social Care Operations,Supplies and Services,"4,218.60",Aug-23
Slough Borough Council,1162,Care Uk Community Partnership Ltd,M18C,Adult Social Care Operations,Supplies and Services,"3,969.72",Aug-23
Slough Borough Council,1162,Care Uk Community Partnership Ltd,M18C,Adult Social Care Operations,Supplies and Services,"4,218.60",Aug-23
Slough Borough Council,1162,Care Uk Community Partnership Ltd,M18C,Adult Social Care Operations,Supplies and Services,"4,218.60",Aug-23
Slough Borough Council,1162,Care Uk Community Partnership Ltd,M18C,Adult Social Care Operations,Supplies and Services,"4,218.60",Aug-23
Slough Borough Council,1162,Care Uk Community Partnership Ltd,M18C,Adult Social Care Operations,Supplies and Services,"114,534.56",Aug-23
Slough Borough Council,1162,Care Uk Community Partnership Ltd,M18C,Adult Social Care Operations,Supplies and Services,"4,218.60",Aug-23
Slough Borough Council,1162,Care Uk Community Partnership Ltd,M18C,Adult Social Care Operations,Supplies and Services,"4,218.60",Aug-23
Slough Borough Council,1162,Care Uk Community Partnership Ltd,M18C,Adult Social Care Operations,Supplies and Services,"4,218.60",Aug-23
Slough Borough Council,1162,Care Uk Community Partnership Ltd,M25C,Adult Social Care Operations,Supplies and Services,"3,703.00",Aug-23
Slough Borough Council,1162,Care Uk Community Partnership Ltd,M25C,Adult Social Care Operations,Supplies and Services,"3,703.00",Aug-23
Slough Borough Council,1162,Care Uk Community Partnership Ltd,M25C,Adult Social Care Operations,Supplies and Services,"3,703.00",Aug-23
Slough Borough Council,1162,Care Uk Community Partnership Ltd,M25C,Adult Social Care Operations,Supplies and Services,"76,169.80",Aug-23
Slough Borough Council,1162,Care Uk Community Partnership Ltd,M26E,Adult Social Care Operations,Supplies and Services,"4,090.52",Aug-23
Slough Borough Council,1162,Care Uk Community Partnership Ltd,M26E,Adult Social Care Operations,Supplies and Services,"4,090.52",Aug-23
Slough Borough Council,1162,Care Uk Community Partnership Ltd,M27C,Adult Social Care Operations,Supplies and Services,"3,703.00",Aug-23
Slough Borough Council,1162,Care Uk Community Partnership Ltd,M27C,Adult Social Care Operations,Supplies and Services,"3,703.00",Aug-23
Slough Borough Council,1162,Care Uk Community Partnership Ltd,M27C,Adult Social Care Operations,Supplies and Services,"3,380.88",Aug-23
Slough Borough Council,1162,Care Uk Community Partnership Ltd,M27C,Adult Social Care Operations,Supplies and Services,"3,703.00",Aug-23
Slough Borough Council,1162,Care Uk Community Partnership Ltd,M27C,Adult Social Care Operations,Supplies and Services,"3,703.00",Aug-23
Slough Borough Council,1162,Care Uk Community Partnership Ltd,M27C,Adult Social Care Operations,Supplies and Services,"3,380.88",Aug-23
Slough Borough Council,1162,Care Uk Community Partnership Ltd,M27C,Adult Social Care Operations,Supplies and Services,"3,380.88",Aug-23
Slough Borough Council,1162,Care Uk Community Partnership Ltd,M27C,Adult Social Care Operations,Supplies and Services,"3,380.88",Aug-23
Slough Borough Council,1162,Care Uk Community Partnership Ltd,M27C,Adult Social Care Operations,Supplies and Services,"3,703.00",Aug-23
Slough Borough Council,1162,Care Uk Community Partnership Ltd,M27C,Adult Social Care Operations,Supplies and Services,"3,703.00",Aug-23
Slough Borough Council,1162,Care Uk Community Partnership Ltd,M27C,Adult Social Care Operations,Supplies and Services,"24,390.64",Aug-23
Slough Borough Council,1162,Care Uk Community Partnership Ltd,M27C,Adult Social Care Operations,Supplies and Services,"3,380.88",Aug-23
Slough Borough Council,1162,Care Uk Community Partnership Ltd,M27C,Adult Social Care Operations,Supplies and Services,"3,703.00",Aug-23
Slough Borough Council,1162,Care Uk Community Partnership Ltd,M27C,Adult Social Care Operations,Supplies and Services,"3,380.88",Aug-23
Slough Borough Council,1162,Care Uk Community Partnership Ltd,M27C,Adult Social Care Operations,Supplies and Services,"3,703.00",Aug-23
Slough Borough Council,1162,Care Uk Community Partnership Ltd,M27F,Adult Social Care Operations,Supplies and Services,"3,380.88",Aug-23
Slough Borough Council,1162,Care Uk Community Partnership Ltd,M28C,Adult Social Care Operations,Supplies and Services,"1,569.69",Aug-23
Slough Borough Council,1162,Care Uk Community Partnership Ltd,M28C,Adult Social Care Operations,Supplies and Services,"1,086.71",Aug-23
Slough Borough Council,1162,Care Uk Community Partnership Ltd,M29C,Adult Social Care Operations,Supplies and Services,"1,499.21",Aug-23
Slough Borough Council,1162,Care Uk Community Partnership Ltd,M29C,Adult Social Care Operations,Supplies and Services,937.01,Aug-23
Slough Borough Council,1162,Care Uk Community Partnership Ltd,M29C,Adult Social Care Operations,Supplies and Services,"5,247.24",Aug-23
Slough Borough Council,1162,Care Uk Community Partnership Ltd,M29C,Adult Social Care Operations,Supplies and Services,"2,998.42",Aug-23
Slough Borough Council,804413,Castle Water,B060,Business Services,Premises,"1,016.45",Aug-23
Slough Borough Council,804413,Castle Water,B082,Place Strategy & Infrastructure,Premises,542.65,Aug-23
Slough Borough Council,804413,Castle Water,C019,Place Operations,Premises,"1,779.79",Aug-23
Slough Borough Council,804413,Castle Water,D900,Place Operations,Premises,"1,084.48",Aug-23
Slough Borough Council,804413,Castle Water,D900,Place Operations,Premises,972.26,Aug-23
Slough Borough Council,804413,Castle Water,D900,Place Operations,Premises,"-1,503.21",Aug-23
Slough Borough Council,418,Castleview School,E620,Children & Families,Supplies and Services,"42,285.00",Aug-23
Slough Borough Council,3609,Centurion Healthcare Ltd,M26E,Adult Social Care Operations,Supplies and Services,"6,514.38",Aug-23
Slough Borough Council,2892,Chalfont Lodge,M15D,Adult Social Care Operations,Supplies and Services,"5,978.57",Aug-23
Slough Borough Council,2892,Chalfont Lodge,M15F,Adult Social Care Operations,Supplies and Services,"8,857.14",Aug-23
Slough Borough Council,2091,Chargemaster Plc,D309,Place Operations,Supplies and Services,"5,800.00",Aug-23
Slough Borough Council,3114,Cherry Trees Day Nursery,F909,Children & Families,Supplies and Services,"28,046.53",Aug-23
Slough Borough Council,2871,Cherry Trees Residential Care,M27F,Adult Social Care Operations,Supplies and Services,"2,435.71",Aug-23
Slough Borough Council,2871,Cherry Trees Residential Care,M42F,Adult Social Care Operations,Supplies and Services,"2,491.07",Aug-23
Slough Borough Council,2871,Cherry Trees Residential Care,M42F,Adult Social Care Operations,Supplies and Services,"1,660.71",Aug-23
Slough Borough Council,2871,Cherry Trees Residential Care,M42F,Adult Social Care Operations,Supplies and Services,"2,491.07",Aug-23
Slough Borough Council,807225,Chiltern Way Academy,F551,Children & Families,Supplies and Services,"7,382.08",Aug-23
Slough Borough Council,807225,Chiltern Way Academy,F551,Children & Families,Supplies and Services,"1,845.52",Aug-23
Slough Borough Council,803495,Christchurch Court Ltd,M15D,Adult Social Care Operations,Supplies and Services,"9,214.35",Aug-23
Slough Borough Council,807491,Cippenham School,E620,Children & Families,Supplies and Services,"19,296.23",Aug-23
Slough Borough Council,807491,Cippenham School,B297,Finance & Commercial,Government Grants,"13,478.40",Aug-23
Slough Borough Council,807491,Cippenham School,B297,Finance & Commercial,Government Grants,"14,198.40",Aug-23
Slough Borough Council,807491,Cippenham School,B297,Finance & Commercial,Government Grants,"2,120.62",Aug-23
Slough Borough Council,806550,City Homecare Ltd,A07R,Adult Social Care Operations,Supplies and Services,840.00,Aug-23
Slough Borough Council,806550,City Homecare Ltd,M44C,Adult Social Care Operations,Supplies and Services,682.50,Aug-23
Slough Borough Council,806550,City Homecare Ltd,M44C,Adult Social Care Operations,Supplies and Services,857.50,Aug-23
Slough Borough Council,806550,City Homecare Ltd,M44C,Adult Social Care Operations,Supplies and Services,"1,102.50",Aug-23
Slough Borough Council,806550,City Homecare Ltd,M44C,Adult Social Care Operations,Supplies and Services,857.50,Aug-23
Slough Borough Council,806550,City Homecare Ltd,M44C,Adult Social Care Operations,Supplies and Services,612.50,Aug-23
Slough Borough Council,806550,City Homecare Ltd,M44C,Adult Social Care Operations,Supplies and Services,"1,225.00",Aug-23
Slough Borough Council,806550,City Homecare Ltd,M44C,Adult Social Care Operations,Supplies and Services,"1,715.00",Aug-23
Slough Borough Council,806550,City Homecare Ltd,M44C,Adult Social Care Operations,Supplies and Services,735.00,Aug-23
Slough Borough Council,806550,City Homecare Ltd,M44C,Adult Social Care Operations,Supplies and Services,612.50,Aug-23
Slough Borough Council,806550,City Homecare Ltd,M44C,Adult Social Care Operations,Supplies and Services,"1,960.00",Aug-23
Slough Borough Council,806550,City Homecare Ltd,M44C,Adult Social Care Operations,Supplies and Services,612.50,Aug-23
Slough Borough Council,806550,City Homecare Ltd,M44C,Adult Social Care Operations,Supplies and Services,"2,345.00",Aug-23
Slough Borough Council,806550,City Homecare Ltd,M44C,Adult Social Care Operations,Supplies and Services,892.50,Aug-23
Slough Borough Council,806550,City Homecare Ltd,M44C,Adult Social Care Operations,Supplies and Services,"1,715.00",Aug-23
Slough Borough Council,806550,City Homecare Ltd,M44C,Adult Social Care Operations,Supplies and Services,"1,225.00",Aug-23
Slough Borough Council,806550,City Homecare Ltd,M44C,Adult Social Care Operations,Supplies and Services,980.00,Aug-23
Slough Borough Council,806550,City Homecare Ltd,M44C,Adult Social Care Operations,Supplies and Services,612.50,Aug-23
Slough Borough Council,806550,City Homecare Ltd,M44C,Adult Social Care Operations,Supplies and Services,"1,102.50",Aug-23
Slough Borough Council,806550,City Homecare Ltd,M44C,Adult Social Care Operations,Supplies and Services,735.00,Aug-23
Slough Borough Council,806550,City Homecare Ltd,M44C,Adult Social Care Operations,Supplies and Services,"1,063.12",Aug-23
Slough Borough Council,806550,City Homecare Ltd,M44C,Adult Social Care Operations,Supplies and Services,"1,128.75",Aug-23
Slough Borough Council,806550,City Homecare Ltd,M44C,Adult Social Care Operations,Supplies and Services,"1,960.00",Aug-23
Slough Borough Council,806550,City Homecare Ltd,M44C,Adult Social Care Operations,Supplies and Services,525.00,Aug-23
Slough Borough Council,806550,City Homecare Ltd,M44C,Adult Social Care Operations,Supplies and Services,"1,225.00",Aug-23
Slough Borough Council,806550,City Homecare Ltd,M44C,Adult Social Care Operations,Supplies and Services,"1,820.00",Aug-23
Slough Borough Council,806550,City Homecare Ltd,M44C,Adult Social Care Operations,Supplies and Services,599.38,Aug-23
Slough Borough Council,806550,City Homecare Ltd,M44C,Adult Social Care Operations,Supplies and Services,"1,470.00",Aug-23
Slough Borough Council,806550,City Homecare Ltd,M44C,Adult Social Care Operations,Supplies and Services,"1,102.50",Aug-23
Slough Borough Council,806550,City Homecare Ltd,M44C,Adult Social Care Operations,Supplies and Services,735.00,Aug-23
Slough Borough Council,806550,City Homecare Ltd,M44C,Adult Social Care Operations,Supplies and Services,"1,347.50",Aug-23
Slough Borough Council,806550,City Homecare Ltd,M44C,Adult Social Care Operations,Supplies and Services,945.00,Aug-23
Slough Borough Council,806550,City Homecare Ltd,M44D,Adult Social Care Operations,Supplies and Services,"2,940.00",Aug-23
Slough Borough Council,806550,City Homecare Ltd,M44D,Adult Social Care Operations,Supplies and Services,735.00,Aug-23
Slough Borough Council,806550,City Homecare Ltd,M44D,Adult Social Care Operations,Supplies and Services,980.00,Aug-23
Slough Borough Council,806550,City Homecare Ltd,M44D,Adult Social Care Operations,Supplies and Services,"1,960.00",Aug-23
Slough Borough Council,806550,City Homecare Ltd,M44D,Adult Social Care Operations,Supplies and Services,910.00,Aug-23
Slough Borough Council,806550,City Homecare Ltd,M44D,Adult Social Care Operations,Supplies and Services,726.25,Aug-23
Slough Borough Council,806550,City Homecare Ltd,M44D,Adult Social Care Operations,Supplies and Services,717.50,Aug-23
Slough Borough Council,806550,City Homecare Ltd,M44D,Adult Social Care Operations,Supplies and Services,525.00,Aug-23
Slough Borough Council,806550,City Homecare Ltd,M44E,Adult Social Care Operations,Supplies and Services,735.00,Aug-23
Slough Borough Council,806550,City Homecare Ltd,M44F,Adult Social Care Operations,Supplies and Services,840.00,Aug-23
Slough Borough Council,806550,City Homecare Ltd,M44F,Adult Social Care Operations,Supplies and Services,665.00,Aug-23
Slough Borough Council,806550,City Homecare Ltd,M44F,Adult Social Care Operations,Supplies and Services,"1,540.00",Aug-23
Slough Borough Council,806550,City Homecare Ltd,M45C,Adult Social Care Operations,Supplies and Services,735.00,Aug-23
Slough Borough Council,806550,City Homecare Ltd,M45C,Adult Social Care Operations,Supplies and Services,"2,205.00",Aug-23
Slough Borough Council,806550,City Homecare Ltd,M45C,Adult Social Care Operations,Supplies and Services,"2,275.00",Aug-23
Slough Borough Council,806550,City Homecare Ltd,M45C,Adult Social Care Operations,Supplies and Services,"1,001.88",Aug-23
Slough Borough Council,806550,City Homecare Ltd,M45C,Adult Social Care Operations,Supplies and Services,980.00,Aug-23
Slough Borough Council,806550,City Homecare Ltd,M45C,Adult Social Care Operations,Supplies and Services,516.25,Aug-23
Slough Borough Council,806550,City Homecare Ltd,M45C,Adult Social Care Operations,Supplies and Services,857.50,Aug-23
Slough Borough Council,806550,City Homecare Ltd,M45C,Adult Social Care Operations,Supplies and Services,"1,102.50",Aug-23
Slough Borough Council,806550,City Homecare Ltd,M45C,Adult Social Care Operations,Supplies and Services,577.50,Aug-23
Slough Borough Council,806550,City Homecare Ltd,M48C,Adult Social Care Operations,Supplies and Services,857.50,Aug-23
Slough Borough Council,806550,City Homecare Ltd,M48C,Adult Social Care Operations,Supplies and Services,857.50,Aug-23
Slough Borough Council,806550,City Homecare Ltd,M48C,Adult Social Care Operations,Supplies and Services,612.50,Aug-23
Slough Borough Council,806550,City Homecare Ltd,M48C,Adult Social Care Operations,Supplies and Services,577.50,Aug-23
Slough Borough Council,1083,Civica Uk Limited,B282,Digital and Strategic IT,Supplies and Services,"38,376.66",Aug-23
Slough Borough Council,1083,Civica Uk Limited,B342,Digital and Strategic IT,Supplies and Services,"13,617.83",Aug-23
Slough Borough Council,1083,Civica Uk Limited,H015,Finance & Commercial,Supplies and Services,"2,704.08",Aug-23
Slough Borough Council,1151,Claycots Primary School,E200,Children & Families,Supplies and Services,"791,136.69",Aug-23
Slough Borough Council,3685,Coghlan Lodges Limited,M44D,Adult Social Care Operations,Supplies and Services,"2,116.04",Aug-23
Slough Borough Council,3685,Coghlan Lodges Limited,M44F,Adult Social Care Operations,Supplies and Services,"1,870.00",Aug-23
Slough Borough Council,805823,Collaborative Care Solutions,M42E,Adult Social Care Operations,Supplies and Services,"9,211.42",Aug-23
Slough Borough Council,805823,Collaborative Care Solutions,M42F,Adult Social Care Operations,Supplies and Services,"2,971.57",Aug-23
Slough Borough Council,805823,Collaborative Care Solutions,M44D,Adult Social Care Operations,Supplies and Services,"9,211.42",Aug-23
Slough Borough Council,805823,Collaborative Care Solutions,M44F,Adult Social Care Operations,Supplies and Services,"4,982.14",Aug-23
Slough Borough Council,805823,Collaborative Care Solutions,M44F,Adult Social Care Operations,Supplies and Services,"4,317.85",Aug-23
Slough Borough Council,809066,College of West Anglia,F558,Children & Families,Supplies and Services,"11,300.00",Aug-23
Slough Borough Council,459,Colliers Cre,J006,Place Management,Supplies and Services,"3,666.67",Aug-23
Slough Borough Council,286,Colnbrook C Of E Primary School,E620,Children & Families,Supplies and Services,"21,273.34",Aug-23
Slough Borough Council,2535,Comfort Care Services,M42E,Adult Social Care Operations,Supplies and Services,964.54,Aug-23
Slough Borough Council,2535,Comfort Care Services,M42E,Adult Social Care Operations,Supplies and Services,"5,114.92",Aug-23
Slough Borough Council,2535,Comfort Care Services,M42E,Adult Social Care Operations,Supplies and Services,554.19,Aug-23
Slough Borough Council,2535,Comfort Care Services,M42E,Adult Social Care Operations,Supplies and Services,"2,564.81",Aug-23
Slough Borough Council,2535,Comfort Care Services,M42E,Adult Social Care Operations,Supplies and Services,"1,538.88",Aug-23
Slough Borough Council,2535,Comfort Care Services,M42E,Adult Social Care Operations,Supplies and Services,"2,448.20",Aug-23
Slough Borough Council,2535,Comfort Care Services,M42E,Adult Social Care Operations,Supplies and Services,"1,165.82",Aug-23
Slough Borough Council,2535,Comfort Care Services,M42E,Adult Social Care Operations,Supplies and Services,"2,325.00",Aug-23
Slough Borough Council,2535,Comfort Care Services,M42E,Adult Social Care Operations,Supplies and Services,"2,635.00",Aug-23
Slough Borough Council,2535,Comfort Care Services,M42E,Adult Social Care Operations,Supplies and Services,"1,165.82",Aug-23
Slough Borough Council,2535,Comfort Care Services,M42F,Adult Social Care Operations,Supplies and Services,"1,632.15",Aug-23
Slough Borough Council,2535,Comfort Care Services,M42F,Adult Social Care Operations,Supplies and Services,"1,300.80",Aug-23
Slough Borough Council,2535,Comfort Care Services,M42F,Adult Social Care Operations,Supplies and Services,"2,635.00",Aug-23
Slough Borough Council,2535,Comfort Care Services,M42F,Adult Social Care Operations,Supplies and Services,"3,474.21",Aug-23
Slough Borough Council,2535,Comfort Care Services,M42F,Adult Social Care Operations,Supplies and Services,"2,635.00",Aug-23
Slough Borough Council,2535,Comfort Care Services,M42F,Adult Social Care Operations,Supplies and Services,"3,893.82",Aug-23
Slough Borough Council,2535,Comfort Care Services,M42F,Adult Social Care Operations,Supplies and Services,"1,749.29",Aug-23
Slough Borough Council,2535,Comfort Care Services,M42F,Adult Social Care Operations,Supplies and Services,839.21,Aug-23
Slough Borough Council,2535,Comfort Care Services,M42F,Adult Social Care Operations,Supplies and Services,839.21,Aug-23
Slough Borough Council,2535,Comfort Care Services,M42F,Adult Social Care Operations,Supplies and Services,839.21,Aug-23
Slough Borough Council,2535,Comfort Care Services,M42F,Adult Social Care Operations,Supplies and Services,"2,635.00",Aug-23
Slough Borough Council,2535,Comfort Care Services,M42F,Adult Social Care Operations,Supplies and Services,839.21,Aug-23
Slough Borough Council,2535,Comfort Care Services,M42F,Adult Social Care Operations,Supplies and Services,"1,007.06",Aug-23
Slough Borough Council,2535,Comfort Care Services,M42F,Adult Social Care Operations,Supplies and Services,"1,477.99",Aug-23
Slough Borough Council,2535,Comfort Care Services,M44C,Adult Social Care Operations,Supplies and Services,"3,357.48",Aug-23
Slough Borough Council,2535,Comfort Care Services,M44E,Adult Social Care Operations,Supplies and Services,"2,080.59",Aug-23
Slough Borough Council,2535,Comfort Care Services,M44E,Adult Social Care Operations,Supplies and Services,"4,461.56",Aug-23
Slough Borough Council,2535,Comfort Care Services,M44F,Adult Social Care Operations,Supplies and Services,"3,105.71",Aug-23
Slough Borough Council,2535,Comfort Care Services,M44F,Adult Social Care Operations,Supplies and Services,"3,310.93",Aug-23
Slough Borough Council,2535,Comfort Care Services,M44F,Adult Social Care Operations,Supplies and Services,"1,888.26",Aug-23
Slough Borough Council,2535,Comfort Care Services,M44F,Adult Social Care Operations,Supplies and Services,"1,317.50",Aug-23
Slough Borough Council,2535,Comfort Care Services,M44F,Adult Social Care Operations,Supplies and Services,"3,474.21",Aug-23
Slough Borough Council,2535,Comfort Care Services,M44F,Adult Social Care Operations,Supplies and Services,"2,121.80",Aug-23
Slough Borough Council,2535,Comfort Care Services,M44F,Adult Social Care Operations,Supplies and Services,"2,635.00",Aug-23
Slough Borough Council,2535,Comfort Care Services,M44F,Adult Social Care Operations,Supplies and Services,"1,317.50",Aug-23
Slough Borough Council,2535,Comfort Care Services,M44F,Adult Social Care Operations,Supplies and Services,"2,937.87",Aug-23
Slough Borough Council,2535,Comfort Care Services,M44F,Adult Social Care Operations,Supplies and Services,"2,937.87",Aug-23
Slough Borough Council,2535,Comfort Care Services,M44F,Adult Social Care Operations,Supplies and Services,"2,937.87",Aug-23
Slough Borough Council,2535,Comfort Care Services,M44F,Adult Social Care Operations,Supplies and Services,"1,165.82",Aug-23
Slough Borough Council,2535,Comfort Care Services,M81D,Adult Social Care Operations,Supplies and Services,"2,635.00",Aug-23
Slough Borough Council,2585,Comitted Care Services Limited,M26E,Adult Social Care Operations,Supplies and Services,"6,308.77",Aug-23
Slough Borough Council,2585,Comitted Care Services Limited,M26E,Adult Social Care Operations,Supplies and Services,"6,572.27",Aug-23
Slough Borough Council,2585,Comitted Care Services Limited,M26E,Adult Social Care Operations,Supplies and Services,"6,561.18",Aug-23
Slough Borough Council,2585,Comitted Care Services Limited,M26E,Adult Social Care Operations,Supplies and Services,"1,714.36",Aug-23
Slough Borough Council,2585,Comitted Care Services Limited,M26E,Adult Social Care Operations,Supplies and Services,"1,827.74",Aug-23
Slough Borough Council,2585,Comitted Care Services Limited,M42E,Adult Social Care Operations,Supplies and Services,"2,150.40",Aug-23
Slough Borough Council,2585,Comitted Care Services Limited,M42E,Adult Social Care Operations,Supplies and Services,"1,985.48",Aug-23
Slough Borough Council,2585,Comitted Care Services Limited,M26E,Adult Social Care Operations,External Receipts,-510.44,Aug-23
Slough Borough Council,804912,CommuniKate Ltd,M22D,Adult Social Care Operations,Supplies and Services,761.75,Aug-23
Slough Borough Council,804912,CommuniKate Ltd,M22D,Adult Social Care Operations,Supplies and Services,761.75,Aug-23
Slough Borough Council,804912,CommuniKate Ltd,M22D,Adult Social Care Operations,Supplies and Services,761.75,Aug-23
Slough Borough Council,3840,Community Housing And Therapy,M80F,Adult Social Care Operations,Supplies and Services,"2,615.51",Aug-23
Slough Borough Council,807005,Complete Background Screening Ltd,B348,People,Supplies and Services,730.00,Aug-23
Slough Borough Council,807005,Complete Background Screening Ltd,B348,People,Supplies and Services,"1,536.00",Aug-23
Slough Borough Council,806122,Compliance365,P242,Capital,Capital Charges,"3,400.00",Aug-23
Slough Borough Council,1772,Computershare Voucher Services,B348,People,Supplies and Services,"1,958.00",Aug-23
Slough Borough Council,1772,Computershare Voucher Services,B348,People,Supplies and Services,"1,958.00",Aug-23
Slough Borough Council,1480,Corona Energy Limited,B668,Business Services,Premises,"10,582.17",Aug-23
Slough Borough Council,1480,Corona Energy Limited,B668,Business Services,Premises,"5,016.87",Aug-23
Slough Borough Council,805278,Countrystyle Recycling Ltd,D342,Place Operations,Supplies and Services,"5,540.00",Aug-23
Slough Borough Council,805278,Countrystyle Recycling Ltd,D342,Place Operations,Supplies and Services,"2,770.00",Aug-23
Slough Borough Council,805278,Countrystyle Recycling Ltd,D342,Place Operations,Supplies and Services,"2,619.40",Aug-23
Slough Borough Council,3670,Craegmoor Birches Grove Priory,M27F,Adult Social Care Operations,Supplies and Services,"4,079.00",Aug-23
Slough Borough Council,3670,Craegmoor Birches Grove Priory,M27F,Adult Social Care Operations,Supplies and Services,"2,122.92",Aug-23
Slough Borough Council,1638,Creative Support Ltd,A02F,Adult Social Care Operations,Supplies and Services,"32,487.91",Aug-23
Slough Borough Council,1638,Creative Support Ltd,A02F,Adult Social Care Operations,Supplies and Services,"33,915.95",Aug-23
Slough Borough Council,1638,Creative Support Ltd,A02F,Adult Social Care Operations,Supplies and Services,"33,934.74",Aug-23
Slough Borough Council,1638,Creative Support Ltd,A02F,Adult Social Care Operations,Supplies and Services,"32,356.38",Aug-23
Slough Borough Council,1638,Creative Support Ltd,A02F,Adult Social Care Operations,Supplies and Services,"32,356.38",Aug-23
Slough Borough Council,1638,Creative Support Ltd,A02F,Adult Social Care Operations,Supplies and Services,"33,934.74",Aug-23
Slough Borough Council,1638,Creative Support Ltd,A02F,Adult Social Care Operations,Supplies and Services,"32,356.38",Aug-23
Slough Borough Council,1638,Creative Support Ltd,A02F,Adult Social Care Operations,Supplies and Services,"32,356.38",Aug-23
Slough Borough Council,1638,Creative Support Ltd,A02L,Adult Social Care Operations,Supplies and Services,599.40,Aug-23
Slough Borough Council,1638,Creative Support Ltd,A02L,Adult Social Care Operations,Supplies and Services,"1,365.30",Aug-23
Slough Borough Council,1638,Creative Support Ltd,A02L,Adult Social Care Operations,Supplies and Services,599.40,Aug-23
Slough Borough Council,1638,Creative Support Ltd,A02L,Adult Social Care Operations,Supplies and Services,"1,365.30",Aug-23
Slough Borough Council,1638,Creative Support Ltd,A02L,Adult Social Care Operations,Supplies and Services,"1,065.60",Aug-23
Slough Borough Council,1638,Creative Support Ltd,A02L,Adult Social Care Operations,Supplies and Services,"1,365.30",Aug-23
Slough Borough Council,1638,Creative Support Ltd,A02L,Adult Social Care Operations,Supplies and Services,"1,065.60",Aug-23
Slough Borough Council,1638,Creative Support Ltd,A02L,Adult Social Care Operations,Supplies and Services,"1,365.30",Aug-23
Slough Borough Council,1638,Creative Support Ltd,A02L,Adult Social Care Operations,Supplies and Services,"1,431.90",Aug-23
Slough Borough Council,1638,Creative Support Ltd,A02L,Adult Social Care Operations,Supplies and Services,"1,565.10",Aug-23
Slough Borough Council,1638,Creative Support Ltd,A02L,Adult Social Care Operations,Supplies and Services,"1,165.50",Aug-23
Slough Borough Council,1638,Creative Support Ltd,M42E,Adult Social Care Operations,Supplies and Services,"1,165.50",Aug-23
Slough Borough Council,1638,Creative Support Ltd,M42E,Adult Social Care Operations,Supplies and Services,"3,013.65",Aug-23
Slough Borough Council,1638,Creative Support Ltd,M42E,Adult Social Care Operations,Supplies and Services,"3,013.65",Aug-23
Slough Borough Council,1638,Creative Support Ltd,M42E,Adult Social Care Operations,Supplies and Services,"1,431.90",Aug-23
Slough Borough Council,1638,Creative Support Ltd,M42E,Adult Social Care Operations,Supplies and Services,"1,431.90",Aug-23
Slough Borough Council,1638,Creative Support Ltd,M42E,Adult Social Care Operations,Supplies and Services,"1,431.90",Aug-23
Slough Borough Council,1638,Creative Support Ltd,M42E,Adult Social Care Operations,Supplies and Services,"1,431.90",Aug-23
Slough Borough Council,1638,Creative Support Ltd,M42E,Adult Social Care Operations,Supplies and Services,"1,431.90",Aug-23
Slough Borough Council,1638,Creative Support Ltd,M42E,Adult Social Care Operations,Supplies and Services,"1,198.80",Aug-23
Slough Borough Council,1638,Creative Support Ltd,M42E,Adult Social Care Operations,Supplies and Services,"2,214.45",Aug-23
Slough Borough Council,1638,Creative Support Ltd,M42E,Adult Social Care Operations,Supplies and Services,"1,182.15",Aug-23
Slough Borough Council,1638,Creative Support Ltd,M42E,Adult Social Care Operations,Supplies and Services,"1,182.15",Aug-23
Slough Borough Council,1638,Creative Support Ltd,M42E,Adult Social Care Operations,Supplies and Services,"2,214.45",Aug-23
Slough Borough Council,1638,Creative Support Ltd,M42E,Adult Social Care Operations,Supplies and Services,821.18,Aug-23
Slough Borough Council,1638,Creative Support Ltd,M42E,Adult Social Care Operations,Supplies and Services,"1,182.15",Aug-23
Slough Borough Council,1638,Creative Support Ltd,M42E,Adult Social Care Operations,Supplies and Services,"1,830.07",Aug-23
Slough Borough Council,1638,Creative Support Ltd,M42E,Adult Social Care Operations,Supplies and Services,821.18,Aug-23
Slough Borough Council,1638,Creative Support Ltd,M42E,Adult Social Care Operations,Supplies and Services,"1,182.15",Aug-23
Slough Borough Council,1638,Creative Support Ltd,M42E,Adult Social Care Operations,Supplies and Services,566.86,Aug-23
Slough Borough Council,1638,Creative Support Ltd,M42E,Adult Social Care Operations,Supplies and Services,"1,198.80",Aug-23
Slough Borough Council,1638,Creative Support Ltd,M42E,Adult Social Care Operations,Supplies and Services,566.86,Aug-23
Slough Borough Council,1638,Creative Support Ltd,M44C,Adult Social Care Operations,Supplies and Services,899.10,Aug-23
Slough Borough Council,1638,Creative Support Ltd,M44C,Adult Social Care Operations,Supplies and Services,599.40,Aug-23
Slough Borough Council,1638,Creative Support Ltd,M44C,Adult Social Care Operations,Supplies and Services,599.40,Aug-23
Slough Borough Council,1638,Creative Support Ltd,M44C,Adult Social Care Operations,Supplies and Services,599.40,Aug-23
Slough Borough Council,1638,Creative Support Ltd,M44C,Adult Social Care Operations,Supplies and Services,599.40,Aug-23
Slough Borough Council,1638,Creative Support Ltd,M44C,Adult Social Care Operations,Supplies and Services,599.40,Aug-23
Slough Borough Council,1638,Creative Support Ltd,M44C,Adult Social Care Operations,Supplies and Services,599.40,Aug-23
Slough Borough Council,1638,Creative Support Ltd,M44C,Adult Social Care Operations,Supplies and Services,599.40,Aug-23
Slough Borough Council,1638,Creative Support Ltd,M44C,Adult Social Care Operations,Supplies and Services,599.40,Aug-23
Slough Borough Council,1638,Creative Support Ltd,M44E,Adult Social Care Operations,Supplies and Services,699.30,Aug-23
Slough Borough Council,1638,Creative Support Ltd,M44E,Adult Social Care Operations,Supplies and Services,957.38,Aug-23
Slough Borough Council,1638,Creative Support Ltd,M44E,Adult Social Care Operations,Supplies and Services,699.30,Aug-23
Slough Borough Council,1638,Creative Support Ltd,M44E,Adult Social Care Operations,Supplies and Services,699.30,Aug-23
Slough Borough Council,1638,Creative Support Ltd,M44E,Adult Social Care Operations,Supplies and Services,"1,143.86",Aug-23
Slough Borough Council,1638,Creative Support Ltd,M44E,Adult Social Care Operations,Supplies and Services,999.00,Aug-23
Slough Borough Council,1638,Creative Support Ltd,M44E,Adult Social Care Operations,Supplies and Services,932.40,Aug-23
Slough Borough Council,1638,Creative Support Ltd,M44E,Adult Social Care Operations,Supplies and Services,932.40,Aug-23
Slough Borough Council,1638,Creative Support Ltd,M44E,Adult Social Care Operations,Supplies and Services,999.00,Aug-23
Slough Borough Council,1638,Creative Support Ltd,M44E,Adult Social Care Operations,Supplies and Services,953.81,Aug-23
Slough Borough Council,1638,Creative Support Ltd,M44E,Adult Social Care Operations,Supplies and Services,999.00,Aug-23
Slough Borough Council,1638,Creative Support Ltd,M44E,Adult Social Care Operations,Supplies and Services,999.00,Aug-23
Slough Borough Council,1638,Creative Support Ltd,M44E,Adult Social Care Operations,Supplies and Services,"1,465.20",Aug-23
Slough Borough Council,1638,Creative Support Ltd,M44E,Adult Social Care Operations,Supplies and Services,"1,215.45",Aug-23
Slough Borough Council,1638,Creative Support Ltd,M44E,Adult Social Care Operations,Supplies and Services,932.40,Aug-23
Slough Borough Council,1638,Creative Support Ltd,M44E,Adult Social Care Operations,Supplies and Services,"1,332.00",Aug-23
Slough Borough Council,1638,Creative Support Ltd,M44E,Adult Social Care Operations,Supplies and Services,999.00,Aug-23
Slough Borough Council,1638,Creative Support Ltd,M44E,Adult Social Care Operations,Supplies and Services,932.40,Aug-23
Slough Borough Council,1638,Creative Support Ltd,M44F,Adult Social Care Operations,Supplies and Services,"1,032.30",Aug-23
Slough Borough Council,806983,Critiqom,H020,Finance & Commercial,Supplies and Services,"3,186.42",Aug-23
Slough Borough Council,806983,Critiqom,H020,Finance & Commercial,Supplies and Services,"1,888.83",Aug-23
Slough Borough Council,806983,Critiqom,H020,Finance & Commercial,Supplies and Services,581.22,Aug-23
Slough Borough Council,806983,Critiqom,H020,Finance & Commercial,Supplies and Services,"1,136.59",Aug-23
Slough Borough Council,806983,Critiqom,H020,Finance & Commercial,Supplies and Services,533.50,Aug-23
Slough Borough Council,806983,Critiqom,H020,Finance & Commercial,Supplies and Services,"1,410.78",Aug-23
Slough Borough Council,808383,Croft Brothers UK Limited,M50A,Place Operations,Transport,607.09,Aug-23
Slough Borough Council,808853,Crown Hosting Data Centres Limited,B282,Digital and Strategic IT,Supplies and Services,"6,753.04",Aug-23
Slough Borough Council,806063,Cruise Minibuses Ltd,F123,Education & Inclusion,External Receipts,"2,625.00",Aug-23
Slough Borough Council,804319,Culturemix Arts Ltd,F253,Children & Families,Agency Staff,875.00,Aug-23
Slough Borough Council,808775,Danescroft Consultants Ltd,A01D,People Adults,Agency Staff,"3,825.00",Aug-23
Slough Borough Council,807288,David Allwood,C322,Community,Supplies and Services,"2,039.00",Aug-23
Slough Borough Council,804573,Deborah Bishop,C322,Community,Supplies and Services,"3,083.03",Aug-23
Slough Borough Council,808612,Delta 4 Services Ltd,B377,Finance & Commercial,Supplies and Services,"8,333.33",Aug-23
Slough Borough Council,808612,Delta 4 Services Ltd,B377,Finance & Commercial,Supplies and Services,"11,666.66",Aug-23
Slough Borough Council,808933,Denhan International Limited,H205,Housing (People) Services,Supplies and Services,"11,135.00",Aug-23
Slough Borough Council,808933,Denhan International Limited,H205,Housing (People) Services,Supplies and Services,"3,970.00",Aug-23
Slough Borough Council,808933,Denhan International Limited,H205,Housing (People) Services,Supplies and Services,"1,610.00",Aug-23
Slough Borough Council,3554,Dimensions (Uk) Ltd,M42E,Adult Social Care Operations,Supplies and Services,"6,999.13",Aug-23
Slough Borough Council,3554,Dimensions (Uk) Ltd,M42E,Adult Social Care Operations,Supplies and Services,"8,698.24",Aug-23
Slough Borough Council,805483,Direct Tyre Managenent Ltd,D610,Place Operations,Transport,"3,266.16",Aug-23
Slough Borough Council,805483,Direct Tyre Managenent Ltd,D620,Place Operations,Transport,"1,936.22",Aug-23
Slough Borough Council,805483,Direct Tyre Managenent Ltd,D750,Place Operations,Transport,785.79,Aug-23
Slough Borough Council,803306,Ditton Park Academy,E620,Children & Families,Supplies and Services,"32,375.00",Aug-23
Slough Borough Council,803306,Ditton Park Academy,B297,Finance & Commercial,Government Grants,"17,370.00",Aug-23
Slough Borough Council,1457,Dr Norman Gordon,D320,Place Operations,Premises,"1,301.18",Aug-23
Slough Borough Council,808794,DREAMS HOTEL LTD,H205,Housing (People) Services,Supplies and Services,"33,341.67",Aug-23
Slough Borough Council,808794,DREAMS HOTEL LTD,H205,Housing (People) Services,Supplies and Services,"27,941.67",Aug-23
Slough Borough Council,808794,DREAMS HOTEL LTD,H205,Housing (People) Services,Supplies and Services,"31,850.00",Aug-23
Slough Borough Council,808505,Dresgef Services Limited,F382,Children & Families,Supplies and Services,"10,000.00",Aug-23
Slough Borough Council,808723,E.ON Control Solutions,B060,Business Services,Premises,510.00,Aug-23
Slough Borough Council,803177,Early Steps Preschool,F909,Children & Families,Supplies and Services,"7,975.45",Aug-23
Slough Borough Council,780,East Sussex County Council,A01D,People Adults,Salaries and Wages-Employees Expenses,"5,500.00",Aug-23
Slough Borough Council,780,East Sussex County Council,F551,Children & Families,Supplies and Services,"9,592.44",Aug-23
Slough Borough Council,803301,Eden Girls School,E610,Children & Families,Supplies and Services,"5,125.00",Aug-23
Slough Borough Council,1299,Edf Energy,B668,Business Services,Premises,"100,215.03",Aug-23
Slough Borough Council,1299,Edf Energy,B668,Business Services,Premises,"52,769.30",Aug-23
Slough Borough Council,2159,Edge Training And Consultancy Ltd,A01D,People Adults,Supplies and Services,"2,625.00",Aug-23
Slough Borough Council,807001,Elegant Care Services Ltd,M42E,Adult Social Care Operations,Supplies and Services,"5,987.42",Aug-23
Slough Borough Council,807001,Elegant Care Services Ltd,M42E,Adult Social Care Operations,Supplies and Services,"6,217.71",Aug-23
Slough Borough Council,807001,Elegant Care Services Ltd,M42E,Adult Social Care Operations,Supplies and Services,"10,185.71",Aug-23
Slough Borough Council,807001,Elegant Care Services Ltd,M44C,Adult Social Care Operations,Supplies and Services,"7,023.71",Aug-23
Slough Borough Council,806355,Elysium Healthcare,M26E,Adult Social Care Operations,Supplies and Services,"11,044.68",Aug-23
Slough Borough Council,806355,Elysium Healthcare,M26E,Adult Social Care Operations,Supplies and Services,"9,576.52",Aug-23
Slough Borough Council,3752,Endurance Health,A07R,Adult Social Care Operations,Supplies and Services,"1,221.74",Aug-23
Slough Borough Council,3752,Endurance Health,A07R,Adult Social Care Operations,Supplies and Services,610.70,Aug-23
Slough Borough Council,3752,Endurance Health,M44C,Adult Social Care Operations,Supplies and Services,"2,518.74",Aug-23
Slough Borough Council,3752,Endurance Health,M44C,Adult Social Care Operations,Supplies and Services,631.02,Aug-23
Slough Borough Council,3752,Endurance Health,M44C,Adult Social Care Operations,Supplies and Services,"1,216.39",Aug-23
Slough Borough Council,3752,Endurance Health,M44C,Adult Social Care Operations,Supplies and Services,708.65,Aug-23
Slough Borough Council,3752,Endurance Health,M44C,Adult Social Care Operations,Supplies and Services,"1,363.67",Aug-23
Slough Borough Council,3752,Endurance Health,M44C,Adult Social Care Operations,Supplies and Services,948.87,Aug-23
Slough Borough Council,3752,Endurance Health,M44C,Adult Social Care Operations,Supplies and Services,"1,959.02",Aug-23
Slough Borough Council,3752,Endurance Health,M44C,Adult Social Care Operations,Supplies and Services,"1,319.34",Aug-23
Slough Borough Council,3752,Endurance Health,M44C,Adult Social Care Operations,Supplies and Services,798.27,Aug-23
Slough Borough Council,3752,Endurance Health,M44C,Adult Social Care Operations,Supplies and Services,"1,059.47",Aug-23
Slough Borough Council,3752,Endurance Health,M44C,Adult Social Care Operations,Supplies and Services,"1,119.44",Aug-23
Slough Borough Council,3752,Endurance Health,M44C,Adult Social Care Operations,Supplies and Services,"1,259.37",Aug-23
Slough Borough Council,3752,Endurance Health,M44C,Adult Social Care Operations,Supplies and Services,"1,119.44",Aug-23
Slough Borough Council,3752,Endurance Health,M44C,Adult Social Care Operations,Supplies and Services,"1,242.06",Aug-23
Slough Borough Council,3752,Endurance Health,M44C,Adult Social Care Operations,Supplies and Services,559.05,Aug-23
Slough Borough Council,3752,Endurance Health,M44C,Adult Social Care Operations,Supplies and Services,"2,518.74",Aug-23
Slough Borough Council,3752,Endurance Health,M44C,Adult Social Care Operations,Supplies and Services,"1,456.61",Aug-23
Slough Borough Council,3752,Endurance Health,M44C,Adult Social Care Operations,Supplies and Services,"1,258.71",Aug-23
Slough Borough Council,3752,Endurance Health,M44C,Adult Social Care Operations,Supplies and Services,"1,419.29",Aug-23
Slough Borough Council,3752,Endurance Health,M44C,Adult Social Care Operations,Supplies and Services,694.33,Aug-23
Slough Borough Council,3752,Endurance Health,M44C,Adult Social Care Operations,Supplies and Services,917.88,Aug-23
Slough Borough Council,3752,Endurance Health,M44C,Adult Social Care Operations,Supplies and Services,656.81,Aug-23
Slough Borough Council,3752,Endurance Health,M44C,Adult Social Care Operations,Supplies and Services,"3,307.06",Aug-23
Slough Borough Council,3752,Endurance Health,M44C,Adult Social Care Operations,Supplies and Services,699.65,Aug-23
Slough Borough Council,3752,Endurance Health,M44C,Adult Social Care Operations,Supplies and Services,979.51,Aug-23
Slough Borough Council,3752,Endurance Health,M44C,Adult Social Care Operations,Supplies and Services,699.65,Aug-23
Slough Borough Council,3752,Endurance Health,M44C,Adult Social Care Operations,Supplies and Services,"1,959.02",Aug-23
Slough Borough Council,3752,Endurance Health,M44C,Adult Social Care Operations,Supplies and Services,679.66,Aug-23
Slough Borough Council,3752,Endurance Health,M44C,Adult Social Care Operations,Supplies and Services,588.38,Aug-23
Slough Borough Council,3752,Endurance Health,M44C,Adult Social Care Operations,Supplies and Services,838.58,Aug-23
Slough Borough Council,3752,Endurance Health,M44D,Adult Social Care Operations,Supplies and Services,968.53,Aug-23
Slough Borough Council,3752,Endurance Health,M44D,Adult Social Care Operations,Supplies and Services,"1,251.38",Aug-23
Slough Borough Council,3752,Endurance Health,M44D,Adult Social Care Operations,Supplies and Services,"1,024.82",Aug-23
Slough Borough Council,3752,Endurance Health,M44D,Adult Social Care Operations,Supplies and Services,"1,941.05",Aug-23
Slough Borough Council,3752,Endurance Health,M44D,Adult Social Care Operations,Supplies and Services,979.51,Aug-23
Slough Borough Council,3752,Endurance Health,M44D,Adult Social Care Operations,Supplies and Services,"2,755.96",Aug-23
Slough Borough Council,3752,Endurance Health,M44D,Adult Social Care Operations,Supplies and Services,"1,219.39",Aug-23
Slough Borough Council,3752,Endurance Health,M44D,Adult Social Care Operations,Supplies and Services,559.72,Aug-23
Slough Borough Council,3752,Endurance Health,M44D,Adult Social Care Operations,Supplies and Services,819.59,Aug-23
Slough Borough Council,3752,Endurance Health,M44F,Adult Social Care Operations,Supplies and Services,644.97,Aug-23
Slough Borough Council,3752,Endurance Health,M45C,Adult Social Care Operations,Supplies and Services,"1,226.73",Aug-23
Slough Borough Council,3752,Endurance Health,M45C,Adult Social Care Operations,Supplies and Services,"2,383.83",Aug-23
Slough Borough Council,3752,Endurance Health,M45C,Adult Social Care Operations,Supplies and Services,"2,772.95",Aug-23
Slough Borough Council,3752,Endurance Health,M48C,Adult Social Care Operations,Supplies and Services,979.51,Aug-23
Slough Borough Council,3752,Endurance Health,M48C,Adult Social Care Operations,Supplies and Services,"1,292.71",Aug-23
Slough Borough Council,805423,Enriched Care,M44F,Adult Social Care Operations,Supplies and Services,"2,879.90",Aug-23
Slough Borough Council,805423,Enriched Care,M80F,Adult Social Care Operations,Supplies and Services,"1,758.01",Aug-23
Slough Borough Council,807310,Enterprise Rent-A-Car UK Limited trading as Enterprise Flex-E-Rent,D620,Place Operations,Transport,"11,306.38",Aug-23
Slough Borough Council,807310,Enterprise Rent-A-Car UK Limited trading as Enterprise Flex-E-Rent,D750,Place Operations,Transport,"11,038.05",Aug-23
Slough Borough Council,807310,Enterprise Rent-A-Car UK Limited trading as Enterprise Flex-E-Rent,D880,Place Operations,Transport,"4,731.45",Aug-23
Slough Borough Council,639,Environment Agency,D458,Place Strategy & Infrastructure,Supplies and Services,"102,067.09",Aug-23
Slough Borough Council,2677,Eton House Residential Home,M25C,Adult Social Care Operations,Supplies and Services,"4,928.57",Aug-23
Slough Borough Council,2677,Eton House Residential Home,M25C,Adult Social Care Operations,Supplies and Services,"3,420.00",Aug-23
Slough Borough Council,2677,Eton House Residential Home,M25D,Adult Social Care Operations,Supplies and Services,"3,096.43",Aug-23
Slough Borough Council,2677,Eton House Residential Home,M27C,Adult Social Care Operations,Supplies and Services,-685.72,Aug-23
Slough Borough Council,2677,Eton House Residential Home,M27C,Adult Social Care Operations,Supplies and Services,"-2,657.14",Aug-23
Slough Borough Council,2677,Eton House Residential Home,M27C,Adult Social Care Operations,Supplies and Services,"3,407.14",Aug-23
Slough Borough Council,2677,Eton House Residential Home,M27C,Adult Social Care Operations,Supplies and Services,"4,928.57",Aug-23
Slough Borough Council,2677,Eton House Residential Home,M27C,Adult Social Care Operations,Supplies and Services,"2,571.43",Aug-23
Slough Borough Council,2677,Eton House Residential Home,M29C,Adult Social Care Operations,Supplies and Services,"-1,137.14",Aug-23
Slough Borough Council,2677,Eton House Residential Home,M29C,Adult Social Care Operations,Supplies and Services,568.57,Aug-23
Slough Borough Council,2677,Eton House Residential Home,M29C,Adult Social Care Operations,Supplies and Services,"4,406.43",Aug-23
Slough Borough Council,2677,Eton House Residential Home,M29C,Adult Social Care Operations,Supplies and Services,"1,137.14",Aug-23
Slough Borough Council,2677,Eton House Residential Home,M29C,Adult Social Care Operations,Supplies and Services,"8,528.57",Aug-23
Slough Borough Council,807198,everyLIFE. Technologies Ltd,A07R,Adult Social Care Operations,Supplies and Services,"1,445.85",Aug-23
Slough Borough Council,806501,Excellent Healthcare Services Ltd,A07R,Adult Social Care Operations,Supplies and Services,833.98,Aug-23
Slough Borough Council,806501,Excellent Healthcare Services Ltd,A07R,Adult Social Care Operations,Supplies and Services,833.98,Aug-23
Slough Borough Council,806501,Excellent Healthcare Services Ltd,M44C,Adult Social Care Operations,Supplies and Services,765.90,Aug-23
Slough Borough Council,806501,Excellent Healthcare Services Ltd,M44C,Adult Social Care Operations,Supplies and Services,"1,191.40",Aug-23
Slough Borough Council,806501,Excellent Healthcare Services Ltd,M44C,Adult Social Care Operations,Supplies and Services,"2,280.68",Aug-23
Slough Borough Council,806501,Excellent Healthcare Services Ltd,M44C,Adult Social Care Operations,Supplies and Services,"1,072.26",Aug-23
Slough Borough Council,806501,Excellent Healthcare Services Ltd,M44C,Adult Social Care Operations,Supplies and Services,833.98,Aug-23
Slough Borough Council,806501,Excellent Healthcare Services Ltd,M44C,Adult Social Care Operations,Supplies and Services,"1,072.26",Aug-23
Slough Borough Council,806501,Excellent Healthcare Services Ltd,M44C,Adult Social Care Operations,Supplies and Services,"1,667.96",Aug-23
Slough Borough Council,806501,Excellent Healthcare Services Ltd,M44C,Adult Social Care Operations,Supplies and Services,782.92,Aug-23
Slough Borough Council,806501,Excellent Healthcare Services Ltd,M44C,Adult Social Care Operations,Supplies and Services,"2,144.52",Aug-23
Slough Borough Council,806501,Excellent Healthcare Services Ltd,M44C,Adult Social Care Operations,Supplies and Services,"2,144.52",Aug-23
Slough Borough Council,806501,Excellent Healthcare Services Ltd,M44C,Adult Social Care Operations,Supplies and Services,"2,150.19",Aug-23
Slough Borough Council,806501,Excellent Healthcare Services Ltd,M44C,Adult Social Care Operations,Supplies and Services,842.49,Aug-23
Slough Borough Council,806501,Excellent Healthcare Services Ltd,M44F,Adult Social Care Operations,Supplies and Services,"2,382.80",Aug-23
Slough Borough Council,806501,Excellent Healthcare Services Ltd,M44F,Adult Social Care Operations,Supplies and Services,714.84,Aug-23
Slough Borough Council,806501,Excellent Healthcare Services Ltd,M44F,Adult Social Care Operations,Supplies and Services,953.12,Aug-23
Slough Borough Council,806501,Excellent Healthcare Services Ltd,M45C,Adult Social Care Operations,Supplies and Services,714.84,Aug-23
Slough Borough Council,806501,Excellent Healthcare Services Ltd,M45C,Adult Social Care Operations,Supplies and Services,880.79,Aug-23
Slough Borough Council,806501,Excellent Healthcare Services Ltd,M45C,Adult Social Care Operations,Supplies and Services,"1,179.85",Aug-23
Slough Borough Council,808815,First Choice Social Care,M44C,Adult Social Care Operations,Supplies and Services,"1,211.70",Aug-23
Slough Borough Council,808815,First Choice Social Care,M44C,Adult Social Care Operations,Supplies and Services,848.19,Aug-23
Slough Borough Council,808815,First Choice Social Care,M44C,Adult Social Care Operations,Supplies and Services,969.36,Aug-23
Slough Borough Council,808815,First Choice Social Care,M44C,Adult Social Care Operations,Supplies and Services,807.80,Aug-23
Slough Borough Council,754,First Steps Day Nursery,F909,Children & Families,Supplies and Services,"10,676.74",Aug-23
Slough Borough Council,2519,Fleet Tutors,F449,Education & Inclusion,Supplies and Services,"2,730.00",Aug-23
Slough Borough Council,809060,Forensic Healthcare Services Ltd,M80F,Adult Social Care Operations,Supplies and Services,"2,094.10",Aug-23
Slough Borough Council,2460,Forest Bridge School Ltd,F417,Education & Inclusion,Supplies and Services,833.33,Aug-23
Slough Borough Council,2460,Forest Bridge School Ltd,F417,Education & Inclusion,Supplies and Services,793.33,Aug-23
Slough Borough Council,2460,Forest Bridge School Ltd,F551,Children & Families,Supplies and Services,"13,205.00",Aug-23
Slough Borough Council,2460,Forest Bridge School Ltd,F551,Children & Families,Supplies and Services,"13,205.00",Aug-23
Slough Borough Council,2460,Forest Bridge School Ltd,F551,Children & Families,Supplies and Services,"15,135.67",Aug-23
Slough Borough Council,2460,Forest Bridge School Ltd,F551,Children & Families,Supplies and Services,"10,504.00",Aug-23
Slough Borough Council,2460,Forest Bridge School Ltd,F551,Children & Families,Supplies and Services,"10,504.00",Aug-23
Slough Borough Council,2460,Forest Bridge School Ltd,F551,Children & Families,Supplies and Services,"15,135.67",Aug-23
Slough Borough Council,2460,Forest Bridge School Ltd,F551,Children & Families,Supplies and Services,"15,135.67",Aug-23
Slough Borough Council,2460,Forest Bridge School Ltd,F551,Children & Families,Supplies and Services,"15,135.67",Aug-23
Slough Borough Council,2460,Forest Bridge School Ltd,F551,Children & Families,Supplies and Services,"9,150.33",Aug-23
Slough Borough Council,2460,Forest Bridge School Ltd,F551,Children & Families,Supplies and Services,"9,150.33",Aug-23
Slough Borough Council,2460,Forest Bridge School Ltd,F551,Children & Families,Supplies and Services,"2,966.67",Aug-23
Slough Borough Council,1204,Forget Me Not,M25C,Adult Social Care Operations,Supplies and Services,"4,800.00",Aug-23
Slough Borough Council,1204,Forget Me Not,M25C,Adult Social Care Operations,Supplies and Services,"3,400.00",Aug-23
Slough Borough Council,1204,Forget Me Not,M25C,Adult Social Care Operations,Supplies and Services,"3,800.00",Aug-23
Slough Borough Council,1204,Forget Me Not,M25D,Adult Social Care Operations,Supplies and Services,"3,600.00",Aug-23
Slough Borough Council,1204,Forget Me Not,M27C,Adult Social Care Operations,Supplies and Services,"3,199.76",Aug-23
Slough Borough Council,1204,Forget Me Not,M27C,Adult Social Care Operations,Supplies and Services,"3,800.00",Aug-23
Slough Borough Council,1204,Forget Me Not,M27C,Adult Social Care Operations,Supplies and Services,"-1,530.00",Aug-23
Slough Borough Council,647,Foxborough Primary School,E620,Children & Families,Supplies and Services,"12,451.35",Aug-23
Slough Borough Council,805936,Freshworks Inc,B342,Digital and Strategic IT,Supplies and Services,"1,755.87",Aug-23
Slough Borough Council,1555,Gallagher Bassett,B018,Finance & Commercial,Supplies and Services,"31,993.96",Aug-23
Slough Borough Council,1758,Gas Advisory Services Limited,J606,Place Management,Supplies and Services,"3,094.00",Aug-23
Slough Borough Council,1758,Gas Advisory Services Limited,J606,Place Management,Supplies and Services,"2,707.00",Aug-23
Slough Borough Council,1758,Gas Advisory Services Limited,J606,Place Management,Supplies and Services,"1,200.00",Aug-23
Slough Borough Council,1758,Gas Advisory Services Limited,J606,Place Management,Supplies and Services,840.00,Aug-23
Slough Borough Council,805190,GB Sport & Leisure UK Ltd,D750,Place Operations,Supplies and Services,523.20,Aug-23
Slough Borough Council,809062,GCH (St Katharine's) Limited,M25C,Adult Social Care Operations,Supplies and Services,"2,200.00",Aug-23
Slough Borough Council,809062,GCH (St Katharine's) Limited,M25C,Adult Social Care Operations,Supplies and Services,"4,714.29",Aug-23
Slough Borough Council,809062,GCH (St Katharine's) Limited,M25C,Adult Social Care Operations,Supplies and Services,"4,871.43",Aug-23
Slough Borough Council,809062,GCH (St Katharine's) Limited,M25C,Adult Social Care Operations,Supplies and Services,"4,871.43",Aug-23
Slough Borough Council,976,Gls Educational Supplies,F187,Children & Families,Supplies and Services,743.96,Aug-23
Slough Borough Council,1682,Gpex,B210,Democratic Services,Supplies and Services,662.00,Aug-23
Slough Borough Council,1682,Gpex,D750,Place Operations,Supplies and Services,592.00,Aug-23
Slough Borough Council,2830,GR Response Healthcare Ltd,M44C,Adult Social Care Operations,Supplies and Services,"1,839.36",Aug-23
Slough Borough Council,2830,GR Response Healthcare Ltd,M44C,Adult Social Care Operations,Supplies and Services,"2,394.00",Aug-23
Slough Borough Council,2830,GR Response Healthcare Ltd,M44C,Adult Social Care Operations,Supplies and Services,684.00,Aug-23
Slough Borough Council,2830,GR Response Healthcare Ltd,M44C,Adult Social Care Operations,Supplies and Services,"2,926.00",Aug-23
Slough Borough Council,2830,GR Response Healthcare Ltd,M44C,Adult Social Care Operations,Supplies and Services,"2,394.00",Aug-23
Slough Borough Council,2830,GR Response Healthcare Ltd,M44C,Adult Social Care Operations,Supplies and Services,"2,128.00",Aug-23
Slough Borough Council,2830,GR Response Healthcare Ltd,M44C,Adult Social Care Operations,Supplies and Services,"2,546.00",Aug-23
Slough Borough Council,2830,GR Response Healthcare Ltd,M44C,Adult Social Care Operations,Supplies and Services,"1,500.24",Aug-23
Slough Borough Council,2830,GR Response Healthcare Ltd,M44C,Adult Social Care Operations,Supplies and Services,749.84,Aug-23
Slough Borough Council,2830,GR Response Healthcare Ltd,M44C,Adult Social Care Operations,Supplies and Services,"2,250.08",Aug-23
Slough Borough Council,2830,GR Response Healthcare Ltd,M44C,Adult Social Care Operations,Supplies and Services,"2,000.32",Aug-23
Slough Borough Council,2830,GR Response Healthcare Ltd,M44C,Adult Social Care Operations,Supplies and Services,"1,662.50",Aug-23
Slough Borough Council,2830,GR Response Healthcare Ltd,M44C,Adult Social Care Operations,Supplies and Services,"2,250.08",Aug-23
Slough Borough Council,2830,GR Response Healthcare Ltd,M44D,Adult Social Care Operations,Supplies and Services,"1,596.00",Aug-23
Slough Borough Council,2830,GR Response Healthcare Ltd,M44D,Adult Social Care Operations,Supplies and Services,931.00,Aug-23
Slough Borough Council,2830,GR Response Healthcare Ltd,M44D,Adult Social Care Operations,Supplies and Services,"1,464.34",Aug-23
Slough Borough Council,2830,GR Response Healthcare Ltd,M44D,Adult Social Care Operations,Supplies and Services,"2,250.08",Aug-23
Slough Borough Council,2830,GR Response Healthcare Ltd,M44D,Adult Social Care Operations,Supplies and Services,"1,356.86",Aug-23
Slough Borough Council,2830,GR Response Healthcare Ltd,M44D,Adult Social Care Operations,Supplies and Services,"2,717.00",Aug-23
Slough Borough Council,2830,GR Response Healthcare Ltd,M44D,Adult Social Care Operations,Supplies and Services,723.33,Aug-23
Slough Borough Council,2830,GR Response Healthcare Ltd,M44D,Adult Social Care Operations,Supplies and Services,969.00,Aug-23
Slough Borough Council,2830,GR Response Healthcare Ltd,M44D,Adult Social Care Operations,Supplies and Services,"2,432.00",Aug-23
Slough Borough Council,2830,GR Response Healthcare Ltd,M44E,Adult Social Care Operations,Supplies and Services,532.00,Aug-23
Slough Borough Council,2830,GR Response Healthcare Ltd,A06C,People Strategy & Commissioning,Supplies and Services,"8,900.00",Aug-23
Slough Borough Council,808378,Greensleeves Care,M17C,Adult Social Care Operations,Supplies and Services,"3,614.07",Aug-23
Slough Borough Council,808464,Greenstone Care,M44F,Adult Social Care Operations,Supplies and Services,"1,883.00",Aug-23
Slough Borough Council,808464,Greenstone Care,M44F,Adult Social Care Operations,Supplies and Services,"2,017.00",Aug-23
Slough Borough Council,808464,Greenstone Care,M51C,Adult Social Care Operations,Supplies and Services,"2,400.00",Aug-23
Slough Borough Council,805069,Grove Academy,E610,Children & Families,Supplies and Services,"59,581.00",Aug-23
Slough Borough Council,804447,Grundon Waste Management Limited,D342,Place Operations,Supplies and Services,"472,350.32",Aug-23
Slough Borough Council,3228,H Plus Care Ltd,M18C,Adult Social Care Operations,Supplies and Services,"5,142.86",Aug-23
Slough Borough Council,3228,H Plus Care Ltd,M18C,Adult Social Care Operations,Supplies and Services,"5,314.29",Aug-23
Slough Borough Council,3228,H Plus Care Ltd,M18C,Adult Social Care Operations,Supplies and Services,"5,314.29",Aug-23
Slough Borough Council,3228,H Plus Care Ltd,M18C,Adult Social Care Operations,Supplies and Services,"5,314.29",Aug-23
Slough Borough Council,3228,H Plus Care Ltd,M25C,Adult Social Care Operations,Supplies and Services,"5,357.14",Aug-23
Slough Borough Council,3228,H Plus Care Ltd,M25C,Adult Social Care Operations,Supplies and Services,"5,535.71",Aug-23
Slough Borough Council,3228,H Plus Care Ltd,M25C,Adult Social Care Operations,Supplies and Services,"5,535.71",Aug-23
Slough Borough Council,3228,H Plus Care Ltd,M25C,Adult Social Care Operations,Supplies and Services,"5,535.71",Aug-23
Slough Borough Council,3228,H Plus Care Ltd,M26E,Adult Social Care Operations,Supplies and Services,"5,142.86",Aug-23
Slough Borough Council,3228,H Plus Care Ltd,M26E,Adult Social Care Operations,Supplies and Services,"5,314.29",Aug-23
Slough Borough Council,3228,H Plus Care Ltd,M26E,Adult Social Care Operations,Supplies and Services,"5,314.29",Aug-23
Slough Borough Council,3228,H Plus Care Ltd,M26E,Adult Social Care Operations,Supplies and Services,"5,314.29",Aug-23
Slough Borough Council,3228,H Plus Care Ltd,M26E,Adult Social Care Operations,Supplies and Services,"5,357.14",Aug-23
Slough Borough Council,806681,Hako Machines Ltd,D620,Place Operations,Supplies and Services,597.42,Aug-23
Slough Borough Council,744,Hampshire County Council,A04C,Adult Social Care Operations,Supplies and Services,544.00,Aug-23
Slough Borough Council,1610,Handicare Uk,P006,Capital,Capital Charges,"6,165.00",Aug-23
Slough Borough Council,1610,Handicare Uk,P006,Capital,Capital Charges,"6,536.00",Aug-23
Slough Borough Council,1610,Handicare Uk,P006,Capital,Capital Charges,"3,250.00",Aug-23
Slough Borough Council,1610,Handicare Uk,P006,Capital,Capital Charges,"3,755.00",Aug-23
Slough Borough Council,804986,Havencare Ltd,M26E,Adult Social Care Operations,Supplies and Services,"1,356.27",Aug-23
Slough Borough Council,804986,Havencare Ltd,M26E,Adult Social Care Operations,Supplies and Services,"1,356.27",Aug-23
Slough Borough Council,804986,Havencare Ltd,M26E,Adult Social Care Operations,Supplies and Services,"1,356.27",Aug-23
Slough Borough Council,804986,Havencare Ltd,M26E,Adult Social Care Operations,Supplies and Services,"1,356.27",Aug-23
Slough Borough Council,804986,Havencare Ltd,M26E,Adult Social Care Operations,Supplies and Services,"1,356.27",Aug-23
Slough Borough Council,804986,Havencare Ltd,M26E,Adult Social Care Operations,Supplies and Services,"1,356.27",Aug-23
Slough Borough Council,804986,Havencare Ltd,M26E,Adult Social Care Operations,Supplies and Services,"1,356.27",Aug-23
Slough Borough Council,804986,Havencare Ltd,M26E,Adult Social Care Operations,Supplies and Services,"1,356.27",Aug-23
Slough Borough Council,809014,Havendale Ltd,H205,Housing (People) Services,Supplies and Services,"1,756.00",Aug-23
Slough Borough Council,1381,Haybrook College,E610,Children & Families,Supplies and Services,"123,186.78",Aug-23
Slough Borough Council,3784,Haybrook College Pru,E610,Children & Families,Supplies and Services,"42,012.45",Aug-23
Slough Borough Council,803248,Haybrook College Trust,F166,Education & Inclusion,Supplies and Services,"52,500.00",Aug-23
Slough Borough Council,803248,Haybrook College Trust,F166,Education & Inclusion,Supplies and Services,"30,000.00",Aug-23
Slough Borough Council,803248,Haybrook College Trust,B297,Finance & Commercial,Government Grants,"8,010.00",Aug-23
Slough Borough Council,808639,Hazel Care Services Ltd,M42E,Adult Social Care Operations,Supplies and Services,"2,085.99",Aug-23
Slough Borough Council,808639,Hazel Care Services Ltd,M42E,Adult Social Care Operations,Supplies and Services,"4,259.71",Aug-23
Slough Borough Council,808639,Hazel Care Services Ltd,M42E,Adult Social Care Operations,Supplies and Services,"2,234.17",Aug-23
Slough Borough Council,803753,Healthcare Homes,M15D,Adult Social Care Operations,Supplies and Services,"4,400.00",Aug-23
Slough Borough Council,803753,Healthcare Homes,M15D,Adult Social Care Operations,Supplies and Services,"4,871.43",Aug-23
Slough Borough Council,803753,Healthcare Homes,M15D,Adult Social Care Operations,Supplies and Services,"4,714.29",Aug-23
Slough Borough Council,803753,Healthcare Homes,M15D,Adult Social Care Operations,Supplies and Services,"-2,200.00",Aug-23
Slough Borough Council,803753,Healthcare Homes,M15D,Adult Social Care Operations,Supplies and Services,"4,871.43",Aug-23
Slough Borough Council,803753,Healthcare Homes,M15D,Adult Social Care Operations,Supplies and Services,"2,938.45",Aug-23
Slough Borough Council,803753,Healthcare Homes,M17C,Adult Social Care Operations,Supplies and Services,"4,428.57",Aug-23
Slough Borough Council,803753,Healthcare Homes,M17C,Adult Social Care Operations,Supplies and Services,"2,629.69",Aug-23
Slough Borough Council,803753,Healthcare Homes,M17C,Adult Social Care Operations,Supplies and Services,"4,871.43",Aug-23
Slough Borough Council,803753,Healthcare Homes,M17C,Adult Social Care Operations,Supplies and Services,"4,871.43",Aug-23
Slough Borough Council,803753,Healthcare Homes,M18C,Adult Social Care Operations,Supplies and Services,"4,871.43",Aug-23
Slough Borough Council,803753,Healthcare Homes,M18C,Adult Social Care Operations,Supplies and Services,"4,871.43",Aug-23
Slough Borough Council,803753,Healthcare Homes,M18C,Adult Social Care Operations,Supplies and Services,"4,871.43",Aug-23
Slough Borough Council,803753,Healthcare Homes,M18C,Adult Social Care Operations,Supplies and Services,"4,871.43",Aug-23
Slough Borough Council,803753,Healthcare Homes,M18C,Adult Social Care Operations,Supplies and Services,"4,871.43",Aug-23
Slough Borough Council,803753,Healthcare Homes,M27C,Adult Social Care Operations,Supplies and Services,"3,224.00",Aug-23
Slough Borough Council,803753,Healthcare Homes,M28C,Adult Social Care Operations,Supplies and Services,"1,714.29",Aug-23
Slough Borough Council,803753,Healthcare Homes,M28C,Adult Social Care Operations,Supplies and Services,"3,085.71",Aug-23
Slough Borough Council,803753,Healthcare Homes,M28C,Adult Social Care Operations,Supplies and Services,"4,800.00",Aug-23
Slough Borough Council,803753,Healthcare Homes,M28C,Adult Social Care Operations,Supplies and Services,685.71,Aug-23
Slough Borough Council,1686,Herald Chase,P579,Capital,Capital Charges,"1,676.50",Aug-23
Slough Borough Council,1686,Herald Chase,D501,Place Strategy & Infrastructure,Supplies and Services,876.05,Aug-23
Slough Borough Council,1686,Herald Chase,D501,Place Strategy & Infrastructure,Supplies and Services,876.05,Aug-23
Slough Borough Council,803447,Herewards House Residential Home,A03E,Adult Social Care Operations,Supplies and Services,"7,528.57",Aug-23
Slough Borough Council,803447,Herewards House Residential Home,M25C,Adult Social Care Operations,Supplies and Services,"3,985.71",Aug-23
Slough Borough Council,803447,Herewards House Residential Home,M25C,Adult Social Care Operations,Supplies and Services,"3,764.29",Aug-23
Slough Borough Council,803447,Herewards House Residential Home,M27C,Adult Social Care Operations,Supplies and Services,"3,764.29",Aug-23
Slough Borough Council,803447,Herewards House Residential Home,M27C,Adult Social Care Operations,Supplies and Services,"3,985.71",Aug-23
Slough Borough Council,803447,Herewards House Residential Home,M27C,Adult Social Care Operations,Supplies and Services,"3,764.29",Aug-23
Slough Borough Council,803447,Herewards House Residential Home,M27C,Adult Social Care Operations,Supplies and Services,"2,878.57",Aug-23
Slough Borough Council,3387,Herschel Grammar School,B297,Finance & Commercial,Government Grants,"4,590.00",Aug-23
Slough Borough Council,807998,Heywood's Catering,F253,Children & Families,Supplies and Services,"1,075.00",Aug-23
Slough Borough Council,2218,Holex,F210,Community,TP-Other Bodies,945.00,Aug-23
Slough Borough Council,850,Holy Family Catholic Primary School,E250,Children & Families,Supplies and Services,"190,899.44",Aug-23
Slough Borough Council,808922,HOUSING ACTION MANAGEMENT LTD,H205,Housing (People) Services,Supplies and Services,"1,705.00",Aug-23
Slough Borough Council,808922,HOUSING ACTION MANAGEMENT LTD,H205,Housing (People) Services,Supplies and Services,"1,650.00",Aug-23
Slough Borough Council,808676,Human Engine Limited,B146,Finance & Commercial,Supplies and Services,"16,800.00",Aug-23
Slough Borough Council,807666,Independence Home and Domicilary Care,M44F,Adult Social Care Operations,Supplies and Services,"3,381.17",Aug-23
Slough Borough Council,807666,Independence Home and Domicilary Care,M44F,Adult Social Care Operations,Supplies and Services,"2,940.66",Aug-23
Slough Borough Council,807666,Independence Home and Domicilary Care,M44F,Adult Social Care Operations,Supplies and Services,"3,348.00",Aug-23
Slough Borough Council,807666,Independence Home and Domicilary Care,M44F,Adult Social Care Operations,Supplies and Services,"1,544.58",Aug-23
Slough Borough Council,3570,Independent Supported Living And Disabilities Ltd,M42E,Adult Social Care Operations,Supplies and Services,"3,000.00",Aug-23
Slough Borough Council,3570,Independent Supported Living And Disabilities Ltd,M44E,Adult Social Care Operations,Supplies and Services,"4,212.00",Aug-23
Slough Borough Council,3570,Independent Supported Living And Disabilities Ltd,M44E,Adult Social Care Operations,Supplies and Services,"1,440.00",Aug-23
Slough Borough Council,3570,Independent Supported Living And Disabilities Ltd,M44E,Adult Social Care Operations,Supplies and Services,"3,570.00",Aug-23
Slough Borough Council,3570,Independent Supported Living And Disabilities Ltd,M44E,Adult Social Care Operations,Supplies and Services,"1,050.00",Aug-23
Slough Borough Council,3570,Independent Supported Living And Disabilities Ltd,M44F,Adult Social Care Operations,Supplies and Services,"2,608.00",Aug-23
Slough Borough Council,808777,INDUSTRIAL DOOR SYSTEMS LTD,B060,Business Services,Premises,"1,163.00",Aug-23
Slough Borough Council,3172,Intelligent Transport Services,D501,Place Strategy & Infrastructure,Supplies and Services,525.00,Aug-23
Slough Borough Council,3172,Intelligent Transport Services,D501,Place Strategy & Infrastructure,Supplies and Services,750.00,Aug-23
Slough Borough Council,3172,Intelligent Transport Services,D501,Place Strategy & Infrastructure,Supplies and Services,"1,050.00",Aug-23
Slough Borough Council,807818,Intercity Technology Ltd,B282,Digital and Strategic IT,Supplies and Services,"4,327.44",Aug-23
Slough Borough Council,3500,Iqra Slough Islamic Primary School,E480,Children & Families,Supplies and Services,"93,630.34",Aug-23
Slough Borough Council,2919,Islamic Shakhsiyah Foundation,F909,Children & Families,Supplies and Services,"7,394.68",Aug-23
Slough Borough Council,753,Jack In The Box Day Nursery,F909,Children & Families,Supplies and Services,"10,990.64",Aug-23
Slough Borough Council,733,James Elliman  School,E620,Children & Families,Supplies and Services,"29,283.33",Aug-23
Slough Borough Council,1970,James Elliman Academy,B297,Finance & Commercial,Government Grants,"11,610.00",Aug-23
Slough Borough Council,805666,James Rosental,C322,Community,Supplies and Services,"2,755.00",Aug-23
Slough Borough Council,805226,JD Surfacing & Civil Engineering Limited,C001,Place Operations,Premises,"5,250.00",Aug-23
Slough Borough Council,808528,Kane Taylor,F253,Children & Families,Agency Staff,"1,500.00",Aug-23
Slough Borough Council,803815,Kathys Childcare,F909,Children & Families,Supplies and Services,952.35,Aug-23
Slough Borough Council,2620,Kcare Nursing Agency Ltd,M44C,Adult Social Care Operations,Supplies and Services,887.09,Aug-23
Slough Borough Council,2620,Kcare Nursing Agency Ltd,M44D,Adult Social Care Operations,Supplies and Services,"1,678.11",Aug-23
Slough Borough Council,2620,Kcare Nursing Agency Ltd,M48C,Adult Social Care Operations,Supplies and Services,"4,000.00",Aug-23
Slough Borough Council,2620,Kcare Nursing Agency Ltd,M48C,Adult Social Care Operations,Supplies and Services,971.43,Aug-23
Slough Borough Council,2620,Kcare Nursing Agency Ltd,M48C,Adult Social Care Operations,Supplies and Services,"4,000.00",Aug-23
Slough Borough Council,804887,KCare Nursing Agency Ltd Supported House Living,M42F,Adult Social Care Operations,Supplies and Services,"2,926.00",Aug-23
Slough Borough Council,804887,KCare Nursing Agency Ltd Supported House Living,M42F,Adult Social Care Operations,Supplies and Services,"2,926.00",Aug-23
Slough Borough Council,804887,KCare Nursing Agency Ltd Supported House Living,M44F,Adult Social Care Operations,Supplies and Services,"2,493.50",Aug-23
Slough Borough Council,804887,KCare Nursing Agency Ltd Supported House Living,M44F,Adult Social Care Operations,Supplies and Services,"2,493.50",Aug-23
Slough Borough Council,808146,Kents Hill Care Home,M18C,Adult Social Care Operations,Supplies and Services,"3,914.86",Aug-23
Slough Borough Council,807742,Khalsa Primary School,E620,Children & Families,Supplies and Services,"14,738.33",Aug-23
Slough Borough Council,803916,Kharis Solutions,M42E,Adult Social Care Operations,Supplies and Services,"1,110.00",Aug-23
Slough Borough Council,803916,Kharis Solutions,M42E,Adult Social Care Operations,Supplies and Services,"1,110.00",Aug-23
Slough Borough Council,803916,Kharis Solutions,M42E,Adult Social Care Operations,Supplies and Services,"1,110.00",Aug-23
Slough Borough Council,803916,Kharis Solutions,M44C,Adult Social Care Operations,Supplies and Services,"1,549.64",Aug-23
Slough Borough Council,803916,Kharis Solutions,M44C,Adult Social Care Operations,Supplies and Services,"1,514.72",Aug-23
Slough Borough Council,803916,Kharis Solutions,M48C,Adult Social Care Operations,Supplies and Services,"2,210.00",Aug-23
Slough Borough Council,808599,lakhwinder Singh,H205,Housing (People) Services,Supplies and Services,"1,550.00",Aug-23
Slough Borough Council,664,Langley Grammar School,F840,Education & Inclusion,Supplies and Services,"3,000.00",Aug-23
Slough Borough Council,664,Langley Grammar School,F840,Education & Inclusion,Supplies and Services,"1,150.00",Aug-23
Slough Borough Council,664,Langley Grammar School,E610,Children & Families,Supplies and Services,875.00,Aug-23
Slough Borough Council,664,Langley Grammar School,B297,Finance & Commercial,Government Grants,"3,510.00",Aug-23
Slough Borough Council,1699,Langley Hall Primary Academy,E620,Children & Families,Supplies and Services,"4,416.67",Aug-23
Slough Borough Council,3001,Langley Haven Care Homes Ltd,M25C,Adult Social Care Operations,Supplies and Services,"3,985.71",Aug-23
Slough Borough Council,3001,Langley Haven Care Homes Ltd,M25C,Adult Social Care Operations,Supplies and Services,"3,985.71",Aug-23
Slough Borough Council,3001,Langley Haven Care Homes Ltd,M25C,Adult Social Care Operations,Supplies and Services,"4,407.00",Aug-23
Slough Borough Council,3001,Langley Haven Care Homes Ltd,M25C,Adult Social Care Operations,Supplies and Services,"3,985.71",Aug-23
Slough Borough Council,3001,Langley Haven Care Homes Ltd,M25D,Adult Social Care Operations,Supplies and Services,"3,985.71",Aug-23
Slough Borough Council,3001,Langley Haven Care Homes Ltd,M25D,Adult Social Care Operations,Supplies and Services,"3,985.71",Aug-23
Slough Borough Council,3001,Langley Haven Care Homes Ltd,M26E,Adult Social Care Operations,Supplies and Services,"4,113.21",Aug-23
Slough Borough Council,3001,Langley Haven Care Homes Ltd,M26E,Adult Social Care Operations,Supplies and Services,"4,113.21",Aug-23
Slough Borough Council,3001,Langley Haven Care Homes Ltd,M27C,Adult Social Care Operations,Supplies and Services,"3,985.71",Aug-23
Slough Borough Council,3001,Langley Haven Care Homes Ltd,M27C,Adult Social Care Operations,Supplies and Services,"3,985.71",Aug-23
Slough Borough Council,3001,Langley Haven Care Homes Ltd,M27C,Adult Social Care Operations,Supplies and Services,"3,985.71",Aug-23
Slough Borough Council,3001,Langley Haven Care Homes Ltd,M27C,Adult Social Care Operations,Supplies and Services,"3,985.71",Aug-23
Slough Borough Council,3001,Langley Haven Care Homes Ltd,M27C,Adult Social Care Operations,Supplies and Services,"3,985.71",Aug-23
Slough Borough Council,3001,Langley Haven Care Homes Ltd,M27F,Adult Social Care Operations,Supplies and Services,"4,407.00",Aug-23
Slough Borough Council,3001,Langley Haven Care Homes Ltd,M27F,Adult Social Care Operations,Supplies and Services,"3,985.71",Aug-23
Slough Borough Council,3001,Langley Haven Care Homes Ltd,M27F,Adult Social Care Operations,Supplies and Services,"3,985.71",Aug-23
Slough Borough Council,3001,Langley Haven Care Homes Ltd,M27F,Adult Social Care Operations,Supplies and Services,"3,985.71",Aug-23
Slough Borough Council,3001,Langley Haven Care Homes Ltd,M27F,Adult Social Care Operations,Supplies and Services,"2,081.07",Aug-23
Slough Borough Council,3001,Langley Haven Care Homes Ltd,M29C,Adult Social Care Operations,Supplies and Services,"3,985.71",Aug-23
Slough Borough Council,803686,Lascelles Park Nursery,F909,Children & Families,Supplies and Services,"17,000.00",Aug-23
Slough Borough Council,807015,Leap Children's Therapy Ltd,F417,Education & Inclusion,Supplies and Services,630.00,Aug-23
Slough Borough Council,3482,Leonard Cheshire Disability,M25D,Adult Social Care Operations,Supplies and Services,"5,889.34",Aug-23
Slough Borough Council,808423,Leo's Circus CIC,F382,Children & Families,Supplies and Services,"4,180.57",Aug-23
Slough Borough Council,808892,Letee Limited,H205,Housing (People) Services,Supplies and Services,680.00,Aug-23
Slough Borough Council,808892,Letee Limited,H205,Housing (People) Services,Supplies and Services,"6,600.00",Aug-23
Slough Borough Council,804692,Little Diamonds Pre School,F909,Children & Families,Supplies and Services,"17,000.00",Aug-23
Slough Borough Council,3791,Littledown Pru,E610,Children & Families,Supplies and Services,"17,100.00",Aug-23
Slough Borough Council,667,Littledown School,E610,Children & Families,Supplies and Services,"54,318.51",Aug-23
Slough Borough Council,1282,Long Close School,F909,Children & Families,Supplies and Services,"7,247.98",Aug-23
Slough Borough Council,2302,Look Ahead Care And Support,M42F,Adult Social Care Operations,Supplies and Services,"22,896.37",Aug-23
Slough Borough Council,2302,Look Ahead Care And Support,M44D,Adult Social Care Operations,Supplies and Services,"3,131.62",Aug-23
Slough Borough Council,2302,Look Ahead Care And Support,M44F,Adult Social Care Operations,Supplies and Services,"1,565.81",Aug-23
Slough Borough Council,2302,Look Ahead Care And Support,M44F,Adult Social Care Operations,Supplies and Services,"3,131.62",Aug-23
Slough Borough Council,2302,Look Ahead Care And Support,M44F,Adult Social Care Operations,Supplies and Services,"1,808.85",Aug-23
Slough Borough Council,2302,Look Ahead Care And Support,M44F,Adult Social Care Operations,Supplies and Services,819.29,Aug-23
Slough Borough Council,2302,Look Ahead Care And Support,M44F,Adult Social Care Operations,Supplies and Services,"1,567.71",Aug-23
Slough Borough Council,2302,Look Ahead Care And Support,M44F,Adult Social Care Operations,Supplies and Services,"1,565.81",Aug-23
Slough Borough Council,2302,Look Ahead Care And Support,M44F,Adult Social Care Operations,Supplies and Services,"1,567.71",Aug-23
Slough Borough Council,2302,Look Ahead Care And Support,M44F,Adult Social Care Operations,Supplies and Services,"1,808.41",Aug-23
Slough Borough Council,2302,Look Ahead Care And Support,M44F,Adult Social Care Operations,Supplies and Services,904.18,Aug-23
Slough Borough Council,2302,Look Ahead Care And Support,M44F,Adult Social Care Operations,Supplies and Services,904.23,Aug-23
Slough Borough Council,2302,Look Ahead Care And Support,M44F,Adult Social Care Operations,Supplies and Services,"1,808.41",Aug-23
Slough Borough Council,2302,Look Ahead Care And Support,M44F,Adult Social Care Operations,Supplies and Services,808.85,Aug-23
Slough Borough Council,2302,Look Ahead Care And Support,M44F,Adult Social Care Operations,Supplies and Services,"1,050.04",Aug-23
Slough Borough Council,2302,Look Ahead Care And Support,M44F,Adult Social Care Operations,Supplies and Services,904.40,Aug-23
Slough Borough Council,2302,Look Ahead Care And Support,M44F,Adult Social Care Operations,Supplies and Services,"1,567.71",Aug-23
Slough Borough Council,2302,Look Ahead Care And Support,H216,Community,Supplies and Services,"2,515.34",Aug-23
Slough Borough Council,2302,Look Ahead Care And Support,H216,Community,Supplies and Services,"2,271.92",Aug-23
Slough Borough Council,2302,Look Ahead Care And Support,H216,Community,Supplies and Services,"2,515.34",Aug-23
Slough Borough Council,804919,Louise Seddon (Louise's Little Peeps),F909,Children & Families,Supplies and Services,511.28,Aug-23
Slough Borough Council,804919,Louise Seddon (Louise's Little Peeps),F909,Children & Families,Supplies and Services,"1,022.56",Aug-23
Slough Borough Council,1195,Lynch Hill (Foundation Primary) School,E620,Children & Families,Supplies and Services,"22,693.93",Aug-23
Slough Borough Council,1771,Lynch Hill Academy,E620,Children & Families,Supplies and Services,"12,958.33",Aug-23
Slough Borough Council,290,Lyreco Uk Limited,H202,Community,Supplies and Services,781.42,Aug-23
Slough Borough Council,3424,M D Homes,M15F,Adult Social Care Operations,Supplies and Services,"5,115.00",Aug-23
Slough Borough Council,803396,M3 Housing,J607,Place Management,Premises,735.00,Aug-23
Slough Borough Council,807217,Macadamia Support Limited,M42E,Adult Social Care Operations,Supplies and Services,"6,931.20",Aug-23
Slough Borough Council,807217,Macadamia Support Limited,M42E,Adult Social Care Operations,Supplies and Services,"3,973.20",Aug-23
Slough Borough Council,807217,Macadamia Support Limited,M42E,Adult Social Care Operations,Supplies and Services,669.50,Aug-23
Slough Borough Council,807217,Macadamia Support Limited,M42E,Adult Social Care Operations,Supplies and Services,"8,703.50",Aug-23
Slough Borough Council,807217,Macadamia Support Limited,M42E,Adult Social Care Operations,Supplies and Services,"6,438.84",Aug-23
Slough Borough Council,807217,Macadamia Support Limited,M42E,Adult Social Care Operations,Supplies and Services,"5,576.26",Aug-23
Slough Borough Council,807217,Macadamia Support Limited,M42E,Adult Social Care Operations,Supplies and Services,"7,308.00",Aug-23
Slough Borough Council,807217,Macadamia Support Limited,M42E,Adult Social Care Operations,Supplies and Services,"3,589.12",Aug-23
Slough Borough Council,807217,Macadamia Support Limited,M44C,Adult Social Care Operations,Supplies and Services,"3,591.56",Aug-23
Slough Borough Council,807217,Macadamia Support Limited,M44D,Adult Social Care Operations,Supplies and Services,"5,523.00",Aug-23
Slough Borough Council,529,Marish Primary School,E620,Children & Families,Supplies and Services,"89,875.00",Aug-23
Slough Borough Council,807774,Marsh Ltd,B018,Finance & Commercial,Supplies and Services,"20,387.36",Aug-23
Slough Borough Council,807774,Marsh Ltd,B018,Finance & Commercial,Supplies and Services,"16,800.00",Aug-23
Slough Borough Council,807774,Marsh Ltd,B018,Finance & Commercial,Supplies and Services,"1,380.83",Aug-23
Slough Borough Council,807774,Marsh Ltd,B018,Finance & Commercial,Supplies and Services,702.93,Aug-23
Slough Borough Council,807774,Marsh Ltd,B018,Finance & Commercial,Supplies and Services,"3,038.86",Aug-23
Slough Borough Council,807774,Marsh Ltd,B018,Finance & Commercial,Supplies and Services,"2,434.43",Aug-23
Slough Borough Council,807774,Marsh Ltd,B018,Finance & Commercial,Supplies and Services,"4,200.00",Aug-23
Slough Borough Council,1886,Matrix Scm,B023,Finance & Commercial,Agency Staff,"472,934.70",Aug-23
Slough Borough Council,1886,Matrix Scm,B023,Finance & Commercial,Agency Staff,"458,591.16",Aug-23
Slough Borough Council,1886,Matrix Scm,B023,Finance & Commercial,Agency Staff,"432,541.08",Aug-23
Slough Borough Council,807684,Maverick Care  Ltd T/A Christies Care Windsor & Maidenhead,M44C,Adult Social Care Operations,Supplies and Services,"1,636.71",Aug-23
Slough Borough Council,807684,Maverick Care  Ltd T/A Christies Care Windsor & Maidenhead,M44C,Adult Social Care Operations,Supplies and Services,"1,860.00",Aug-23
Slough Borough Council,807684,Maverick Care  Ltd T/A Christies Care Windsor & Maidenhead,M44C,Adult Social Care Operations,Supplies and Services,961.00,Aug-23
Slough Borough Council,807684,Maverick Care  Ltd T/A Christies Care Windsor & Maidenhead,M44D,Adult Social Care Operations,Supplies and Services,"3,904.50",Aug-23
Slough Borough Council,807684,Maverick Care  Ltd T/A Christies Care Windsor & Maidenhead,M45C,Adult Social Care Operations,Supplies and Services,509.79,Aug-23
Slough Borough Council,807684,Maverick Care  Ltd T/A Christies Care Windsor & Maidenhead,M45C,Adult Social Care Operations,Supplies and Services,"1,189.50",Aug-23
Slough Borough Council,807684,Maverick Care  Ltd T/A Christies Care Windsor & Maidenhead,M45C,Adult Social Care Operations,Supplies and Services,649.00,Aug-23
Slough Borough Council,1496,Mighty Acorns Day Nursery Ltd,F909,Children & Families,Supplies and Services,"13,642.99",Aug-23
Slough Borough Council,808716,Mini Todds Ltd,F909,Children & Families,Supplies and Services,"4,808.70",Aug-23
Slough Borough Council,808747,MK HOUSING LTD,H205,Housing (People) Services,Supplies and Services,"13,175.00",Aug-23
Slough Borough Council,805121,MMCG (2) Limited,A02E,Adult Social Care Operations,Supplies and Services,"2,386.80",Aug-23
Slough Borough Council,805121,MMCG (2) Limited,A02E,Adult Social Care Operations,Supplies and Services,"-2,386.80",Aug-23
Slough Borough Council,805121,MMCG (2) Limited,A02E,Adult Social Care Operations,Supplies and Services,"-3,699.54",Aug-23
Slough Borough Council,805121,MMCG (2) Limited,A03E,Adult Social Care Operations,Supplies and Services,"-1,909.44",Aug-23
Slough Borough Council,805121,MMCG (2) Limited,M15D,Adult Social Care Operations,Supplies and Services,"1,312.74",Aug-23
Slough Borough Council,805121,MMCG (2) Limited,M15D,Adult Social Care Operations,Supplies and Services,"3,699.54",Aug-23
Slough Borough Council,805121,MMCG (2) Limited,M15F,Adult Social Care Operations,Supplies and Services,"2,834.68",Aug-23
Slough Borough Council,805121,MMCG (2) Limited,M15F,Adult Social Care Operations,Supplies and Services,"3,699.54",Aug-23
Slough Borough Council,805121,MMCG (2) Limited,M15F,Adult Social Care Operations,Supplies and Services,954.72,Aug-23
Slough Borough Council,805121,MMCG (2) Limited,M15F,Adult Social Care Operations,Supplies and Services,716.04,Aug-23
Slough Borough Council,805121,MMCG (2) Limited,M17C,Adult Social Care Operations,Supplies and Services,"3,699.54",Aug-23
Slough Borough Council,805121,MMCG (2) Limited,M17C,Adult Social Care Operations,Supplies and Services,"3,699.54",Aug-23
Slough Borough Council,805121,MMCG (2) Limited,M17C,Adult Social Care Operations,Supplies and Services,"3,699.54",Aug-23
Slough Borough Council,805121,MMCG (2) Limited,M17C,Adult Social Care Operations,Supplies and Services,954.72,Aug-23
Slough Borough Council,805121,MMCG (2) Limited,M18C,Adult Social Care Operations,Supplies and Services,"3,699.54",Aug-23
Slough Borough Council,805121,MMCG (2) Limited,M18C,Adult Social Care Operations,Supplies and Services,"3,580.20",Aug-23
Slough Borough Council,805121,MMCG (2) Limited,M18C,Adult Social Care Operations,Supplies and Services,"3,699.54",Aug-23
Slough Borough Council,805121,MMCG (2) Limited,M18C,Adult Social Care Operations,Supplies and Services,"3,699.54",Aug-23
Slough Borough Council,805121,MMCG (2) Limited,M18C,Adult Social Care Operations,Supplies and Services,"4,562.80",Aug-23
Slough Borough Council,805121,MMCG (2) Limited,M18C,Adult Social Care Operations,Supplies and Services,"4,562.80",Aug-23
Slough Borough Council,805121,MMCG (2) Limited,M18C,Adult Social Care Operations,Supplies and Services,"3,699.54",Aug-23
Slough Borough Council,805121,MMCG (2) Limited,M18C,Adult Social Care Operations,Supplies and Services,"4,629.14",Aug-23
Slough Borough Council,805121,MMCG (2) Limited,M18C,Adult Social Care Operations,Supplies and Services,"3,699.54",Aug-23
Slough Borough Council,805121,MMCG (2) Limited,M18C,Adult Social Care Operations,Supplies and Services,"2,744.82",Aug-23
Slough Borough Council,805121,MMCG (2) Limited,M18C,Adult Social Care Operations,Supplies and Services,"4,562.80",Aug-23
Slough Borough Council,805121,MMCG (2) Limited,M18C,Adult Social Care Operations,Supplies and Services,"3,699.54",Aug-23
Slough Borough Council,805121,MMCG (2) Limited,M25C,Adult Social Care Operations,Supplies and Services,"3,341.52",Aug-23
Slough Borough Council,805121,MMCG (2) Limited,M25C,Adult Social Care Operations,Supplies and Services,"3,699.54",Aug-23
Slough Borough Council,805121,MMCG (2) Limited,M25C,Adult Social Care Operations,Supplies and Services,"3,699.54",Aug-23
Slough Borough Council,805121,MMCG (2) Limited,M25C,Adult Social Care Operations,Supplies and Services,"3,699.54",Aug-23
Slough Borough Council,805121,MMCG (2) Limited,M25C,Adult Social Care Operations,Supplies and Services,"3,699.54",Aug-23
Slough Borough Council,805121,MMCG (2) Limited,M25C,Adult Social Care Operations,Supplies and Services,"3,699.54",Aug-23
Slough Borough Council,805121,MMCG (2) Limited,M25C,Adult Social Care Operations,Supplies and Services,"3,699.54",Aug-23
Slough Borough Council,805121,MMCG (2) Limited,M25C,Adult Social Care Operations,Supplies and Services,"3,699.54",Aug-23
Slough Borough Council,805121,MMCG (2) Limited,M26D,Adult Social Care Operations,Supplies and Services,"2,386.80",Aug-23
Slough Borough Council,805121,MMCG (2) Limited,M26D,Adult Social Care Operations,Supplies and Services,"3,699.54",Aug-23
Slough Borough Council,805121,MMCG (2) Limited,M27C,Adult Social Care Operations,Supplies and Services,"3,699.54",Aug-23
Slough Borough Council,805121,MMCG (2) Limited,M27C,Adult Social Care Operations,Supplies and Services,"3,699.54",Aug-23
Slough Borough Council,805121,MMCG (2) Limited,M27C,Adult Social Care Operations,Supplies and Services,"3,699.54",Aug-23
Slough Borough Council,805121,MMCG (2) Limited,M27C,Adult Social Care Operations,Supplies and Services,"3,699.54",Aug-23
Slough Borough Council,805121,MMCG (2) Limited,M27C,Adult Social Care Operations,Supplies and Services,"3,699.54",Aug-23
Slough Borough Council,805121,MMCG (2) Limited,M27C,Adult Social Care Operations,Supplies and Services,"2,639.25",Aug-23
Slough Borough Council,805121,MMCG (2) Limited,M28C,Adult Social Care Operations,Supplies and Services,"3,580.20",Aug-23
Slough Borough Council,805121,MMCG (2) Limited,M28C,Adult Social Care Operations,Supplies and Services,"3,699.54",Aug-23
Slough Borough Council,805121,MMCG (2) Limited,M28C,Adult Social Care Operations,Supplies and Services,"3,580.20",Aug-23
Slough Borough Council,805121,MMCG (2) Limited,M28C,Adult Social Care Operations,Supplies and Services,"2,625.48",Aug-23
Slough Borough Council,805121,MMCG (2) Limited,M28C,Adult Social Care Operations,Supplies and Services,"3,699.54",Aug-23
Slough Borough Council,805121,MMCG (2) Limited,M28C,Adult Social Care Operations,Supplies and Services,954.72,Aug-23
Slough Borough Council,805121,MMCG (2) Limited,M28C,Adult Social Care Operations,Supplies and Services,"1,909.44",Aug-23
Slough Borough Council,805121,MMCG (2) Limited,M28C,Adult Social Care Operations,Supplies and Services,"1,623.02",Aug-23
Slough Borough Council,805121,MMCG (2) Limited,M29C,Adult Social Care Operations,Supplies and Services,"3,557.25",Aug-23
Slough Borough Council,805121,MMCG (2) Limited,M29C,Adult Social Care Operations,Supplies and Services,"1,721.25",Aug-23
Slough Borough Council,805121,MMCG (2) Limited,A05M,People Adults,Supplies and Services,-835.38,Aug-23
Slough Borough Council,805121,MMCG (2) Limited,A05M,People Adults,Supplies and Services,"2,864.16",Aug-23
Slough Borough Council,805121,MMCG (2) Limited,A06C,People Strategy & Commissioning,Supplies and Services,"1,950.75",Aug-23
Slough Borough Council,805121,MMCG (2) Limited,A06C,People Strategy & Commissioning,Supplies and Services,"3,557.25",Aug-23
Slough Borough Council,805121,MMCG (2) Limited,A06C,People Strategy & Commissioning,Supplies and Services,"3,580.20",Aug-23
Slough Borough Council,805121,MMCG (2) Limited,A06C,People Strategy & Commissioning,Supplies and Services,"3,699.54",Aug-23
Slough Borough Council,805121,MMCG (2) Limited,A06C,People Strategy & Commissioning,Supplies and Services,"3,580.20",Aug-23
Slough Borough Council,2115,Montagu Evans Llp,B081,Place Strategy & Infrastructure,Agency Staff,"1,875.00",Aug-23
Slough Borough Council,2115,Montagu Evans Llp,B081,Place Strategy & Infrastructure,Supplies and Services,"4,500.00",Aug-23
Slough Borough Council,2100,Montem Accademy,B297,Finance & Commercial,Government Grants,"20,430.00",Aug-23
Slough Borough Council,1140,Montem Guesthouse,H205,Housing (People) Services,Supplies and Services,"75,509.00",Aug-23
Slough Borough Council,3302,Montem Primary School,E620,Children & Families,Supplies and Services,"32,810.00",Aug-23
Slough Borough Council,806858,MUDDY BOOTS DAY NURSERY LTD,F909,Children & Families,Supplies and Services,"7,313.33",Aug-23
Slough Borough Council,805369,NAS Services Limited,F462,Children & Families,Supplies and Services,"18,808.13",Aug-23
Slough Borough Council,805369,NAS Services Limited,F462,Children & Families,Supplies and Services,"16,052.40",Aug-23
Slough Borough Council,805369,NAS Services Limited,F462,Children & Families,Supplies and Services,"14,727.20",Aug-23
Slough Borough Council,805369,NAS Services Limited,F462,Children & Families,Supplies and Services,"16,052.40",Aug-23
Slough Borough Council,804696,Net World Sports,C406,Community,Supplies and Services,597.94,Aug-23
Slough Borough Council,807590,NETWORK MERCHANTS LIMITED,D122,Place Strategy & Infrastructure,Supplies and Services,574.48,Aug-23
Slough Borough Council,1864,Noahs Ark Environmental Services Ltd,H253,Place Regulation,Supplies and Services,"3,025.97",Aug-23
Slough Borough Council,1864,Noahs Ark Environmental Services Ltd,H253,Place Regulation,Supplies and Services,-995.00,Aug-23
Slough Borough Council,3717,Norwood Schools Limited,M26E,Adult Social Care Operations,Supplies and Services,"4,243.52",Aug-23
Slough Borough Council,3717,Norwood Schools Limited,M26E,Adult Social Care Operations,Supplies and Services,"3,458.12",Aug-23
Slough Borough Council,3717,Norwood Schools Limited,M50E,Adult Social Care Operations,Supplies and Services,"1,426.60",Aug-23
Slough Borough Council,3717,Norwood Schools Limited,M26E,Adult Social Care Operations,External Receipts,-630.80,Aug-23
Slough Borough Council,3717,Norwood Schools Limited,M26E,Adult Social Care Operations,External Receipts,-630.80,Aug-23
Slough Borough Council,3717,Norwood Schools Limited,M26E,Adult Social Care Operations,External Receipts,-641.20,Aug-23
Slough Borough Council,2021,Now Medical,H207,Community,Supplies and Services,615.00,Aug-23
Slough Borough Council,803238,Oasis Care and Training Agency,A07R,Adult Social Care Operations,Supplies and Services,"1,908.11",Aug-23
Slough Borough Council,803238,Oasis Care and Training Agency,A07R,Adult Social Care Operations,Supplies and Services,812.23,Aug-23
Slough Borough Council,803238,Oasis Care and Training Agency,A07R,Adult Social Care Operations,Supplies and Services,593.07,Aug-23
Slough Borough Council,803238,Oasis Care and Training Agency,A07R,Adult Social Care Operations,Supplies and Services,"2,165.96",Aug-23
Slough Borough Council,803238,Oasis Care and Training Agency,M41D,Adult Social Care Operations,Supplies and Services,601.64,Aug-23
Slough Borough Council,803238,Oasis Care and Training Agency,M41D,Adult Social Care Operations,Supplies and Services,663.60,Aug-23
Slough Borough Council,803238,Oasis Care and Training Agency,M44C,Adult Social Care Operations,Supplies and Services,898.18,Aug-23
Slough Borough Council,803238,Oasis Care and Training Agency,M44C,Adult Social Care Operations,Supplies and Services,"2,165.96",Aug-23
Slough Borough Council,803238,Oasis Care and Training Agency,M44C,Adult Social Care Operations,Supplies and Services,"1,061.76",Aug-23
Slough Borough Council,803238,Oasis Care and Training Agency,M44C,Adult Social Care Operations,Supplies and Services,796.32,Aug-23
Slough Borough Council,803238,Oasis Care and Training Agency,M44C,Adult Social Care Operations,Supplies and Services,"2,256.24",Aug-23
Slough Borough Council,803238,Oasis Care and Training Agency,M44C,Adult Social Care Operations,Supplies and Services,"1,194.48",Aug-23
Slough Borough Council,803238,Oasis Care and Training Agency,M44C,Adult Social Care Operations,Supplies and Services,"2,388.96",Aug-23
Slough Borough Council,803238,Oasis Care and Training Agency,M44C,Adult Social Care Operations,Supplies and Services,"1,213.44",Aug-23
Slough Borough Council,803238,Oasis Care and Training Agency,M44C,Adult Social Care Operations,Supplies and Services,"1,298.76",Aug-23
Slough Borough Council,803238,Oasis Care and Training Agency,M44C,Adult Social Care Operations,Supplies and Services,"2,957.76",Aug-23
Slough Borough Council,803238,Oasis Care and Training Agency,M44C,Adult Social Care Operations,Supplies and Services,796.32,Aug-23
Slough Borough Council,803238,Oasis Care and Training Agency,M44C,Adult Social Care Operations,Supplies and Services,929.04,Aug-23
Slough Borough Council,803238,Oasis Care and Training Agency,M44C,Adult Social Care Operations,Supplies and Services,"1,630.56",Aug-23
Slough Borough Council,803238,Oasis Care and Training Agency,M44C,Adult Social Care Operations,Supplies and Services,"1,175.52",Aug-23
Slough Borough Council,803238,Oasis Care and Training Agency,M44C,Adult Social Care Operations,Supplies and Services,"1,725.36",Aug-23
Slough Borough Council,803238,Oasis Care and Training Agency,M44C,Adult Social Care Operations,Supplies and Services,663.60,Aug-23
Slough Borough Council,803238,Oasis Care and Training Agency,M44C,Adult Social Care Operations,Supplies and Services,"2,388.96",Aug-23
Slough Borough Council,803238,Oasis Care and Training Agency,M44C,Adult Social Care Operations,Supplies and Services,862.68,Aug-23
Slough Borough Council,803238,Oasis Care and Training Agency,M44C,Adult Social Care Operations,Supplies and Services,663.60,Aug-23
Slough Borough Council,803238,Oasis Care and Training Agency,M44C,Adult Social Care Operations,Supplies and Services,"3,071.52",Aug-23
Slough Borough Council,803238,Oasis Care and Training Agency,M44C,Adult Social Care Operations,Supplies and Services,"1,203.96",Aug-23
Slough Borough Council,803238,Oasis Care and Training Agency,M44D,Adult Social Care Operations,Supplies and Services,948.00,Aug-23
Slough Borough Council,803238,Oasis Care and Training Agency,M44D,Adult Social Care Operations,Supplies and Services,929.04,Aug-23
Slough Borough Council,803238,Oasis Care and Training Agency,M44D,Adult Social Care Operations,Supplies and Services,"1,478.88",Aug-23
Slough Borough Council,803238,Oasis Care and Training Agency,M44D,Adult Social Care Operations,Supplies and Services,"1,981.32",Aug-23
Slough Borough Council,803238,Oasis Care and Training Agency,M44D,Adult Social Care Operations,Supplies and Services,663.60,Aug-23
Slough Borough Council,803238,Oasis Care and Training Agency,M44D,Adult Social Care Operations,Supplies and Services,"1,080.72",Aug-23
Slough Borough Council,803238,Oasis Care and Training Agency,M44D,Adult Social Care Operations,Supplies and Services,739.44,Aug-23
Slough Borough Council,803238,Oasis Care and Training Agency,M44D,Adult Social Care Operations,Supplies and Services,"1,459.92",Aug-23
Slough Borough Council,803238,Oasis Care and Training Agency,M44D,Adult Social Care Operations,Supplies and Services,929.04,Aug-23
Slough Borough Council,803238,Oasis Care and Training Agency,M44D,Adult Social Care Operations,Supplies and Services,"1,621.08",Aug-23
Slough Borough Council,803238,Oasis Care and Training Agency,M44F,Adult Social Care Operations,Supplies and Services,"2,388.96",Aug-23
Slough Borough Council,803238,Oasis Care and Training Agency,M44F,Adult Social Care Operations,Supplies and Services,"1,516.80",Aug-23
Slough Borough Council,803238,Oasis Care and Training Agency,M45C,Adult Social Care Operations,Supplies and Services,832.15,Aug-23
Slough Borough Council,803238,Oasis Care and Training Agency,M45C,Adult Social Care Operations,Supplies and Services,842.32,Aug-23
Slough Borough Council,803238,Oasis Care and Training Agency,M45C,Adult Social Care Operations,Supplies and Services,663.60,Aug-23
Slough Borough Council,803238,Oasis Care and Training Agency,M45C,Adult Social Care Operations,Supplies and Services,"1,194.48",Aug-23
Slough Borough Council,803238,Oasis Care and Training Agency,M48C,Adult Social Care Operations,Supplies and Services,"3,185.28",Aug-23
Slough Borough Council,1767,Olive Tree Montessori Ltd,F909,Children & Families,Supplies and Services,"20,439.93",Aug-23
Slough Borough Council,803490,Optimum Specialised Home Limited,M26E,Adult Social Care Operations,Supplies and Services,"7,200.00",Aug-23
Slough Borough Council,803490,Optimum Specialised Home Limited,M26E,Adult Social Care Operations,Supplies and Services,"7,180.00",Aug-23
Slough Borough Council,803490,Optimum Specialised Home Limited,M26E,Adult Social Care Operations,Supplies and Services,"8,400.00",Aug-23
Slough Borough Council,1629,Opus Energy Limited,B480,Place Strategy & Infrastructure,Premises,"2,517.90",Aug-23
Slough Borough Council,803960,Orchard Hill College,F558,Children & Families,Supplies and Services,"-1,503.00",Aug-23
Slough Borough Council,803960,Orchard Hill College,F558,Children & Families,Supplies and Services,"-2,509.00",Aug-23
Slough Borough Council,803960,Orchard Hill College,F558,Children & Families,Supplies and Services,"3,852.86",Aug-23
Slough Borough Council,803960,Orchard Hill College,F558,Children & Families,Supplies and Services,"13,780.63",Aug-23
Slough Borough Council,803960,Orchard Hill College,F558,Children & Families,Supplies and Services,"9,619.59",Aug-23
Slough Borough Council,803960,Orchard Hill College,F558,Children & Families,Supplies and Services,"11,390.31",Aug-23
Slough Borough Council,803960,Orchard Hill College,F558,Children & Families,Supplies and Services,"11,356.54",Aug-23
Slough Borough Council,803960,Orchard Hill College,F558,Children & Families,Supplies and Services,"7,303.49",Aug-23
Slough Borough Council,803960,Orchard Hill College,F558,Children & Families,Supplies and Services,"-1,487.01",Aug-23
Slough Borough Council,803960,Orchard Hill College,F558,Children & Families,Supplies and Services,"-9,615.45",Aug-23
Slough Borough Council,803960,Orchard Hill College,F558,Children & Families,Supplies and Services,"4,495.03",Aug-23
Slough Borough Council,803960,Orchard Hill College,F558,Children & Families,Supplies and Services,"1,926.42",Aug-23
Slough Borough Council,803960,Orchard Hill College,F558,Children & Families,Supplies and Services,"7,705.71",Aug-23
Slough Borough Council,805011,Osborne Property Services Limited,J607,Place Management,Premises,"239,143.97",Aug-23
Slough Borough Council,805011,Osborne Property Services Limited,J607,Place Management,Premises,"23,958.90",Aug-23
Slough Borough Council,805011,Osborne Property Services Limited,J015,Place Management,Premises,"77,962.44",Aug-23
Slough Borough Council,805011,Osborne Property Services Limited,J015,Place Management,Premises,"78,581.87",Aug-23
Slough Borough Council,805011,Osborne Property Services Limited,H206,Community,Supplies and Services,"112,102.50",Aug-23
Slough Borough Council,805011,Osborne Property Services Limited,H206,Community,Supplies and Services,"43,670.94",Aug-23
Slough Borough Council,805011,Osborne Property Services Limited,J606,Place Management,Supplies and Services,"136,799.77",Aug-23
Slough Borough Council,805011,Osborne Property Services Limited,P409,Capital,Capital Charges,"31,493.86",Aug-23
Slough Borough Council,805011,Osborne Property Services Limited,P412,Capital,Capital Charges,"33,660.12",Aug-23
Slough Borough Council,805011,Osborne Property Services Limited,P413,Capital,Capital Charges,"49,194.49",Aug-23
Slough Borough Council,805011,Osborne Property Services Limited,P415,Capital,Capital Charges,"1,031.43",Aug-23
Slough Borough Council,805011,Osborne Property Services Limited,P415,Capital,Capital Charges,735.60,Aug-23
Slough Borough Council,805011,Osborne Property Services Limited,P417,Capital,Capital Charges,"121,122.59",Aug-23
Slough Borough Council,805011,Osborne Property Services Limited,P418,Capital,Capital Charges,"11,199.93",Aug-23
Slough Borough Council,805011,Osborne Property Services Limited,P419,Capital,Capital Charges,"82,204.00",Aug-23
Slough Borough Council,805011,Osborne Property Services Limited,P421,Capital,Capital Charges,"6,099.74",Aug-23
Slough Borough Council,805011,Osborne Property Services Limited,P431,Capital,Capital Charges,"83,493.60",Aug-23
Slough Borough Council,805011,Osborne Property Services Limited,P547,Capital,Capital Charges,"72,049.74",Aug-23
Slough Borough Council,805011,Osborne Property Services Limited,J607,Place Management,Supplies and Services,"133,719.36",Aug-23
Slough Borough Council,805011,Osborne Property Services Limited,J606,Place Management,Supplies and Services,"276,261.60",Aug-23
Slough Borough Council,805011,Osborne Property Services Limited,J606,Place Management,Supplies and Services,"276,261.60",Aug-23
Slough Borough Council,805011,Osborne Property Services Limited,J607,Place Management,Supplies and Services,"1,366.34",Aug-23
Slough Borough Council,804370,Our Community Enterprise,D006,Place & Communities,Supplies and Services,"5,250.00",Aug-23
Slough Borough Council,3371,Our Lady Of Peace Catholic Primary and Nursery School,E340,Children & Families,Supplies and Services,"12,329.20",Aug-23
Slough Borough Council,680,Oxford House Community Care,M44C,Adult Social Care Operations,Supplies and Services,920.00,Aug-23
Slough Borough Council,680,Oxford House Community Care,M44C,Adult Social Care Operations,Supplies and Services,976.38,Aug-23
Slough Borough Council,680,Oxford House Community Care,M44C,Adult Social Care Operations,Supplies and Services,780.13,Aug-23
Slough Borough Council,680,Oxford House Community Care,M44C,Adult Social Care Operations,Supplies and Services,"2,614.60",Aug-23
Slough Borough Council,680,Oxford House Community Care,M44C,Adult Social Care Operations,Supplies and Services,"1,379.66",Aug-23
Slough Borough Council,680,Oxford House Community Care,M44C,Adult Social Care Operations,Supplies and Services,"1,168.72",Aug-23
Slough Borough Council,680,Oxford House Community Care,M44C,Adult Social Care Operations,Supplies and Services,"1,014.00",Aug-23
Slough Borough Council,680,Oxford House Community Care,M44C,Adult Social Care Operations,Supplies and Services,"3,276.00",Aug-23
Slough Borough Council,680,Oxford House Community Care,M44C,Adult Social Care Operations,Supplies and Services,"1,398.29",Aug-23
Slough Borough Council,680,Oxford House Community Care,M44C,Adult Social Care Operations,Supplies and Services,682.50,Aug-23
Slough Borough Council,680,Oxford House Community Care,M44C,Adult Social Care Operations,Supplies and Services,948.02,Aug-23
Slough Borough Council,680,Oxford House Community Care,M44C,Adult Social Care Operations,Supplies and Services,"1,335.68",Aug-23
Slough Borough Council,680,Oxford House Community Care,M44C,Adult Social Care Operations,Supplies and Services,"1,413.52",Aug-23
Slough Borough Council,680,Oxford House Community Care,M44C,Adult Social Care Operations,Supplies and Services,"1,314.81",Aug-23
Slough Borough Council,680,Oxford House Community Care,M44C,Adult Social Care Operations,Supplies and Services,"1,302.40",Aug-23
Slough Borough Council,680,Oxford House Community Care,M44C,Adult Social Care Operations,Supplies and Services,680.25,Aug-23
Slough Borough Council,680,Oxford House Community Care,M44C,Adult Social Care Operations,Supplies and Services,897.00,Aug-23
Slough Borough Council,680,Oxford House Community Care,M44C,Adult Social Care Operations,Supplies and Services,"2,905.18",Aug-23
Slough Borough Council,680,Oxford House Community Care,M44D,Adult Social Care Operations,Supplies and Services,682.50,Aug-23
Slough Borough Council,680,Oxford House Community Care,M44D,Adult Social Care Operations,Supplies and Services,743.55,Aug-23
Slough Borough Council,680,Oxford House Community Care,M44D,Adult Social Care Operations,Supplies and Services,876.54,Aug-23
Slough Borough Council,680,Oxford House Community Care,M44D,Adult Social Care Operations,Supplies and Services,"2,457.00",Aug-23
Slough Borough Council,680,Oxford House Community Care,M44D,Adult Social Care Operations,Supplies and Services,"1,279.62",Aug-23
Slough Borough Council,680,Oxford House Community Care,M44E,Adult Social Care Operations,Supplies and Services,584.36,Aug-23
Slough Borough Council,680,Oxford House Community Care,M44F,Adult Social Care Operations,Supplies and Services,505.08,Aug-23
Slough Borough Council,680,Oxford House Community Care,M44F,Adult Social Care Operations,Supplies and Services,730.45,Aug-23
Slough Borough Council,680,Oxford House Community Care,M48C,Adult Social Care Operations,Supplies and Services,870.25,Aug-23
Slough Borough Council,680,Oxford House Community Care,M48C,Adult Social Care Operations,Supplies and Services,584.36,Aug-23
Slough Borough Council,518,Oxford House Nursing Home,M15D,Adult Social Care Operations,Supplies and Services,"3,235.76",Aug-23
Slough Borough Council,518,Oxford House Nursing Home,M15D,Adult Social Care Operations,Supplies and Services,"3,235.76",Aug-23
Slough Borough Council,518,Oxford House Nursing Home,M18C,Adult Social Care Operations,Supplies and Services,"2,507.14",Aug-23
Slough Borough Council,518,Oxford House Nursing Home,M18C,Adult Social Care Operations,Supplies and Services,"5,400.00",Aug-23
Slough Borough Council,518,Oxford House Nursing Home,M18C,Adult Social Care Operations,Supplies and Services,"3,235.76",Aug-23
Slough Borough Council,518,Oxford House Nursing Home,M18C,Adult Social Care Operations,Supplies and Services,"5,400.00",Aug-23
Slough Borough Council,333,P W Secure-It Ltd,D610,Place Operations,Supplies and Services,"1,513.00",Aug-23
Slough Borough Council,808679,PARBHAN LTD,H205,Housing (People) Services,Supplies and Services,"14,570.00",Aug-23
Slough Borough Council,2461,PARK NOW LIMITED,D123,Place Strategy & Infrastructure,Supplies and Services,"6,889.48",Aug-23
Slough Borough Council,804804,Parkwood Outdoor's Dolygaer,C406,Community,Supplies and Services,"2,005.00",Aug-23
Slough Borough Council,3271,Partnership In Care Ltd,M44F,Adult Social Care Operations,Supplies and Services,"3,081.67",Aug-23
Slough Borough Council,3271,Partnership In Care Ltd,M44F,Adult Social Care Operations,Supplies and Services,"3,081.67",Aug-23
Slough Borough Council,3271,Partnership In Care Ltd,M44F,Adult Social Care Operations,Supplies and Services,"3,081.67",Aug-23
Slough Borough Council,3271,Partnership In Care Ltd,M44F,Adult Social Care Operations,Supplies and Services,"3,081.67",Aug-23
Slough Borough Council,2509,Parvaaz Project,M44E,Adult Social Care Operations,Supplies and Services,678.60,Aug-23
Slough Borough Council,2509,Parvaaz Project,M44E,Adult Social Care Operations,Supplies and Services,678.60,Aug-23
Slough Borough Council,2509,Parvaaz Project,M44E,Adult Social Care Operations,Supplies and Services,678.60,Aug-23
Slough Borough Council,2509,Parvaaz Project,M44E,Adult Social Care Operations,Supplies and Services,678.60,Aug-23
Slough Borough Council,2509,Parvaaz Project,M50E,Adult Social Care Operations,Supplies and Services,800.40,Aug-23
Slough Borough Council,2509,Parvaaz Project,M50E,Adult Social Care Operations,Supplies and Services,800.40,Aug-23
Slough Borough Council,2509,Parvaaz Project,M50E,Adult Social Care Operations,Supplies and Services,800.40,Aug-23
Slough Borough Council,2509,Parvaaz Project,M50E,Adult Social Care Operations,Supplies and Services,800.40,Aug-23
Slough Borough Council,1468,Patrol,D123,Place Strategy & Infrastructure,Supplies and Services,"3,870.90",Aug-23
Slough Borough Council,1468,Patrol,D010,Place Strategy & Infrastructure,Supplies and Services,"1,635.30",Aug-23
Slough Borough Council,807405,PayPoint Network Ltd,H055,Finance & Commercial,Supplies and Services,619.07,Aug-23
Slough Borough Council,807405,PayPoint Network Ltd,H055,Finance & Commercial,Supplies and Services,"1,255.10",Aug-23
Slough Borough Council,824,Penn Wood Primary and Nursery School,E450,Children & Families,Supplies and Services,"302,491.45",Aug-23
Slough Borough Council,808606,Pentwyn House Nursing Home,M18C,Adult Social Care Operations,Supplies and Services,"4,207.01",Aug-23
Slough Borough Council,807611,Peopletoo Ltd,A01D,People Adults,Supplies and Services,"30,025.00",Aug-23
Slough Borough Council,1504,Permanent Futures Limited,F410,Children & Families,Agency Staff,"1,410.00",Aug-23
Slough Borough Council,1504,Permanent Futures Limited,F410,Children & Families,Agency Staff,"1,410.00",Aug-23
Slough Borough Council,1504,Permanent Futures Limited,F410,Children & Families,Agency Staff,"1,880.00",Aug-23
Slough Borough Council,1504,Permanent Futures Limited,F640,Children & Families,Agency Staff,"2,340.00",Aug-23
Slough Borough Council,803786,Phillipa Holliday,C322,Community,Supplies and Services,560.00,Aug-23
Slough Borough Council,1821,Phoenix Futures,A04C,Adult Social Care Operations,Supplies and Services,"8,520.00",Aug-23
Slough Borough Council,807727,Phoenix Infant Academy c/o Thames Learning Trust,E620,Children & Families,Supplies and Services,"13,791.67",Aug-23
Slough Borough Council,807727,Phoenix Infant Academy c/o Thames Learning Trust,B297,Finance & Commercial,Government Grants,"7,740.00",Aug-23
Slough Borough Council,807727,Phoenix Infant Academy c/o Thames Learning Trust,B297,Finance & Commercial,Government Grants,"1,260.00",Aug-23
Slough Borough Council,3359,Pippins School,E370,Children & Families,Supplies and Services,"27,874.55",Aug-23
Slough Borough Council,904,Pitney Bowes Finance Plc,K077,Business Services,Supplies and Services,"5,361.16",Aug-23
Slough Borough Council,807120,PJ Care Limited,M15D,Adult Social Care Operations,Supplies and Services,"9,831.65",Aug-23
Slough Borough Council,808881,PKB MANAGEMENT LTD,H205,Housing (People) Services,Supplies and Services,"66,290.00",Aug-23
Slough Borough Council,808881,PKB MANAGEMENT LTD,H205,Housing (People) Services,Supplies and Services,"4,950.00",Aug-23
Slough Borough Council,2537,Pre School Stars,F909,Children & Families,Supplies and Services,"7,371.37",Aug-23
Slough Borough Council,808654,Print and Builds Ltd,D122,Place Strategy & Infrastructure,Supplies and Services,560.00,Aug-23
Slough Borough Council,805398,PRIORITEYES LTD,A06E,Adult Social Care Operations,Supplies and Services,"4,860.00",Aug-23
Slough Borough Council,805398,PRIORITEYES LTD,A06N,Adult Social Care Operations,Supplies and Services,840.00,Aug-23
Slough Borough Council,849,Priory Primary School,E380,Children & Families,Supplies and Services,"429,199.59",Aug-23
Slough Borough Council,808971,Prism Infosec Ltd,B342,Digital and Strategic IT,Supplies and Services,"19,224.74",Aug-23
Slough Borough Council,807130,Prism Power Limited,B064,Business Services,Premises,"1,247.00",Aug-23
Slough Borough Council,808921,PROUD INVESTMENTS LTD,H205,Housing (People) Services,Supplies and Services,"2,325.00",Aug-23
Slough Borough Council,1138,Qed Slough Ltd,F868,Children & Families,Supplies and Services,"4,332.48",Aug-23
Slough Borough Council,1138,Qed Slough Ltd,F868,Children & Families,Supplies and Services,"635,482.39",Aug-23
Slough Borough Council,1138,Qed Slough Ltd,F868,Children & Families,Supplies and Services,"643,404.84",Aug-23
Slough Borough Council,808360,Queensmead-Witherslack,F462,Children & Families,Supplies and Services,"33,291.97",Aug-23
Slough Borough Council,808200,Quest Recovery Services Ltd,A07R,Adult Social Care Operations,Supplies and Services,872.40,Aug-23
Slough Borough Council,808200,Quest Recovery Services Ltd,A07R,Adult Social Care Operations,Supplies and Services,"1,099.60",Aug-23
Slough Borough Council,808200,Quest Recovery Services Ltd,M44C,Adult Social Care Operations,Supplies and Services,"1,926.00",Aug-23
Slough Borough Council,808200,Quest Recovery Services Ltd,M44C,Adult Social Care Operations,Supplies and Services,"1,198.40",Aug-23
Slough Borough Council,808200,Quest Recovery Services Ltd,M44C,Adult Social Care Operations,Supplies and Services,"1,078.56",Aug-23
Slough Borough Council,808200,Quest Recovery Services Ltd,M44C,Adult Social Care Operations,Supplies and Services,963.00,Aug-23
Slough Borough Council,808200,Quest Recovery Services Ltd,M44C,Adult Social Care Operations,Supplies and Services,629.19,Aug-23
Slough Borough Council,808200,Quest Recovery Services Ltd,M44C,Adult Social Care Operations,Supplies and Services,744.75,Aug-23
Slough Borough Council,808200,Quest Recovery Services Ltd,M44C,Adult Social Care Operations,Supplies and Services,719.04,Aug-23
Slough Borough Council,808200,Quest Recovery Services Ltd,M44C,Adult Social Care Operations,Supplies and Services,740.12,Aug-23
Slough Borough Council,808200,Quest Recovery Services Ltd,M44D,Adult Social Care Operations,Supplies and Services,"1,177.00",Aug-23
Slough Borough Council,808200,Quest Recovery Services Ltd,M44D,Adult Social Care Operations,Supplies and Services,629.16,Aug-23
Slough Borough Council,808200,Quest Recovery Services Ltd,M44D,Adult Social Care Operations,Supplies and Services,744.72,Aug-23
Slough Borough Council,808200,Quest Recovery Services Ltd,M44D,Adult Social Care Operations,Supplies and Services,"1,318.24",Aug-23
Slough Borough Council,808200,Quest Recovery Services Ltd,M44E,Adult Social Care Operations,Supplies and Services,"1,480.88",Aug-23
Slough Borough Council,808200,Quest Recovery Services Ltd,M45C,Adult Social Care Operations,Supplies and Services,"1,926.00",Aug-23
Slough Borough Council,808200,Quest Recovery Services Ltd,M48C,Adult Social Care Operations,Supplies and Services,963.00,Aug-23
Slough Borough Council,808200,Quest Recovery Services Ltd,M48C,Adult Social Care Operations,Supplies and Services,"1,652.08",Aug-23
Slough Borough Council,808200,Quest Recovery Services Ltd,M48C,Adult Social Care Operations,Supplies and Services,505.04,Aug-23
Slough Borough Council,1942,Quickson (South & West) Ltd,P204,Capital,Capital Charges,"6,363.84",Aug-23
Slough Borough Council,1942,Quickson (South & West) Ltd,P093,Capital,Capital Charges,"6,900.00",Aug-23
Slough Borough Council,808656,QuickThink Cloud Limited,B015,Finance & Commercial,Supplies and Services,"8,154.80",Aug-23
Slough Borough Council,805551,R Watts and Sons Ltd,D750,Place Operations,Premises,"1,980.00",Aug-23
Slough Borough Council,2685,R.E.A.C.H,M26E,Adult Social Care Operations,Supplies and Services,"5,464.00",Aug-23
Slough Borough Council,2685,R.E.A.C.H,M26E,Adult Social Care Operations,Supplies and Services,"7,667.52",Aug-23
Slough Borough Council,2685,R.E.A.C.H,M26E,Adult Social Care Operations,Supplies and Services,"7,132.56",Aug-23
Slough Borough Council,2685,R.E.A.C.H,M26E,Adult Social Care Operations,Supplies and Services,"10,591.40",Aug-23
Slough Borough Council,2685,R.E.A.C.H,M26E,Adult Social Care Operations,External Receipts,-630.80,Aug-23
Slough Borough Council,2685,R.E.A.C.H,M26E,Adult Social Care Operations,External Receipts,-564.40,Aug-23
Slough Borough Council,808822,Raj Desaur,H205,Housing (People) Services,Supplies and Services,"1,650.00",Aug-23
Slough Borough Council,808822,Raj Desaur,H205,Housing (People) Services,Supplies and Services,"1,705.00",Aug-23
Slough Borough Council,690,Reading Borough Council,F500,Education & Inclusion,Supplies and Services,"42,851.37",Aug-23
Slough Borough Council,806766,Red Brick Care Ltd,A07R,Adult Social Care Operations,Supplies and Services,"2,142.00",Aug-23
Slough Borough Council,806766,Red Brick Care Ltd,M44C,Adult Social Care Operations,Supplies and Services,714.00,Aug-23
Slough Borough Council,806766,Red Brick Care Ltd,M44C,Adult Social Care Operations,Supplies and Services,867.00,Aug-23
Slough Borough Council,806766,Red Brick Care Ltd,M44C,Adult Social Care Operations,Supplies and Services,"2,142.00",Aug-23
Slough Borough Council,806766,Red Brick Care Ltd,M44C,Adult Social Care Operations,Supplies and Services,"2,618.00",Aug-23
Slough Borough Council,806766,Red Brick Care Ltd,M44C,Adult Social Care Operations,Supplies and Services,833.00,Aug-23
Slough Borough Council,806766,Red Brick Care Ltd,M44C,Adult Social Care Operations,Supplies and Services,"1,785.00",Aug-23
Slough Borough Council,806766,Red Brick Care Ltd,M44C,Adult Social Care Operations,Supplies and Services,"2,142.00",Aug-23
Slough Borough Council,806766,Red Brick Care Ltd,M44C,Adult Social Care Operations,Supplies and Services,"2,142.00",Aug-23
Slough Borough Council,806766,Red Brick Care Ltd,M44C,Adult Social Care Operations,Supplies and Services,833.00,Aug-23
Slough Borough Council,806766,Red Brick Care Ltd,M44C,Adult Social Care Operations,Supplies and Services,"2,142.00",Aug-23
Slough Borough Council,806766,Red Brick Care Ltd,M44C,Adult Social Care Operations,Supplies and Services,"2,142.00",Aug-23
Slough Borough Council,806766,Red Brick Care Ltd,M44D,Adult Social Care Operations,Supplies and Services,"1,326.00",Aug-23
Slough Borough Council,806766,Red Brick Care Ltd,M44D,Adult Social Care Operations,Supplies and Services,805.00,Aug-23
Slough Borough Council,806766,Red Brick Care Ltd,M44F,Adult Social Care Operations,Supplies and Services,714.00,Aug-23
Slough Borough Council,806766,Red Brick Care Ltd,M45C,Adult Social Care Operations,Supplies and Services,"1,071.00",Aug-23
Slough Borough Council,806766,Red Brick Care Ltd,M45C,Adult Social Care Operations,Supplies and Services,765.00,Aug-23
Slough Borough Council,806766,Red Brick Care Ltd,M45C,Adult Social Care Operations,Supplies and Services,"2,210.00",Aug-23
Slough Borough Council,806766,Red Brick Care Ltd,M45C,Adult Social Care Operations,Supplies and Services,573.75,Aug-23
Slough Borough Council,806766,Red Brick Care Ltd,M45C,Adult Social Care Operations,Supplies and Services,799.00,Aug-23
Slough Borough Council,806766,Red Brick Care Ltd,M45C,Adult Social Care Operations,Supplies and Services,935.00,Aug-23
Slough Borough Council,806766,Red Brick Care Ltd,M45C,Adult Social Care Operations,Supplies and Services,"1,190.00",Aug-23
Slough Borough Council,806766,Red Brick Care Ltd,M45C,Adult Social Care Operations,Supplies and Services,"2,142.00",Aug-23
Slough Borough Council,805321,Redacted,F909,Children & Families,Supplies and Services,610.05,Aug-23
Slough Borough Council,805084,Redacted,F909,Children & Families,Supplies and Services,"1,586.13",Aug-23
Slough Borough Council,806541,Redacted,F909,Children & Families,Supplies and Services,"18,088.50",Aug-23
Slough Borough Council,1928,Redacted,F909,Children & Families,Supplies and Services,610.05,Aug-23
Slough Borough Council,3934,Redacted,F909,Children & Families,Supplies and Services,610.05,Aug-23
Slough Borough Council,806720,Redacted,F909,Children & Families,Supplies and Services,586.32,Aug-23
Slough Borough Council,3209,Redacted,F909,Children & Families,Supplies and Services,915.08,Aug-23
Slough Borough Council,805145,Redacted,F909,Children & Families,Supplies and Services,859.88,Aug-23
Slough Borough Council,804932,Redacted,F909,Children & Families,Supplies and Services,647.33,Aug-23
Slough Borough Council,803824,Redacted,F909,Children & Families,Supplies and Services,684.60,Aug-23
Slough Borough Council,807475,Redacted,F909,Children & Families,Supplies and Services,610.05,Aug-23
Slough Borough Council,803853,Redacted,F909,Children & Families,Supplies and Services,647.33,Aug-23
Slough Borough Council,807836,Redacted,F909,Children & Families,Supplies and Services,"1,830.15",Aug-23
Slough Borough Council,807698,Redacted,F909,Children & Families,Supplies and Services,915.08,Aug-23
Slough Borough Council,803874,Redacted,F909,Children & Families,Supplies and Services,650.72,Aug-23
Slough Borough Council,805946,Redacted,F909,Children & Families,Supplies and Services,550.63,Aug-23
Slough Borough Council,803819,Redacted,F909,Children & Families,Supplies and Services,915.08,Aug-23
Slough Borough Council,805806,Redacted,F909,Children & Families,Supplies and Services,989.63,Aug-23
Slough Borough Council,803196,Redquadrant LTD,B021,Finance & Commercial,Supplies and Services,"20,348.10",Aug-23
Slough Borough Council,803196,Redquadrant LTD,B021,Finance & Commercial,Supplies and Services,"24,083.50",Aug-23
Slough Borough Council,6,Re-Format Llp,P577,Capital,Capital Charges,500.00,Aug-23
Slough Borough Council,808302,Reliant Care Limited,M44C,Adult Social Care Operations,Supplies and Services,"3,124.71",Aug-23
Slough Borough Council,807562,Renovo Farnborough Limited,M25D,Adult Social Care Operations,Supplies and Services,"9,106.99",Aug-23
Slough Borough Council,805624,Rent Connect Housing ltd.,H205,Housing (People) Services,Premises,"45,322.00",Aug-23
Slough Borough Council,809018,Resolve Antisocial Behaviour,J200,Place Management,Supplies and Services,"1,387.50",Aug-23
Slough Borough Council,2529,Richmond Fellowship,M27F,Adult Social Care Operations,Supplies and Services,"2,253.26",Aug-23
Slough Borough Council,805200,RJ Morgan Fencing Ltd,P243,Capital,Supplies and Services,"2,950.00",Aug-23
Slough Borough Council,805200,RJ Morgan Fencing Ltd,P243,Capital,Supplies and Services,"1,050.00",Aug-23
Slough Borough Council,805200,RJ Morgan Fencing Ltd,P243,Capital,Supplies and Services,"1,530.00",Aug-23
Slough Borough Council,805200,RJ Morgan Fencing Ltd,P243,Capital,Supplies and Services,600.00,Aug-23
Slough Borough Council,692,Ross Stonecraft Ltd,D320,Place Operations,Supplies and Services,568.40,Aug-23
Slough Borough Council,334,Rspca Hillingdon,H253,Place Regulation,Supplies and Services,525.20,Aug-23
Slough Borough Council,809011,Rygor Commercials Ltd,M50A,Place Operations,Transport,"2,196.50",Aug-23
Slough Borough Council,842,Ryvers Primary School,F200,Education & Inclusion,Salaries and Wages-Employees Expenses,"1,119.17",Aug-23
Slough Borough Council,842,Ryvers Primary School,E620,Children & Families,Supplies and Services,"37,673.79",Aug-23
Slough Borough Council,806398,Saba Park UK Services Limited,D123,Place Strategy & Infrastructure,Premises,"14,860.19",Aug-23
Slough Borough Council,806398,Saba Park UK Services Limited,D122,Place Strategy & Infrastructure,Premises,"16,631.61",Aug-23
Slough Borough Council,806398,Saba Park UK Services Limited,D123,Place Strategy & Infrastructure,Supplies and Services,653.47,Aug-23
Slough Borough Council,806398,Saba Park UK Services Limited,D123,Place Strategy & Infrastructure,Supplies and Services,"2,960.64",Aug-23
Slough Borough Council,806398,Saba Park UK Services Limited,D123,Place Strategy & Infrastructure,Supplies and Services,"120,275.97",Aug-23
Slough Borough Council,806398,Saba Park UK Services Limited,D122,Place Strategy & Infrastructure,Supplies and Services,"13,364.00",Aug-23
Slough Borough Council,806398,Saba Park UK Services Limited,D123,Place Strategy & Infrastructure,Supplies and Services,"1,997.10",Aug-23
Slough Borough Council,806398,Saba Park UK Services Limited,D010,Place Strategy & Infrastructure,Supplies and Services,506.86,Aug-23
Slough Borough Council,806398,Saba Park UK Services Limited,D010,Place Strategy & Infrastructure,Supplies and Services,"55,846.80",Aug-23
Slough Borough Council,806398,Saba Park UK Services Limited,D010,Place Strategy & Infrastructure,Supplies and Services,"22,431.17",Aug-23
Slough Borough Council,805875,Salutem Shared Services,M25D,Adult Social Care Operations,Supplies and Services,"6,380.67",Aug-23
Slough Borough Council,805875,Salutem Shared Services,M25D,Adult Social Care Operations,Supplies and Services,"6,174.81",Aug-23
Slough Borough Council,805875,Salutem Shared Services,M25D,Adult Social Care Operations,Supplies and Services,"6,380.67",Aug-23
Slough Borough Council,805875,Salutem Shared Services,M26E,Adult Social Care Operations,Supplies and Services,"4,152.61",Aug-23
Slough Borough Council,805875,Salutem Shared Services,M26E,Adult Social Care Operations,Supplies and Services,628.04,Aug-23
Slough Borough Council,805875,Salutem Shared Services,M26E,Adult Social Care Operations,Supplies and Services,628.04,Aug-23
Slough Borough Council,805875,Salutem Shared Services,M26E,Adult Social Care Operations,Supplies and Services,"4,152.61",Aug-23
Slough Borough Council,805875,Salutem Shared Services,M26E,Adult Social Care Operations,Supplies and Services,"4,018.63",Aug-23
Slough Borough Council,805875,Salutem Shared Services,M26E,Adult Social Care Operations,Supplies and Services,607.80,Aug-23
Slough Borough Council,805875,Salutem Shared Services,M26E,Adult Social Care Operations,Supplies and Services,"11,193.60",Aug-23
Slough Borough Council,805875,Salutem Shared Services,M26E,Adult Social Care Operations,Supplies and Services,"11,566.67",Aug-23
Slough Borough Council,805875,Salutem Shared Services,M26E,Adult Social Care Operations,Supplies and Services,"11,193.60",Aug-23
Slough Borough Council,805875,Salutem Shared Services,M26E,Adult Social Care Operations,Supplies and Services,"11,566.67",Aug-23
Slough Borough Council,805875,Salutem Shared Services,M26E,Adult Social Care Operations,External Receipts,-628.02,Aug-23
Slough Borough Council,805875,Salutem Shared Services,M26E,Adult Social Care Operations,External Receipts,-628.02,Aug-23
Slough Borough Council,805875,Salutem Shared Services,M26E,Adult Social Care Operations,External Receipts,-607.76,Aug-23
Slough Borough Council,804350,Sandra's Childcare,F909,Children & Families,Supplies and Services,915.08,Aug-23
Slough Borough Council,1580,Savills (UK) Ltd,J606,Place Management,Supplies and Services,"4,800.00",Aug-23
Slough Borough Council,1580,Savills (UK) Ltd,J606,Place Management,Supplies and Services,"4,250.00",Aug-23
Slough Borough Council,808778,Schneider Electric LTD,B060,Business Services,Premises,"4,374.53",Aug-23
Slough Borough Council,803999,Sequence Care Group,M26E,Adult Social Care Operations,Supplies and Services,"12,717.93",Aug-23
Slough Borough Council,808814,Shine Partnerships Ltd,M42F,Adult Social Care Operations,Supplies and Services,"1,802.34",Aug-23
Slough Borough Council,805203,Shorts Agricultural Services Ltd,D342,Place Operations,Supplies and Services,"15,230.94",Aug-23
Slough Borough Council,805203,Shorts Agricultural Services Ltd,D342,Place Operations,Supplies and Services,"6,443.90",Aug-23
Slough Borough Council,805303,Sign Health,M27C,Adult Social Care Operations,Supplies and Services,"5,485.49",Aug-23
Slough Borough Council,808698,SKB INVESTMENTS LTD,H205,Housing (People) Services,Supplies and Services,"1,650.00",Aug-23
Slough Borough Council,808698,SKB INVESTMENTS LTD,H205,Housing (People) Services,Supplies and Services,"1,705.00",Aug-23
Slough Borough Council,808709,SKHH LIMITED,H205,Housing (People) Services,Supplies and Services,"1,860.00",Aug-23
Slough Borough Council,808709,SKHH LIMITED,H205,Housing (People) Services,Supplies and Services,"2,015.00",Aug-23
Slough Borough Council,808978,SKM CLEANING SERVICE LTD,M07E,People Adults,Supplies and Services,700.00,Aug-23
Slough Borough Council,808978,SKM CLEANING SERVICE LTD,M80F,Adult Social Care Operations,Supplies and Services,650.00,Aug-23
Slough Borough Council,808978,SKM CLEANING SERVICE LTD,M80F,Adult Social Care Operations,Supplies and Services,750.00,Aug-23
Slough Borough Council,3333,Slk Services,F123,Education & Inclusion,External Receipts,"4,845.00",Aug-23
Slough Borough Council,472,Slough & Eton C.E.School,B297,Finance & Commercial,Government Grants,"26,640.00",Aug-23
Slough Borough Council,1459,Slough And Eton C E School,E610,Children & Families,Supplies and Services,"23,208.33",Aug-23
Slough Borough Council,807834,Slough Children First,M99C,Children & Families,Supplies and Services,"3,005,484.32",Aug-23
Slough Borough Council,807834,Slough Children First,A04C,Adult Social Care Operations,Supplies and Services,"15,600.00",Aug-23
Slough Borough Council,276,Slough Community Transport & Shopmobility,F123,Education & Inclusion,External Receipts,"23,405.42",Aug-23
Slough Borough Council,3503,Slough Day Nursery,F909,Children & Families,Supplies and Services,"5,725.95",Aug-23
Slough Borough Council,806733,Smart Move (Estate Agents UK) LTD,H205,Housing (People) Services,Supplies and Services,"3,600.00",Aug-23
Slough Borough Council,807277,SMI Int Group Ltd,D610,Place Operations,Supplies and Services,534.00,Aug-23
Slough Borough Council,382,Softcat Plc,B342,Digital and Strategic IT,Supplies and Services,"18,000.00",Aug-23
Slough Borough Council,382,Softcat Plc,B342,Digital and Strategic IT,Supplies and Services,"12,000.00",Aug-23
Slough Borough Council,1228,Solace Group,D003,Place Management,Agency Staff,"18,142.50",Aug-23
Slough Borough Council,114,Solutions 4 Health Ltd,A01P,Public Health,Supplies and Services,"229,057.81",Aug-23
Slough Borough Council,114,Solutions 4 Health Ltd,A01P,Public Health,Supplies and Services,"51,833.33",Aug-23
Slough Borough Council,1598,Sorbon Estates Limited,H205,Housing (People) Services,Premises,"6,040.83",Aug-23
Slough Borough Council,1875,Ss & Kk. Hothi,H205,Housing (People) Services,Supplies and Services,"19,770.83",Aug-23
Slough Borough Council,1875,Ss & Kk. Hothi,H205,Housing (People) Services,Supplies and Services,"14,508.75",Aug-23
Slough Borough Council,808401,SSE Energy Solution,B668,Business Services,Premises,"11,943.08",Aug-23
Slough Borough Council,808401,SSE Energy Solution,B668,Business Services,Premises,"9,985.65",Aug-23
Slough Borough Council,808401,SSE Energy Solution,J015,Place Management,Premises,"15,577.12",Aug-23
Slough Borough Council,808401,SSE Energy Solution,J015,Place Management,Premises,"61,111.83",Aug-23
Slough Borough Council,803165,St Anthony's Catholic Primary School & Nursery,E620,Children & Families,Supplies and Services,"20,535.00",Aug-23
Slough Borough Council,3383,St Bernards Catholic Grammar School,E550,Children & Families,Supplies and Services,"548,647.07",Aug-23
Slough Borough Council,2918,St Bernard'S Rc Preparatory School,F909,Children & Families,Supplies and Services,"14,424.78",Aug-23
Slough Borough Council,808813,St David's Home,M28C,Adult Social Care Operations,Supplies and Services,"6,642.86",Aug-23
Slough Borough Council,3547,St Ethelberts School,E620,Children & Families,Supplies and Services,"15,883.34",Aug-23
Slough Borough Council,713,St John Ambulance,B349,Customer,Supplies and Services,660.00,Aug-23
Slough Borough Council,1378,St Josephs Catholic High School,E610,Children & Families,Supplies and Services,"13,813.84",Aug-23
Slough Borough Council,806013,ST MARY'S CHURCH OF ENGLAND PRIMARY SCHOOL,E420,Children & Families,Supplies and Services,"94,241.93",Aug-23
Slough Borough Council,468,Stannah Lift Services Ltd,P006,Capital,Capital Charges,"6,690.00",Aug-23
Slough Borough Council,468,Stannah Lift Services Ltd,P006,Capital,Capital Charges,"3,573.00",Aug-23
Slough Borough Council,468,Stannah Lift Services Ltd,P006,Capital,Capital Charges,"6,119.00",Aug-23
Slough Borough Council,468,Stannah Lift Services Ltd,P006,Capital,Capital Charges,"3,105.00",Aug-23
Slough Borough Council,804910,Stennetts Limited,D880,Place Operations,Supplies and Services,"1,365.00",Aug-23
Slough Borough Council,2687,Stepping Stones,M26E,Adult Social Care Operations,Supplies and Services,"5,133.24",Aug-23
Slough Borough Council,2687,Stepping Stones,M26E,Adult Social Care Operations,Supplies and Services,"5,133.24",Aug-23
Slough Borough Council,2687,Stepping Stones,M26E,Adult Social Care Operations,Supplies and Services,"5,133.24",Aug-23
Slough Borough Council,2687,Stepping Stones,M26E,Adult Social Care Operations,Supplies and Services,"5,133.24",Aug-23
Slough Borough Council,2687,Stepping Stones,M26E,Adult Social Care Operations,Supplies and Services,"5,133.24",Aug-23
Slough Borough Council,806115,Stepping Stones,F909,Children & Families,Supplies and Services,610.05,Aug-23
Slough Borough Council,803291,Stroke Association,A06C,People Strategy & Commissioning,Supplies and Services,"41,200.00",Aug-23
Slough Borough Council,803291,Stroke Association,A06C,People Strategy & Commissioning,Supplies and Services,"41,200.00",Aug-23
Slough Borough Council,803107,Stuart Michael Associates Limited,P153,Capital,Capital Charges,"2,145.00",Aug-23
Slough Borough Council,807426,Sunfield Children's Home Ltd,F462,Children & Families,Supplies and Services,"6,666.66",Aug-23
Slough Borough Council,807426,Sunfield Children's Home Ltd,F462,Children & Families,Supplies and Services,"37,000.00",Aug-23
Slough Borough Council,293,Surecare Slough,A07R,Adult Social Care Operations,Supplies and Services,"1,362.20",Aug-23
Slough Borough Council,293,Surecare Slough,A07R,Adult Social Care Operations,Supplies and Services,"1,033.90",Aug-23
Slough Borough Council,293,Surecare Slough,A07R,Adult Social Care Operations,Supplies and Services,960.40,Aug-23
Slough Borough Council,293,Surecare Slough,A07R,Adult Social Care Operations,Supplies and Services,"1,178.62",Aug-23
Slough Borough Council,293,Surecare Slough,M41D,Adult Social Care Operations,Supplies and Services,"1,489.60",Aug-23
Slough Borough Council,293,Surecare Slough,M41D,Adult Social Care Operations,Supplies and Services,764.40,Aug-23
Slough Borough Council,293,Surecare Slough,M41D,Adult Social Care Operations,Supplies and Services,882.00,Aug-23
Slough Borough Council,293,Surecare Slough,M44C,Adult Social Care Operations,Supplies and Services,"1,822.80",Aug-23
Slough Borough Council,293,Surecare Slough,M44C,Adult Social Care Operations,Supplies and Services,"1,641.83",Aug-23
Slough Borough Council,293,Surecare Slough,M44C,Adult Social Care Operations,Supplies and Services,"1,223.72",Aug-23
Slough Borough Council,293,Surecare Slough,M44C,Adult Social Care Operations,Supplies and Services,803.60,Aug-23
Slough Borough Council,293,Surecare Slough,M44C,Adult Social Care Operations,Supplies and Services,661.83,Aug-23
Slough Borough Council,293,Surecare Slough,M44C,Adult Social Care Operations,Supplies and Services,"2,470.20",Aug-23
Slough Borough Council,293,Surecare Slough,M44C,Adult Social Care Operations,Supplies and Services,"1,274.00",Aug-23
Slough Borough Council,293,Surecare Slough,M44C,Adult Social Care Operations,Supplies and Services,"1,470.00",Aug-23
Slough Borough Council,293,Surecare Slough,M44C,Adult Social Care Operations,Supplies and Services,924.80,Aug-23
Slough Borough Council,293,Surecare Slough,M44C,Adult Social Care Operations,Supplies and Services,712.14,Aug-23
Slough Borough Council,293,Surecare Slough,M44C,Adult Social Care Operations,Supplies and Services,"1,274.00",Aug-23
Slough Borough Council,293,Surecare Slough,M44C,Adult Social Care Operations,Supplies and Services,509.96,Aug-23
Slough Borough Council,293,Surecare Slough,M44C,Adult Social Care Operations,Supplies and Services,"1,183.00",Aug-23
Slough Borough Council,293,Surecare Slough,M44C,Adult Social Care Operations,Supplies and Services,"2,462.36",Aug-23
Slough Borough Council,293,Surecare Slough,M44C,Adult Social Care Operations,Supplies and Services,"1,146.60",Aug-23
Slough Borough Council,293,Surecare Slough,M44C,Adult Social Care Operations,Supplies and Services,"1,183.00",Aug-23
Slough Borough Council,293,Surecare Slough,M44C,Adult Social Care Operations,Supplies and Services,"2,469.94",Aug-23
Slough Borough Council,293,Surecare Slough,M44C,Adult Social Care Operations,Supplies and Services,"1,401.40",Aug-23
Slough Borough Council,293,Surecare Slough,M44C,Adult Social Care Operations,Supplies and Services,637.00,Aug-23
Slough Borough Council,293,Surecare Slough,M44C,Adult Social Care Operations,Supplies and Services,"1,146.60",Aug-23
Slough Borough Council,293,Surecare Slough,M44C,Adult Social Care Operations,Supplies and Services,597.80,Aug-23
Slough Borough Council,293,Surecare Slough,M44C,Adult Social Care Operations,Supplies and Services,"1,314.86",Aug-23
Slough Borough Council,293,Surecare Slough,M44C,Adult Social Care Operations,Supplies and Services,"1,358.79",Aug-23
Slough Borough Council,293,Surecare Slough,M44C,Adult Social Care Operations,Supplies and Services,"1,019.20",Aug-23
Slough Borough Council,293,Surecare Slough,M44C,Adult Social Care Operations,Supplies and Services,"1,605.92",Aug-23
Slough Borough Council,293,Surecare Slough,M44C,Adult Social Care Operations,Supplies and Services,"2,469.60",Aug-23
Slough Borough Council,293,Surecare Slough,M44C,Adult Social Care Operations,Supplies and Services,"2,469.60",Aug-23
Slough Borough Council,293,Surecare Slough,M44C,Adult Social Care Operations,Supplies and Services,"2,468.94",Aug-23
Slough Borough Council,293,Surecare Slough,M44C,Adult Social Care Operations,Supplies and Services,"2,464.05",Aug-23
Slough Borough Council,293,Surecare Slough,M44C,Adult Social Care Operations,Supplies and Services,"2,469.60",Aug-23
Slough Borough Council,293,Surecare Slough,M44C,Adult Social Care Operations,Supplies and Services,"2,458.41",Aug-23
Slough Borough Council,293,Surecare Slough,M44C,Adult Social Care Operations,Supplies and Services,"2,463.05",Aug-23
Slough Borough Council,293,Surecare Slough,M44D,Adult Social Care Operations,Supplies and Services,"1,146.60",Aug-23
Slough Borough Council,293,Surecare Slough,M44D,Adult Social Care Operations,Supplies and Services,"1,146.60",Aug-23
Slough Borough Council,293,Surecare Slough,M44D,Adult Social Care Operations,Supplies and Services,637.00,Aug-23
Slough Borough Council,293,Surecare Slough,M44D,Adult Social Care Operations,Supplies and Services,926.01,Aug-23
Slough Borough Council,293,Surecare Slough,M44D,Adult Social Care Operations,Supplies and Services,"1,146.60",Aug-23
Slough Borough Council,293,Surecare Slough,M44D,Adult Social Care Operations,Supplies and Services,"1,323.00",Aug-23
Slough Borough Council,293,Surecare Slough,M45C,Adult Social Care Operations,Supplies and Services,"1,225.00",Aug-23
Slough Borough Council,293,Surecare Slough,M45C,Adult Social Care Operations,Supplies and Services,"1,606.87",Aug-23
Slough Borough Council,293,Surecare Slough,M45C,Adult Social Care Operations,Supplies and Services,572.68,Aug-23
Slough Borough Council,293,Surecare Slough,M45C,Adult Social Care Operations,Supplies and Services,"1,176.00",Aug-23
Slough Borough Council,293,Surecare Slough,M48C,Adult Social Care Operations,Supplies and Services,"1,215.20",Aug-23
Slough Borough Council,293,Surecare Slough,M48C,Adult Social Care Operations,Supplies and Services,"2,399.04",Aug-23
Slough Borough Council,293,Surecare Slough,M48C,Adult Social Care Operations,Supplies and Services,649.10,Aug-23
Slough Borough Council,293,Surecare Slough,M48C,Adult Social Care Operations,Supplies and Services,"2,469.60",Aug-23
Slough Borough Council,808334,Tankata Percussion,F253,Children & Families,Agency Staff,"1,800.00",Aug-23
Slough Borough Council,808334,Tankata Percussion,F253,Children & Families,Agency Staff,742.50,Aug-23
Slough Borough Council,808334,Tankata Percussion,F253,Children & Families,Agency Staff,"1,800.00",Aug-23
Slough Borough Council,808334,Tankata Percussion,F253,Children & Families,Agency Staff,967.50,Aug-23
Slough Borough Council,807256,Targeted Provision,F449,Education & Inclusion,Supplies and Services,720.00,Aug-23
Slough Borough Council,3891,Teaching Personnel Ltd,F449,Education & Inclusion,Supplies and Services,705.00,Aug-23
Slough Borough Council,3369,Teeny Boppers Montessori School,F909,Children & Families,Supplies and Services,"8,787.43",Aug-23
Slough Borough Council,1596,Teleshore (Uk) Limited,D320,Place Operations,Supplies and Services,"5,704.50",Aug-23
Slough Borough Council,1596,Teleshore (Uk) Limited,D320,Place Operations,Supplies and Services,"1,144.20",Aug-23
Slough Borough Council,807803,Telsolutions Ltd,H015,Finance & Commercial,Supplies and Services,500.00,Aug-23
Slough Borough Council,3168,Thames Valley Berkshire Local Enteprise Partnership Ltd,D006,Place & Communities,Supplies and Services,"20,000.00",Aug-23
Slough Borough Council,3168,Thames Valley Berkshire Local Enteprise Partnership Ltd,D015,Place Strategy & Infrastructure,Supplies and Services,"12,041.00",Aug-23
Slough Borough Council,717,Thames Water Utilities Limited,C019,Place Operations,Premises,"2,114.79",Aug-23
Slough Borough Council,717,Thames Water Utilities Limited,D412,Place Strategy & Infrastructure,Premises,693.19,Aug-23
Slough Borough Council,717,Thames Water Utilities Limited,D412,Place Strategy & Infrastructure,Premises,693.19,Aug-23
Slough Borough Council,803774,The Abbeyfield Maidenhead Society Ltd,M27C,Adult Social Care Operations,Supplies and Services,"3,484.52",Aug-23
Slough Borough Council,808451,The Address Management,H205,Housing (People) Services,Supplies and Services,"52,120.00",Aug-23
Slough Borough Council,808451,The Address Management,H205,Housing (People) Services,Supplies and Services,"50,620.00",Aug-23
Slough Borough Council,653,The Godolphin Junior Academy,E620,Children & Families,Supplies and Services,"8,958.33",Aug-23
Slough Borough Council,653,The Godolphin Junior Academy,B297,Finance & Commercial,Government Grants,"16,290.00",Aug-23
Slough Borough Council,806838,The Green Room Foundation Ltd,F462,Children & Families,Supplies and Services,"10,500.00",Aug-23
Slough Borough Council,806838,The Green Room Foundation Ltd,F462,Children & Families,Supplies and Services,"1,500.00",Aug-23
Slough Borough Council,1385,The Langley Academy,E610,Children & Families,Supplies and Services,"18,500.00",Aug-23
Slough Borough Council,803300,The Langley Academy Primary,E610,Children & Families,Supplies and Services,"27,625.00",Aug-23
Slough Borough Council,806847,The Langley Heritage Primary Academy,E620,Children & Families,Supplies and Services,"23,723.17",Aug-23
Slough Borough Council,806847,The Langley Heritage Primary Academy,B297,Finance & Commercial,Government Grants,"10,890.00",Aug-23
Slough Borough Council,805400,The Leading Care Company,M44C,Adult Social Care Operations,Supplies and Services,722.08,Aug-23
Slough Borough Council,805400,The Leading Care Company,M44C,Adult Social Care Operations,Supplies and Services,636.81,Aug-23
Slough Borough Council,805400,The Leading Care Company,M44D,Adult Social Care Operations,Supplies and Services,"3,800.16",Aug-23
Slough Borough Council,805400,The Leading Care Company,M44E,Adult Social Care Operations,Supplies and Services,"5,513.76",Aug-23
Slough Borough Council,3116,The Oratory Montessori Day Nursery,F909,Children & Families,Supplies and Services,"14,990.03",Aug-23
Slough Borough Council,803338,The Owl Centre,F417,Education & Inclusion,Supplies and Services,951.30,Aug-23
Slough Borough Council,803590,The Property Bank,H205,Housing (People) Services,Supplies and Services,"19,465.52",Aug-23
Slough Borough Council,803590,The Property Bank,H218,Community,Supplies and Services,"19,465.52",Aug-23
Slough Borough Council,803590,The Property Bank,H218,Community,Supplies and Services,"-19,465.52",Aug-23
Slough Borough Council,803590,The Property Bank,H218,Community,Supplies and Services,"15,865.52",Aug-23
Slough Borough Council,803590,The Property Bank,H218,Community,Supplies and Services,"19,465.52",Aug-23
Slough Borough Council,2209,The Specialist Education Trust,B297,Finance & Commercial,Government Grants,"1,170.00",Aug-23
Slough Borough Council,807988,The Sports Collective,F382,Children & Families,Supplies and Services,"12,000.00",Aug-23
Slough Borough Council,821,The Westgate School,E610,Children & Families,Supplies and Services,"23,695.32",Aug-23
Slough Borough Council,821,The Westgate School,B297,Finance & Commercial,Government Grants,"6,698.25",Aug-23
Slough Borough Council,821,The Westgate School,B297,Finance & Commercial,Government Grants,"21,510.00",Aug-23
Slough Borough Council,808805,Thrift Farm,M44E,Adult Social Care Operations,Supplies and Services,532.07,Aug-23
Slough Borough Council,808699,Tile Hill Interim & Executive Ltd,D003,Place Management,Agency Staff,"15,300.00",Aug-23
Slough Borough Council,805915,Time 4 U Limited,M44F,Adult Social Care Operations,Supplies and Services,"3,139.01",Aug-23
Slough Borough Council,806360,Tiny Turtles Daycare Nursery Ltd,F909,Children & Families,Supplies and Services,"17,402.89",Aug-23
Slough Borough Council,171,Toad Hall Nursery,F909,Children & Families,Supplies and Services,"22,371.40",Aug-23
Slough Borough Council,2203,Toby Miller,C322,Community,Supplies and Services,549.00,Aug-23
Slough Borough Council,804367,Tom Horn,F253,Children & Families,Agency Staff,800.00,Aug-23
Slough Borough Council,1782,Top Mill Ltd,H205,Housing (People) Services,Supplies and Services,550.00,Aug-23
Slough Borough Council,809022,Transitional Care Ltd T/As TCES,F462,Children & Families,Supplies and Services,"23,917.95",Aug-23
Slough Borough Council,806348,Trinity Homelesss Projects,H216,Community,External Receipts,"3,000.00",Aug-23
Slough Borough Council,806348,Trinity Homelesss Projects,H216,Community,External Receipts,"3,000.00",Aug-23
Slough Borough Council,806348,Trinity Homelesss Projects,H216,Community,External Receipts,"1,500.00",Aug-23
Slough Borough Council,806348,Trinity Homelesss Projects,H216,Community,External Receipts,"1,500.00",Aug-23
Slough Borough Council,806348,Trinity Homelesss Projects,H216,Community,External Receipts,"1,500.00",Aug-23
Slough Borough Council,806348,Trinity Homelesss Projects,H216,Community,External Receipts,"3,000.00",Aug-23
Slough Borough Council,2889,Tudor (UK) Ltd t/a Tudor Environmental,D750,Place Operations,Supplies and Services,"1,064.70",Aug-23
Slough Borough Council,2889,Tudor (UK) Ltd t/a Tudor Environmental,D750,Place Operations,Supplies and Services,"1,566.26",Aug-23
Slough Borough Council,2889,Tudor (UK) Ltd t/a Tudor Environmental,D750,Place Operations,Supplies and Services,571.68,Aug-23
Slough Borough Council,2889,Tudor (UK) Ltd t/a Tudor Environmental,D750,Place Operations,Supplies and Services,541.48,Aug-23
Slough Borough Council,2889,Tudor (UK) Ltd t/a Tudor Environmental,D750,Place Operations,Supplies and Services,572.00,Aug-23
Slough Borough Council,942,Turning Point,A04C,Adult Social Care Operations,Supplies and Services,"277,475.00",Aug-23
Slough Borough Council,942,Turning Point,A04C,Adult Social Care Operations,Supplies and Services,"277,475.00",Aug-23
Slough Borough Council,942,Turning Point,H216,Community,Supplies and Services,"1,226.08",Aug-23
Slough Borough Council,942,Turning Point,H216,Community,Supplies and Services,"1,900.42",Aug-23
Slough Borough Council,942,Turning Point,H216,Community,Supplies and Services,"1,900.42",Aug-23
Slough Borough Council,3953,Upton Court Grammar School,E610,Children & Families,Supplies and Services,"2,500.00",Aug-23
Slough Borough Council,577,Upton Park Hotel,H205,Housing (People) Services,Supplies and Services,"99,182.00",Aug-23
Slough Borough Council,808898,Vine Real Estate LTD,H205,Housing (People) Services,Supplies and Services,"8,525.00",Aug-23
Slough Borough Council,1212,Virgin Media Ltd,D900,Place Operations,Supplies and Services,"24,378.07",Aug-23
Slough Borough Council,1212,Virgin Media Ltd,B342,Digital and Strategic IT,Supplies and Services,"3,080.00",Aug-23
Slough Borough Council,1839,Vistascapes,P006,Capital,Capital Charges,"4,715.00",Aug-23
Slough Borough Council,1839,Vistascapes,P006,Capital,Capital Charges,"14,317.66",Aug-23
Slough Borough Council,807617,Vivedia Ltd t/a Obitus,D320,Place Operations,External Receipts,"1,331.00",Aug-23
Slough Borough Council,809023,VKL Healthcare Ltd.,A02L,Adult Social Care Operations,Supplies and Services,"1,493.93",Aug-23
Slough Borough Council,803163,Volker Highways,D413,Place Strategy & Infrastructure,Supplies and Services,"11,236.13",Aug-23
Slough Borough Council,803163,Volker Highways,D413,Place Strategy & Infrastructure,Supplies and Services,"-11,236.13",Aug-23
Slough Borough Council,2682,Voyage 1 Limited,M26E,Adult Social Care Operations,Supplies and Services,"8,197.45",Aug-23
Slough Borough Council,2682,Voyage 1 Limited,M26E,Adult Social Care Operations,Supplies and Services,"5,697.05",Aug-23
Slough Borough Council,2682,Voyage 1 Limited,M26E,Adult Social Care Operations,Supplies and Services,"5,263.52",Aug-23
Slough Borough Council,2682,Voyage 1 Limited,M26E,Adult Social Care Operations,Supplies and Services,"6,721.06",Aug-23
Slough Borough Council,2682,Voyage 1 Limited,M26E,Adult Social Care Operations,Supplies and Services,"7,863.10",Aug-23
Slough Borough Council,2682,Voyage 1 Limited,M26E,Adult Social Care Operations,External Receipts,-765.26,Aug-23
Slough Borough Council,2682,Voyage 1 Limited,M26E,Adult Social Care Operations,External Receipts,-713.53,Aug-23
Slough Borough Council,3436,Voyage Ltd,M26E,Adult Social Care Operations,Supplies and Services,"5,952.57",Aug-23
Slough Borough Council,3436,Voyage Ltd,M26E,Adult Social Care Operations,Supplies and Services,631.38,Aug-23
Slough Borough Council,3436,Voyage Ltd,M26E,Adult Social Care Operations,Supplies and Services,"3,719.02",Aug-23
Slough Borough Council,3436,Voyage Ltd,M42E,Adult Social Care Operations,Supplies and Services,"4,831.53",Aug-23
Slough Borough Council,3436,Voyage Ltd,M42E,Adult Social Care Operations,Supplies and Services,"5,701.35",Aug-23
Slough Borough Council,3436,Voyage Ltd,M42E,Adult Social Care Operations,Supplies and Services,"6,101.34",Aug-23
Slough Borough Council,3436,Voyage Ltd,M42E,Adult Social Care Operations,Supplies and Services,"6,051.86",Aug-23
Slough Borough Council,3436,Voyage Ltd,M42E,Adult Social Care Operations,Supplies and Services,"5,908.89",Aug-23
Slough Borough Council,3436,Voyage Ltd,M42E,Adult Social Care Operations,Supplies and Services,"5,487.20",Aug-23
Slough Borough Council,3436,Voyage Ltd,M42E,Adult Social Care Operations,Supplies and Services,"4,887.81",Aug-23
Slough Borough Council,808416,WATERMELON PROPERTIES LIMITED,H205,Housing (People) Services,Supplies and Services,"1,860.00",Aug-23
Slough Borough Council,808416,WATERMELON PROPERTIES LIMITED,H205,Housing (People) Services,Supplies and Services,"1,860.00",Aug-23
Slough Borough Council,1762,Wellingtons For Langley Hall,F909,Children & Families,Supplies and Services,"63,474.35",Aug-23
Slough Borough Council,774,West Berkshire County Council,A08R,Adult Social Care Operations,Supplies and Services,"82,260.00",Aug-23
Slough Borough Council,1749,West London Ymca,H207,Community,Supplies and Services,"1,550.00",Aug-23
Slough Borough Council,1649,Western House Primary School,E610,Children & Families,Supplies and Services,"27,975.53",Aug-23
Slough Borough Council,1649,Western House Primary School,B297,Finance & Commercial,Government Grants,"10,260.00",Aug-23
Slough Borough Council,3628,White Leaf Care Ltd,M27C,Adult Social Care Operations,Supplies and Services,"8,384.88",Aug-23
Slough Borough Council,808062,Whitefriars Nursing & Residential Home,M26E,Adult Social Care Operations,Supplies and Services,"3,726.20",Aug-23
Slough Borough Council,1753,Willow Primary School,E620,Children & Families,Supplies and Services,"22,946.05",Aug-23
Slough Borough Council,807549,Windsar Care (UK) LLP,M15F,Adult Social Care Operations,Supplies and Services,"4,417.50",Aug-23
Slough Borough Council,807549,Windsar Care (UK) LLP,M15F,Adult Social Care Operations,Supplies and Services,"4,417.50",Aug-23
Slough Borough Council,807549,Windsar Care (UK) LLP,M17C,Adult Social Care Operations,Supplies and Services,"4,533.75",Aug-23
Slough Borough Council,807549,Windsar Care (UK) LLP,M18C,Adult Social Care Operations,Supplies and Services,"4,533.75",Aug-23
Slough Borough Council,807549,Windsar Care (UK) LLP,M18C,Adult Social Care Operations,Supplies and Services,"4,417.50",Aug-23
Slough Borough Council,807549,Windsar Care (UK) LLP,M18C,Adult Social Care Operations,Supplies and Services,"4,533.75",Aug-23
Slough Borough Council,804807,Windsar Care Centre Ltd,M15D,Adult Social Care Operations,Supplies and Services,"6,975.00",Aug-23
Slough Borough Council,804807,Windsar Care Centre Ltd,M15F,Adult Social Care Operations,Supplies and Services,"3,441.00",Aug-23
Slough Borough Council,804807,Windsar Care Centre Ltd,M17C,Adult Social Care Operations,Supplies and Services,"4,417.50",Aug-23
Slough Borough Council,804807,Windsar Care Centre Ltd,M17C,Adult Social Care Operations,Supplies and Services,"4,533.75",Aug-23
Slough Borough Council,804807,Windsar Care Centre Ltd,M18C,Adult Social Care Operations,Supplies and Services,"4,185.00",Aug-23
Slough Borough Council,804807,Windsar Care Centre Ltd,M18C,Adult Social Care Operations,Supplies and Services,"3,487.50",Aug-23
Slough Borough Council,804807,Windsar Care Centre Ltd,M18C,Adult Social Care Operations,Supplies and Services,"4,533.75",Aug-23
Slough Borough Council,804807,Windsar Care Centre Ltd,M18C,Adult Social Care Operations,Supplies and Services,"4,533.75",Aug-23
Slough Borough Council,804807,Windsar Care Centre Ltd,M18C,Adult Social Care Operations,Supplies and Services,"4,533.75",Aug-23
Slough Borough Council,804807,Windsar Care Centre Ltd,M18C,Adult Social Care Operations,Supplies and Services,"4,185.00",Aug-23
Slough Borough Council,804807,Windsar Care Centre Ltd,M18C,Adult Social Care Operations,Supplies and Services,"5,580.00",Aug-23
Slough Borough Council,804807,Windsar Care Centre Ltd,M18C,Adult Social Care Operations,Supplies and Services,"4,533.75",Aug-23
Slough Borough Council,3604,Windsar Care Ltd,M15F,Adult Social Care Operations,Supplies and Services,"2,790.00",Aug-23
Slough Borough Council,3604,Windsar Care Ltd,M15F,Adult Social Care Operations,Supplies and Services,"2,208.75",Aug-23
Slough Borough Council,3604,Windsar Care Ltd,M15F,Adult Social Care Operations,Supplies and Services,"3,603.75",Aug-23
Slough Borough Council,3604,Windsar Care Ltd,M15F,Adult Social Care Operations,Supplies and Services,"4,650.00",Aug-23
Slough Borough Council,3604,Windsar Care Ltd,M17C,Adult Social Care Operations,Supplies and Services,"3,487.50",Aug-23
Slough Borough Council,3604,Windsar Care Ltd,M18C,Adult Social Care Operations,Supplies and Services,"4,068.75",Aug-23
Slough Borough Council,3604,Windsar Care Ltd,M18C,Adult Social Care Operations,Supplies and Services,"3,720.00",Aug-23
Slough Borough Council,3604,Windsar Care Ltd,M25C,Adult Social Care Operations,Supplies and Services,"3,487.50",Aug-23
Slough Borough Council,3604,Windsar Care Ltd,M25D,Adult Social Care Operations,Supplies and Services,"4,533.75",Aug-23
Slough Borough Council,3604,Windsar Care Ltd,M26E,Adult Social Care Operations,Supplies and Services,"3,487.50",Aug-23
Slough Borough Council,3604,Windsar Care Ltd,M27F,Adult Social Care Operations,Supplies and Services,"5,580.00",Aug-23
Slough Borough Council,807103,Witherslack Group,F462,Children & Families,Supplies and Services,"26,459.82",Aug-23
Slough Borough Council,1245,Wokingham Borough Council,D015,Place Strategy & Infrastructure,Supplies and Services,"3,696.61",Aug-23
Slough Borough Council,748,YMCA St Paul's Group,H211,People Adults,Supplies and Services,"8,531.29",Aug-23
Slough Borough Council,748,YMCA St Paul's Group,H216,Community,Supplies and Services,"2,800.00",Aug-23
Slough Borough Council,1961,Zenergi Limited,B668,Business Services,Premises,"10,500.00",Aug-23
